Department,Entity,Date,Expense Type,Expense Area,Supplier ,Component Code,Amount, Invoice Description
DFID,DFID,02/04/2013,Aid Programme - Accountable Grant Payments ,East and Central Africa ,Finn Church Aid ,203382-110 ,"899,992.00",
DFID,DFID,02/04/2013,other information and communication technologies ,Business Solutions Division Level ,ICM Business Continuity Services Ltd ,200002-202 ,"26,293.81",Disaster Recovery Services 30 Dec 2012 - 29 Mar 2013 
DFID,DFID,02/04/2013,Technical and Advisory Services ,West and Southern Africa ,OXFORD POLICY MANAGEMENT ,201874-103 ,"66,752.71",
DFID,DFID,02/04/2013,Aid Programme - Challenge Fund payments ,Western Asia and Stabilisation Division ,Supplier Name withheld ,200898-104 ,"54,271.09",
DFID,DFID,02/04/2013,Training - Course Fees ,West and Southern Africa ,COMMUNICAID GRP LIMITED ,101610-101 ,"13,428.00",
DFID,DFID,02/04/2013,Technical and Advisory Services ,Western Asia and Stabilisation Division ,Supplier Name withheld ,203501-101 ,"9,483.04",
DFID,DFID,02/04/2013,Contract & Agency Staff ,Business Solutions Division Level ,OPIN SYSTEMS LIMITED ,200001-101 ,"6,720.00",
DFID,DFID,02/04/2013,Training - Course Fees ,West and Southern Africa ,COMMUNICAID GRP LIMITED ,101610-101 ,"5,595.60",
DFID,DFID,02/04/2013,Technical and Advisory Services ,East and Central Africa ,Sara Methven ,200318-101 ,"5,589.90",
DFID,DFID,02/04/2013,Mobile telephones & accessories ,Business Solutions Division Level ,Level 3 ,200002-117 ,"2,230.20",
DFID,DFID,02/04/2013,Contract & Agency Staff ,International Finance Division ,Hays Specialist Recruitment Ltd ,100120-101 ,"1,630.96",
DFID,DFID,02/04/2013,Hotels - Accommodation only ,Research and Evidence Division ,Recipient name withheld ,100039-110 ,"1,299.92",
DFID,DFID,02/04/2013,Furniture & Fittings ,East and Central Africa ,BRICOTECH SARL ,101628-101 ,"1,195.35",
DFID,DFID,02/04/2013,Contract & Agency Staff ,Finance and Corporate Performance Division ,Hays Specialist Recruitment Ltd ,100201-101 ,"1,130.16",
DFID,DFID,02/04/2013,Hostile Environment Training ,East and Central Africa ,Pilgrims Group ,101630-101 ,"1,027.14",
DFID,DFID,02/04/2013,Hostile Environment Training ,East and Central Africa ,Pilgrims Group ,101630-101 ,"1,027.14",
DFID,DFID,02/04/2013,Entertainment & Hospitality ,Top Management Group ,Recipient name withheld ,100232-106 ,924.22,
DFID,DFID,02/04/2013,Training - Course Fees ,West and Southern Africa ,CAPITA LEARNING &DEVELOPMENT ,101637-101 ,879.60,
DFID,DFID,02/04/2013,Vehicle Repairs & Maintenance ,East and Central Africa ,DMS AFRICA ,202594-101 ,842.97,
DFID,DFID,02/04/2013,Telephone Usage & services ,West and Southern Africa ,Scancom Limited ,101613-101 ,756.16,
DFID,DFID,02/04/2013,Training - Travel & Subsistence ,Western Asia and Stabilisation Division ,Recipient name withheld ,101624-101 ,749.07,
DFID,DFID,02/04/2013,Training - Course Fees ,Human Resources Security & Facilities Division ,CAPITA LEARNING &DEVELOPMENT ,100269-155 ,733.00,
DFID,DFID,02/04/2013,Furniture & Fittings ,East and Central Africa ,BRICOTECH SARL ,101628-101 ,697.45,
DFID,DFID,02/04/2013,Telephone Usage & services ,Human Resources Security & Facilities Division ,BT BACS PAYMENTS ,203717-101 ,684.42,
DFID,DFID,02/04/2013,Vehicle Repairs & Maintenance ,East and Central Africa ,Garage Atecar SARL ,101628-101 ,635.15,
DFID,DFID,02/04/2013,Vehicle Repairs & Maintenance ,East and Central Africa ,Garage Atecar SARL ,101628-101 ,630.29,
DFID,DFID,02/04/2013,Training - Travel & Subsistence ,East and Central Africa ,Alisa Hotel North Ridge ,101612-101 ,558.82,
DFID,DFID,02/04/2013,Hotels - Accommodation only ,Research and Evidence Division ,Recipient name withheld ,100039-110 ,507.21,
DFID,DFID,03/04/2013,Technical and Advisory Services ,Policy Division ,PWC GEC Client Account ,202372-103 ,"4,561,717.00",
DFID,DFID,03/04/2013,Aid Programme - Voluntary contributions ,East and Central Africa ,WFP CONTRIBUTIONS UNIT ,202522-103 ,"1,200,000.00",
DFID,DFID,03/04/2013,Aid Programme - Partnership Programme Arrangements ,Policy Division ,HELPAGE INTERNATIONAL ,202566-101 ,"667,567.00",
DFID,DFID,03/04/2013,Aid Programme - Voluntary contributions ,East and Central Africa ,WFP CONTRIBUTIONS UNIT ,202522-102 ,"480,000.00",
DFID,DFID,03/04/2013,Technical and Advisory Services ,Research and Evidence Division ,IBRD (HSBC)  C/O THE WORLD BANK ,203704-101 ,"465,000.00",
DFID,DFID,03/04/2013,Technical and Advisory Services ,West and Southern Africa ,GRM INTERNATIONAL LTD ,202098-101 ,"333,800.21",
DFID,DFID,03/04/2013,Technical and Advisory Services ,West and Southern Africa ,ITAD LTD ,202482-102 ,"170,369.00",
DFID,DFID,03/04/2013,Aid Programme - Joint programme contribution ,Middle East & North Africa Division (MENAD) ,The Representative office of Norway ,201812-101 ,"116,490.00",
DFID,DFID,03/04/2013,Aid Programme - Voluntary contributions ,Policy Division ,EITI Secretariat ,113050-102 ,"100,000.00",
DFID,DFID,03/04/2013,Technical and Advisory Services ,West and Southern Africa ,DAI Europe ,201958-102 ,"91,366.17",
DFID,DFID,03/04/2013,Technical and Advisory Services ,Middle East & North Africa Division (MENAD) ,OXFORD POLICY MANAGEMENT ,202241-104 ,"75,750.03",
DFID,DFID,03/04/2013,Technical and Advisory Services ,Western Asia and Stabilisation Division ,Supplier Name withheld ,200970-101 ,"43,047.34",
DFID,DFID,03/04/2013,Data Network - land lines ,Business Solutions Division Level ,CABLE & WIRELESS COMMUN ,200002-185 ,"79,888.71",Monthly (ECHO) Data Link Overseas land line costs
DFID,DFID,03/04/2013,Technical and Advisory Services ,Western Asia and Stabilisation Division ,Supplier Name withheld ,200970-101 ,"34,437.88",
DFID,DFID,03/04/2013,Technical and Advisory Services ,West and Southern Africa ,SEARCH FOR COMMON GROUND ,200856-103 ,"32,830.00",
DFID,DFID,03/04/2013,Technical and Advisory Services ,East and Central Africa ,ATOS CONSULTING LIMITED ,113400-103 ,"32,131.72",
DFID,DFID,03/04/2013,Data Network - land lines ,Business Solutions Division Level ,CABLE & WIRELESS COMMUN ,203329-103 ,"200,831.70",Data/Broadband/Telecomms services for dfid overseas offices
DFID,DFID,03/04/2013,Aid Programme - Accountable Grant Payments ,Middle East & North Africa Division (MENAD) ,Business Development Center ,203236-106 ,"25,729.05",
DFID,DFID,03/04/2013,Technical and Advisory Services ,East and Central Africa ,CHARLES KENDALL & PARTNERS LIMITED (PROCUREMENT) ,202513-101 ,"23,568.91",
DFID,DFID,03/04/2013,Technical and Advisory Services ,East and Central Africa ,CHARLES KENDALL & PARTNERS LIMITED (PROCUREMENT) ,202513-101 ,"23,280.54",
DFID,DFID,03/04/2013,Technical and Advisory Services ,Western Asia and Stabilisation Division ,COFFEY INTERNATIONAL DEVELOPMENT LTD ,202495-101 ,"22,290.00",
DFID,DFID,03/04/2013,Technical and Advisory Services ,Asia  Caribbean and Overseas Territories ,Institute for Collaborative Development ,202123-105 ,"20,629.20",
DFID,DFID,03/04/2013,Technical and Advisory Services ,Western Asia and Stabilisation Division ,Supplier Name withheld ,200970-101 ,"20,361.98",
DFID,DFID,03/04/2013,Data Network - land lines ,Business Solutions Division Level ,CABLE & WIRELESS COMMUN ,200002-185 ,"18,543.90",
DFID,DFID,03/04/2013,Repairs  Maintenance and Alterations – Other Building Costs ,Human Resources Security & Facilities Division ,HUNTERS CONTRACTS (SCOTLAND) LTD ,100106-101 ,"17,710.50",
DFID,DFID,03/04/2013,Technical and Advisory Services ,West and Southern Africa ,HTSPE LTD ,202541-105 ,"17,350.18",
DFID,DFID,03/04/2013,Technical and Advisory Services ,Western Asia and Stabilisation Division ,Supplier Name withheld ,200970-101 ,"14,253.38",
DFID,DFID,03/04/2013,Repairs  Maintenance and Alterations – Other Building Costs ,Human Resources Security & Facilities Division ,HUNTERS CONTRACTS (SCOTLAND) LTD ,100106-101 ,"14,245.53",
DFID,DFID,03/04/2013,Technical and Advisory Services ,East and Central Africa ,DataVision International  Limited ,202593-101 ,"13,177.78",
DFID,DFID,03/04/2013,Telephone Usage & services ,Business Solutions Division Level ,CABLE & WIRELESS COMMUN ,200002-185 ,"13,067.48",
DFID,DFID,03/04/2013,Secure staff Accommodation ,West and Southern Africa ,Supplier Name withheld ,101610-101 ,"9,973.67",
DFID,DFID,03/04/2013,Recruitment costs ,Human Resources Security & Facilities Division ,MTB CONSULTING ,100269-130 ,"7,211.52",
DFID,DFID,03/04/2013,Relocation costs ,West and Southern Africa ,PICKFORDS LTD ,101629-101 ,"6,958.13",
DFID,DFID,03/04/2013,Telephone Usage & services ,Business Solutions Division Level ,CABLE & WIRELESS COMMUN ,203329-103 ,"6,731.74",
DFID,DFID,03/04/2013,Technical and Advisory Services ,Policy Division ,HTSPE LTD ,202650-102 ,"6,210.00",
DFID,DFID,03/04/2013,Training Providers/Facilitation Services ,Research and Evidence Division ,HTSPE LTD ,202333-104 ,"5,738.76",
DFID,DFID,03/04/2013,Repairs  Maintenance and Alterations – Other Building Costs ,Human Resources Security & Facilities Division ,MITIE Technical Facilities Management Ltd ,100106-101 ,"4,533.10",
DFID,DFID,03/04/2013,Storage & Distribution costs ,Western Asia and Stabilisation Division ,CROWN RELOCATIONS  UK ,101624-101 ,"3,794.59",
DFID,DFID,03/04/2013,Aid Programme - Accountable Grant Payments ,Policy Division ,Recipient name withheld ,201086-104 ,"3,656.59",
DFID,DFID,03/04/2013,Repairs  Maintenance and Alterations – Other Building Costs ,Human Resources Security & Facilities Division ,MITIE Technical Facilities Management Ltd ,203717-101 ,"3,445.16",
DFID,DFID,03/04/2013,Technical and Advisory Services ,Top Management Group ,Cabinet Office RM Shared Services ,100232-102 ,"3,300.00",
DFID,DFID,03/04/2013,Technical and Advisory Services ,Asia  Caribbean and Overseas Territories ,MR  G K  PAYNE ,114168-101 ,"2,940.00",
DFID,DFID,03/04/2013,Data Network - land lines ,Business Solutions Division Level ,CABLE & WIRELESS COMMUN ,200002-185 ,"2,707.34",
DFID,DFID,03/04/2013,Relocation costs ,Finance and Corporate Performance Division ,Recipient name withheld ,202836-101 ,"2,500.00",
DFID,DFID,03/04/2013,Repairs  Maintenance and Alterations – Other Building Costs ,Human Resources Security & Facilities Division ,MITIE Technical Facilities Management Ltd ,100106-101 ,"1,399.66",
DFID,DFID,03/04/2013,Contract & Agency Staff ,Internal Audit ,Hays Specialist Recruitment Ltd ,100121-101 ,"1,276.52",
DFID,DFID,03/04/2013,Contract & Agency Staff ,Finance and Corporate Performance Division ,Search Consultancy Ltd ,100201-101 ,"1,200.00",
DFID,DFID,03/04/2013,Contract & Agency Staff ,Human Resources Security & Facilities Division ,Anderson Knight Ltd ,100270-102 ,"1,116.91",
DFID,DFID,03/04/2013,Legal costs ,Finance and Corporate Performance Division ,MICHELMORES SOLICITORS ,100008-101 ,"1,002.17",
DFID,DFID,03/04/2013,Hostile Environment Training ,Policy Division ,Pilgrims Group ,202419-104 ,962.57,
DFID,DFID,03/04/2013,Air fares ,East and Central Africa ,SATGURU TRAVEL & TOURS SERVICE ,101628-101 ,928.90,
DFID,DFID,03/04/2013,Facilities Management payments ,West and Southern Africa ,Hema Trading ,101629-101 ,917.68,
DFID,DFID,03/04/2013,Training - Course Fees ,Internal Audit ,DURHAM UNIVERSITY ,100121-101 ,877.00,
DFID,DFID,03/04/2013,Training - Course Fees ,Policy Division ,INSIGHTS LEARNING & DEVELOPMENT LTD ,100191-101 ,828.00,
DFID,DFID,03/04/2013,Contract & Agency Staff ,Finance and Corporate Performance Division ,Hays Specialist Recruitment Ltd ,100201-101 ,825.00,
DFID,DFID,03/04/2013,Hotels - Accommodation only ,Conflict Humanitarian and Security Division ,Recipient name withheld ,100049-101 ,794.18,
DFID,DFID,03/04/2013,Repairs  Maintenance and Alterations – Other Building Costs ,West and Southern Africa ,CashBuild Lilongwe ,101618-101 ,783.25,
DFID,DFID,03/04/2013,Training - Course Fees ,East and Central Africa ,INSIGHTS LEARNING & DEVELOPMENT LTD ,101625-104 ,745.20,
DFID,DFID,03/04/2013,Training - Course Fees ,East and Central Africa ,INSIGHTS LEARNING & DEVELOPMENT LTD ,101625-102 ,745.20,
DFID,DFID,03/04/2013,Generators & spares ,West and Southern Africa ,Oduntor C.Wilson ,101629-101 ,692.33,
DFID,DFID,03/04/2013,Training - Course Fees ,East and Central Africa ,INSIGHTS LEARNING & DEVELOPMENT LTD ,100016-106 ,662.40,
DFID,DFID,03/04/2013,Hotels - Accommodation only ,Conflict Humanitarian and Security Division ,Recipient name withheld ,100049-101 ,623.77,
DFID,DFID,03/04/2013,Data Network - land lines ,Business Solutions Division Level ,CABLE & WIRELESS COMMUN ,203329-103 ,611.50,
DFID,DFID,03/04/2013,Training - Course Fees ,East and Central Africa ,INSIGHTS LEARNING & DEVELOPMENT LTD ,101625-103 ,579.60,
DFID,DFID,03/04/2013,Subscriptions ,Top Management Group ,THE STATIONERY OFFICE LIMITED ,100232-109 ,578.50,
DFID,DFID,03/04/2013,Technical and Advisory Services ,Research and Evidence Division ,UNITED KINGDOM EVALUATION SOCIETY ,202444-101 ,570.00,
DFID,DFID,03/04/2013,Subscriptions ,Top Management Group ,DODS ,100232-109 ,520.00,
DFID,DFID,03/04/2013,Repairs  Maintenance and Alterations – Other Building Costs ,West and Southern Africa ,British High Commission ,101618-101 ,502.89,
DFID,DFID,04/04/2013,Aid Programme - Joint programme contribution ,Middle East & North Africa Division (MENAD) , Social Fund for Development  ,201427-101 ,"6,250,000.00",
DFID,DFID,04/04/2013,Aid Programme - Trust Funds contributions ,East and Central Africa ,NEPAD REGIONAL INTEGRATION AND TRADE DEPARTMENT ,202579-102 ,"3,000,000.00",
DFID,DFID,04/04/2013,Aid Programme - Joint programme contribution ,Policy Division ,BILL & MELINDA GATES FOUNDATION (USD) ,203324-102 ,"1,125,831.71",
DFID,DFID,04/04/2013,Secure staff Accommodation ,West and Southern Africa ,Supplier Name withheld ,101629-101 ,"25,270.00",Secure overseas staff Accommodation costs � Sierra Leone and Liberia 
DFID,DFID,04/04/2013,Technical and Advisory Services ,Western Asia and Stabilisation Division ,Supplier Name withheld ,114488-101 ,"565,930.00",
DFID,DFID,04/04/2013,Contraceptives ,East and Central Africa ,IPA-International Procurement Agency (BV) ,202420-103 ,"552,130.60",
DFID,DFID,04/04/2013,Technical and Advisory Services ,Human Resources Security & Facilities Division ,TURNER & TOWNSEND ,203717-101 ,"27,677.44",Project Management Fees - 22 Whitehall 
DFID,DFID,04/04/2013,Aid Programme - Partnership Programme Arrangements ,Policy Division ,AVOCATS SANS FRONTIERES ,202739-101 ,"362,612.75",
DFID,DFID,04/04/2013,Aid Programme - Accountable Grant Payments ,Western Asia and Stabilisation Division ,Supplier Name withheld ,200898-106 ,"255,814.00",
DFID,DFID,04/04/2013,Technical and Advisory Services ,East and Central Africa ,ATOS CONSULTING LIMITED ,203542-102 ,"200,960.97",
DFID,DFID,04/04/2013,Technical and Advisory Services ,Western Asia and Stabilisation Division ,McKinsey & Co  Inc UK ,203297-101 ,"134,065.00",
DFID,DFID,04/04/2013,Technical and Advisory Services ,Policy Division ,IMPERIAL COLLEGE LONDON ,200706-101 ,"76,549.81",
DFID,DFID,04/04/2013,Technical and Advisory Services ,Policy Division ,PRICEWATERHOUSECOOPERS ,202648-101 ,"71,667.60",
DFID,DFID,04/04/2013,Technical and Advisory Services ,West and Southern Africa ,CHARLES KENDALL & PARTNERS LIMITED (PROCUREMENT) ,113961-106 ,"53,496.64",
DFID,DFID,04/04/2013,Aid Programme - Contributions to Debt Relief ,International Finance Division ,Government of the Republic of Vanuatu ,200188-104 ,"43,636.00",
DFID,DFID,04/04/2013,Technical and Advisory Services ,East and Central Africa ,KPMG EAST AFRICA LTD ,201866-109 ,"25,741.38",
DFID,DFID,04/04/2013,Research & Development costs ,Research and Evidence Division ,Adaptive Thinking Ltd ,203812-101 ,"23,347.43",
DFID,DFID,04/04/2013,Technical and Advisory Services ,East and Central Africa ,Neil Pogorelsky ,200171-104 ,"14,250.00",
DFID,DFID,04/04/2013,Technical and Advisory Services ,West and Southern Africa ,Supplier name withheld ,101610-101 ,"9,000.00",
DFID,DFID,04/04/2013,Professional member subscriptions ,Human Resources Security & Facilities Division ,ECA INTERNATIONAL ,100269-135 ,"8,586.00",
DFID,DFID,04/04/2013,Training - Course Fees ,West and Southern Africa ,THE SPRINGFIELD CENTRE ,101610-101 ,"3,960.00",
DFID,DFID,04/04/2013,Technical and Advisory Services ,International Finance Division ,GBRW LIMITED ,100111-101 ,"2,956.50",
DFID,DFID,04/04/2013,Technical and Advisory Services ,West and Southern Africa ,CHARLES KENDALL & PARTNERS LIMITED (PROCUREMENT) ,113961-106 ,"2,674.83",
DFID,DFID,04/04/2013,Recruitment costs ,West and Southern Africa ,Groupe JA - SIFIJA ,101610-101 ,"2,483.71",
DFID,DFID,04/04/2013,Computer hardware maintenance ,Business Solutions Division Level ,Rufus Leonard Ltd ,200002-196 ,"2,316.00",
DFID,DFID,04/04/2013,UK Staff overseas - Transfer costs ,Asia  Caribbean and Overseas Territories ,CROWN RELOCATIONS  UK ,101604-101 ,"1,641.24",
DFID,DFID,04/04/2013,Contract & Agency Staff ,International Finance Division ,Hays Specialist Recruitment Ltd ,100120-101 ,"1,593.60",
DFID,DFID,04/04/2013,Air fares ,Human Resources Security & Facilities Division ,Supplier name withheld ,100269-128 ,836.10,
DFID,DFID,04/04/2013,Training - Course Fees ,Policy Division ,Pilgrims Group ,100277-104 ,802.14,
DFID,DFID,04/04/2013,Hostile Environment Training ,East and Central Africa ,Pilgrims Group ,101630-101 ,802.14,
DFID,DFID,04/04/2013,Vehicle Hire Charges ,East and Central Africa ,ETHIODER Pvt. Ltd.Co. Tour Operators ,101612-101 ,640.31,
DFID,DFID,04/04/2013,Hotels - Accommodation only ,West and Southern Africa ,Recipient name withheld ,101610-101 ,572.00,
DFID,DFID,04/04/2013,Hotels - Accommodation only ,Policy Division ,Recipient name withheld ,200659-115 ,536.37,
DFID,DFID,05/04/2013,Aid Programme - Poverty Reduction Budget Support ,Western Asia and Stabilisation Division ,STATE BANK OF PAKISTAN  ,202697-101 ,"20,000,000.00",
DFID,DFID,05/04/2013,Aid Programme - Other Financial Aid to Government ,Western Asia and Stabilisation Division ,STATE BANK OF PAKISTAN  ,202697-108 ,"5,000,000.00",
DFID,DFID,05/04/2013,Aid Programme - Core contributions ,Research and Evidence Division ,MEDICAL RESEARCH COUNCIL ,201267-101 ,"2,148,610.20",
DFID,DFID,05/04/2013,Aid Programme - Core contributions ,Research and Evidence Division ,MEDICAL RESEARCH COUNCIL ,201267-101 ,"1,154,686.00",
DFID,DFID,05/04/2013,Aid Programme - Trust Funds contributions ,Policy Division ,IBRD (HSBC)  C/O THE WORLD BANK ,201656-101 ,"1,000,000.00",
DFID,DFID,05/04/2013,Aid Programme - Partnership Programme Arrangements ,Policy Division ,FARM-Africa ,202624-101 ,"769,567.50",
DFID,DFID,05/04/2013,Aid Programme - Joint programme contribution ,East and Central Africa ,IBRD HSBC T ,203574-105 ,"700,000.00",
DFID,DFID,05/04/2013,Aid Programme - Trust Funds contributions ,Policy Division ,IBRD HSBC T ,202737-102 ,"500,000.00",
DFID,DFID,05/04/2013,Research & Development costs ,Research and Evidence Division ,Crown Agents Bank ,114010-102 ,"368,665.41",
DFID,DFID,05/04/2013,Research & Development costs ,Research and Evidence Division ,Forschungsinstitut zur Zukunft der Arbeit GmbH ,202568-101 ,"274,419.97",
DFID,DFID,05/04/2013,Aid Programme - Accountable Grant Payments ,Middle East & North Africa Division (MENAD) ,CHF INTERNATIONAL ,114325-103 ,"203,765.55",
DFID,DFID,05/04/2013,Aid Programme - Voluntary contributions ,West and Southern Africa ,COMESA (GBP) ,201791-106 ,"203,000.00",
DFID,DFID,05/04/2013,Aid Programme - Accountable Grant Payments ,East and Central Africa ,African Security Sector Network (ASSN) ,200329-111 ,"189,742.70",
DFID,DFID,05/04/2013,Technical and Advisory Services ,West and Southern Africa ,GRM INTERNATIONAL LTD ,202098-101 ,"161,699.64",
DFID,DFID,05/04/2013,Hardware -Laptop PCs ,Business Solutions Division Level ,XMA Limited ,200003-154 ,"132,000.00",
DFID,DFID,05/04/2013,Aid Programme - Accountable Grant Payments ,Communications Division ,PEAS (Promoting Equality in African Schools) ,202197-101 ,"86,374.00",
DFID,DFID,05/04/2013,Technical and Advisory Services ,Policy Division ,PRICEWATERHOUSECOOPERS ,202648-101 ,"80,467.20",
DFID,DFID,05/04/2013,Technical and Advisory Services ,West and Southern Africa ,PKF (UK) LLP ,104600-105 ,"70,812.50",
DFID,DFID,05/04/2013,Aid Programme - Joint programme contribution ,East and Central Africa ,IBRD HSBC T ,203574-108 ,"50,000.00",
DFID,DFID,05/04/2013,Aid Programme - Humanitarian Material Relief Assistance and Services ,Middle East & North Africa Division (MENAD) ,International Health Partners (UK) Ltd ,203783-102 ,"50,000.00",
DFID,DFID,05/04/2013,Technical and Advisory Services ,Conflict Humanitarian and Security Division ,PRICEWATERHOUSECOOPERS ,203249-103 ,"46,754.40",
DFID,DFID,05/04/2013,Hardware -monitors ,Business Solutions Division Level ,Stone Computers Ltd ,200003-154 ,"40,050.00",
DFID,DFID,05/04/2013,Technical and Advisory Services ,Conflict Humanitarian and Security Division , Overseas Development Institute ,203593-101 ,"37,139.18",
DFID,DFID,05/04/2013,Computer hardware maintenance ,Business Solutions Division Level ,COMPUTACENTER (UK) LTD ,200002-135 ,"370,742.40",Computer licence.  Support and Maintenance 2013 to 2016 
DFID,DFID,05/04/2013,Furniture & Fittings ,Human Resources Security & Facilities Division ,HUNTERS CONTRACTS (SCOTLAND) LTD ,100007-101 ,"25,932.00",
DFID,DFID,05/04/2013,Technical and Advisory Services ,Research and Evidence Division ,COFFEY INTERNATIONAL DEVELOPMENT LTD ,203784-101 ,"23,728.00",
DFID,DFID,05/04/2013,Aid Programme - Accountable Grant Payments ,Policy Division ,Global Canopy Programme ,201724-114 ,"20,591.88",
DFID,DFID,05/04/2013,Contraceptives ,East and Central Africa ,IPA-International Procurement Agency (BV) ,202420-103 ,"16,287.85",
DFID,DFID,05/04/2013,Technical and Advisory Services ,East and Central Africa ,IPA-International Procurement Agency (BV) ,113400-111 ,"13,454.87",
DFID,DFID,05/04/2013,Technical and Advisory Services ,International Relations Division ,Data GISconsulting Sh.P.K. ,202961-101 ,"12,577.95",
DFID,DFID,05/04/2013,Technical and Advisory Services ,International Relations Division ,Data GISconsulting Sh.P.K. ,202961-101 ,"12,574.98",
DFID,DFID,05/04/2013,Technical and Advisory Services ,Research and Evidence Division ,RS DREW LTD ,203069-105 ,"6,788.90",
DFID,DFID,05/04/2013,Storage & Distribution costs ,West and Southern Africa ,PICKFORDS LTD ,101629-101 ,"5,733.68",
DFID,DFID,05/04/2013,Technical and Advisory Services ,Western Asia and Stabilisation Division ,Supplier name withheld ,203341-102 ,"4,284.90",
DFID,DFID,05/04/2013,Recruitment costs ,Human Resources Security & Facilities Division ,Syme Drummond Ltd ,100269-158 ,"3,494.16",
DFID,DFID,05/04/2013,Furniture & Fittings ,Human Resources Security & Facilities Division ,HUNTERS CONTRACTS (SCOTLAND) LTD ,100007-102 ,"1,890.00",
DFID,DFID,05/04/2013,Technical and Advisory Services ,Business Solutions Division Level ,Parity Resources ,200005-111 ,"1,741.02",
DFID,DFID,05/04/2013,Technical and Advisory Services ,Business Solutions Division Level ,Parity Resources ,200005-111 ,"1,741.02",
DFID,DFID,05/04/2013,Technical and Advisory Services ,Asia  Caribbean and Overseas Territories ,KEIKO TSUNEKAWA BUTTERWORTH ,201645-109 ,"1,520.00",
DFID,DFID,05/04/2013,Training - Course Fees ,Finance and Corporate Performance Division ,QA Limited ,200173-102 ,"1,460.00",
DFID,DFID,05/04/2013,Contract & Agency Staff ,Finance and Corporate Performance Division ,Hays Specialist Recruitment Ltd ,100201-101 ,"1,152.00",
DFID,DFID,05/04/2013,Postage Costs ,Human Resources Security & Facilities Division ,Royal Mail Courier Services Ltd ,201157-101 ,"1,125.00",
DFID,DFID,05/04/2013,Contract & Agency Staff ,Finance and Corporate Performance Division ,MICHAEL PAGE INTERNATIONAL RECRUITMENT LIMITED ,100201-101 ,907.99,
DFID,DFID,05/04/2013,Air fares ,East and Central Africa ,SATGURU TRAVEL & TOURS SERVICE ,100212-101 ,861.57,
DFID,DFID,05/04/2013,Training - Travel & Subsistence ,Research and Evidence Division ,London School of Hygiene and Tropical Medicine ,202334-103 ,808.50,
DFID,DFID,05/04/2013,Hostile Environment Training ,Asia  Caribbean and Overseas Territories ,Pilgrims Group ,101611-101 ,802.14,
DFID,DFID,05/04/2013,Training Providers/Facilitation Services ,Western Asia and Stabilisation Division ,Supplier Name withheld ,114348-102 ,802.14,
DFID,DFID,05/04/2013,Training Providers/Facilitation Services ,International Finance Division ,EML Learning Ltd. ,202259-101 ,780.00,
DFID,DFID,05/04/2013,Data Network -Satellite ,East and Central Africa ,Ethio Telecom ,202913-104 ,695.76,
DFID,DFID,05/04/2013,Technical and Advisory Services ,East and Central Africa ,IPA-International Procurement Agency (BV) ,113400-111 ,692.93,
DFID,DFID,05/04/2013,Facilities Management payments ,West and Southern Africa ,B & D Consultancy Company Limited ,101613-101 ,628.48,
DFID,DFID,05/04/2013,Office Supplies ,West and Southern Africa ,Office Solutions ,100214-101 ,603.18,
DFID,DFID,05/04/2013,Office Supplies ,West and Southern Africa ,Office Solutions ,101629-101 ,603.18,
DFID,DFID,05/04/2013,Contract & Agency Staff ,Finance and Corporate Performance Division ,Anderson Knight Ltd ,200173-103 ,589.41,
DFID,DFID,06/04/2013,Technical and Advisory Services ,Asia  Caribbean and Overseas Territories ,FOREIGN AND COMMONWEALTH OFFICE (FCO) ,101621-101 ,"1,375.00",
DFID,DFID,06/04/2013,Storage & Distribution costs ,Asia  Caribbean and Overseas Territories ,PICKFORDS LTD ,101621-101 ,"1,132.18",
DFID,DFID,07/04/2013,Generators & spares ,Western Asia and Stabilisation Division ,Supplier Name withheld ,101601-110 ,690.39,
DFID,DFID,08/04/2013,Encashment of Promissory Notes ,International Finance Division ,Asian Development Fund  ,200614-102 ,"4,611,000.00",
DFID,DFID,08/04/2013,Technical and Advisory Services ,West and Southern Africa ,Crown Agents Bank ,201198-101 ,"2,000,000.00",
DFID,DFID,08/04/2013,Encashment of Promissory Notes ,International Finance Division ,Asian Development Fund  ,110992-104 ,"1,969,000.00",
DFID,DFID,08/04/2013,Aid Programme - Accountable Grant Payments ,Middle East & North Africa Division (MENAD) ,Revenue Watch Institute ,203236-111 ,"429,671.90",
DFID,DFID,08/04/2013,Aid Programme - Joint programme contribution ,East and Central Africa ,IBRD (HSBC)  C/O THE WORLD BANK ,200795-103 ,"329,495.00",
DFID,DFID,08/04/2013,Technical and Advisory Services ,Western Asia and Stabilisation Division ,Supplier Name withheld ,202054-102 ,"263,877.33",
DFID,DFID,08/04/2013,Technical and Advisory Services ,East and Central Africa ,Deloitte Consulting Pvt Ltd Co. ,202913-101 ,"199,702.56",
DFID,DFID,08/04/2013,Aid Programme - Joint programme contribution ,Policy Division ,Deutsche Gesellschaft fuer Internationale Zusammenarbeit (GIZ) GmbH ,202957-101 ,"198,392.00",
DFID,DFID,08/04/2013,Aid Programme - Accountable Grant Payments ,West and Southern Africa ,CONCERN WORLDWIDE ,203445-102 ,"112,002.00",
DFID,DFID,08/04/2013,Aid Programme - Accountable Grant Payments ,Asia  Caribbean and Overseas Territories ,INTERNATIONAL INSTITUTE FOR ENVIRO ,114058-106 ,"95,000.00",
DFID,DFID,08/04/2013,Technical and Advisory Services ,Western Asia and Stabilisation Division ,Supplier Name withheld ,114348-102 ,"66,315.17",
DFID,DFID,08/04/2013,Vehicle Repairs & Maintenance ,Western Asia and Stabilisation Division ,Supplier Name withheld ,101601-110 ,"37,315.00",FCO Shared Services Costs - Afghanistan
DFID,DFID,08/04/2013,FCO shared service charges ,Western Asia and Stabilisation Division ,Supplier Name withheld ,100011-110 ,"38,876.00",FCO Shared Services Costs - Afghanistan
DFID,DFID,08/04/2013,Technical and Advisory Services ,Asia  Caribbean and Overseas Territories ,London School of Hygiene and Tropical Medicine ,202783-101 ,"43,096.29",
DFID,DFID,08/04/2013,Technical and Advisory Services ,East and Central Africa ,COFFEY INTERNATIONAL DEVELOPMENT LTD ,202527-110 ,"38,042.07",
DFID,DFID,08/04/2013,Technical and Advisory Services ,Research and Evidence Division ,IOD PARC ,202242-104 ,"33,882.90",
DFID,DFID,08/04/2013,FCO shared service charges ,Western Asia and Stabilisation Division ,Supplier Name withheld ,101601-110 ,"111,748.00",FCO Shared Services Costs - Afghanistan
DFID,DFID,08/04/2013,Technical and Advisory Services ,Research and Evidence Division ,IOD PARC ,202242-104 ,"31,893.00",
DFID,DFID,08/04/2013,Technical and Advisory Services ,East and Central Africa ,COFFEY INTERNATIONAL DEVELOPMENT LTD ,202527-110 ,"11,321.19",
DFID,DFID,08/04/2013,Secure staff Accommodation ,West and Southern Africa ,Supplier Name withheld ,101610-101 ,"11,156.75", 
DFID,DFID,08/04/2013,Secure staff Accommodation ,West and Southern Africa ,Supplier Name withheld ,101610-101 ,"11,154.12",
DFID,DFID,08/04/2013,Secure staff Accommodation ,West and Southern Africa ,Supplier Name withheld ,101610-101 ,"11,152.81",
DFID,DFID,08/04/2013,Secure staff Accommodation ,West and Southern Africa ,Supplier Name withheld ,101610-101 ,"11,151.50",
DFID,DFID,08/04/2013,Secure staff Accommodation ,West and Southern Africa ,Supplier Name withheld ,101610-101 ,"11,074.94",
DFID,DFID,08/04/2013,Secure staff Accommodation ,West and Southern Africa ,Supplier Name withheld ,101610-101 ,"10,937.11",
DFID,DFID,08/04/2013,Consultancy Services ,West and Southern Africa ,MARK MCGIVERN ,101613-101 ,"10,688.22",
DFID,DFID,08/04/2013,Technical and Advisory Services ,West and Southern Africa ,MACRAE MASON DEVELOPMENT ,202678-101 ,"9,595.12",
DFID,DFID,08/04/2013,Aid Programme - Joint programme contribution ,Asia  Caribbean and Overseas Territories ,AUSAID ,203601-106 ,"6,475.00",
DFID,DFID,08/04/2013,Technical and Advisory Services ,East and Central Africa ,HTSPE LTD ,103022-106 ,"6,430.01",
DFID,DFID,08/04/2013,Hardware - printers ,West and Southern Africa ,RICOH South Africa ,101618-101 ,"6,099.76",
DFID,DFID,08/04/2013,Hardware - printers ,West and Southern Africa ,RICOH South Africa ,101618-101 ,"6,099.76",
DFID,DFID,08/04/2013,Technical and Advisory Services ,West and Southern Africa ,HTSPE LTD ,202345-103 ,"5,623.50",
DFID,DFID,08/04/2013,Technical and Advisory Services ,East and Central Africa ,KPMG Kenya ,202994-104 ,"4,788.63",
DFID,DFID,08/04/2013,Air fares ,Western Asia and Stabilisation Division ,Corporate Travel Provider ,100020-101 ,"4,034.25",
DFID,DFID,08/04/2013,Repairs  Maint  Alter - Property & Constrct. Services ,Western Asia and Stabilisation Division ,Supplier Name withheld ,100061-101 ,"3,986.00",
DFID,DFID,08/04/2013,Facilities Management payments ,West and Southern Africa ,Circuit Board (Nig) Ltd ,101622-101 ,"3,887.14",
DFID,DFID,08/04/2013,Technical and Advisory Services ,Research and Evidence Division ,National Council Research ,203339-101 ,"3,734.21",
DFID,DFID,08/04/2013,Oil - Other Utilities ,Western Asia and Stabilisation Division ,Supplier Name withheld ,101601-110 ,"3,726.50",
DFID,DFID,08/04/2013,Oil - Other Utilities ,Human Resources Security & Facilities Division ,Verdo Renewables Ltd ,100106-101 ,"3,200.40",
DFID,DFID,08/04/2013,Storage & Distribution costs ,Asia  Caribbean and Overseas Territories ,CROWN RELOCATIONS  UK ,201739-101 ,"3,117.02",
DFID,DFID,08/04/2013,Air fares ,Top Management Group ,Corporate Travel Provider ,100232-105 ,"3,084.89",
DFID,DFID,08/04/2013,Air fares ,Western Asia and Stabilisation Division ,Recipient name withheld ,101601-110 ,"2,978.00",
DFID,DFID,08/04/2013,Technical and Advisory Services ,Human Resources Security & Facilities Division ,Healix International Limited (Fees) ,202423-101 ,"2,784.39",
DFID,DFID,08/04/2013,Air fares ,Western Asia and Stabilisation Division ,Corporate Travel Provider ,101601-110 ,"2,544.55",
DFID,DFID,08/04/2013,Air fares ,Western Asia and Stabilisation Division ,Corporate Travel Provider ,101601-110 ,"2,540.00",
DFID,DFID,08/04/2013,Hardware - printers ,West and Southern Africa ,RICOH South Africa ,100144-101 ,"2,491.45",
DFID,DFID,08/04/2013,Hardware - printers ,West and Southern Africa ,RICOH South Africa ,100144-101 ,"2,491.45",
DFID,DFID,08/04/2013,Training - Course Fees ,West and Southern Africa ,Communicaid Grp Ltd ,101610-101 ,"2,161.91",
DFID,DFID,08/04/2013,Sundry Building Supplies ,Western Asia and Stabilisation Division ,Supplier Name withheld ,101601-110 ,"2,126.00",
DFID,DFID,08/04/2013,Technical and Advisory Services ,West and Southern Africa ,Futures Group Europe ,202819-102 ,"2,076.60",
DFID,DFID,08/04/2013,Air fares ,Asia  Caribbean and Overseas Territories ,Corporate Travel Provider ,100084-101 ,"1,984.95",
DFID,DFID,08/04/2013,Air fares ,Asia  Caribbean and Overseas Territories ,Corporate Travel Provider ,201739-101 ,"1,940.25",
DFID,DFID,08/04/2013,Air fares ,Asia  Caribbean and Overseas Territories ,Corporate Travel Provider ,201739-101 ,"1,940.25",
DFID,DFID,08/04/2013,Air fares ,Western Asia and Stabilisation Division ,Corporate Travel Provider ,101601-110 ,"1,930.08",
DFID,DFID,08/04/2013,Air fares ,East and Central Africa ,Corporate Travel Provider ,101628-101 ,"1,896.56",
DFID,DFID,08/04/2013,Air fares ,East and Central Africa ,Corporate Travel Provider ,101625-104 ,"1,893.24",
DFID,DFID,08/04/2013,Air fares ,East and Central Africa ,Corporate Travel Provider ,101628-101 ,"1,865.46",
DFID,DFID,08/04/2013,Air fares ,East and Central Africa ,Corporate Travel Provider ,101628-101 ,"1,865.46",
DFID,DFID,08/04/2013,Air fares ,Western Asia and Stabilisation Division ,Corporate Travel Provider ,100011-110 ,"1,848.03",
DFID,DFID,08/04/2013,Air fares ,East and Central Africa ,Corporate Travel Provider ,101625-104 ,"1,773.24",
DFID,DFID,08/04/2013,Hotels - Accommodation only ,Human Resources Security & Facilities Division ,Corporate Travel Provider ,100269-128 ,"1,719.43",
DFID,DFID,08/04/2013,Air fares ,Western Asia and Stabilisation Division ,Corporate Travel Provider ,101624-101 ,"1,706.65",
DFID,DFID,08/04/2013,Air fares ,Western Asia and Stabilisation Division ,Corporate Travel Provider ,101601-110 ,"1,695.27",
DFID,DFID,08/04/2013,Subscriptions ,Communications Division ,Durrants lTD ,100197-101 ,"1,690.91",
DFID,DFID,08/04/2013,Air fares ,Top Management Group ,Corporate Travel Provider ,100232-105 ,"1,642.45",
DFID,DFID,08/04/2013,Air fares ,West and Southern Africa ,Corporate Travel Provider ,101631-101 ,"1,585.90",
DFID,DFID,08/04/2013,Air fares ,Research and Evidence Division ,Corporate Travel Provider ,100039-102 ,"1,574.92",
DFID,DFID,08/04/2013,Air fares ,Western Asia and Stabilisation Division ,Corporate Travel Provider ,100011-110 ,"1,571.30",
DFID,DFID,08/04/2013,Air fares ,Conflict Humanitarian and Security Division ,Corporate Travel Provider ,100049-101 ,"1,472.41",
DFID,DFID,08/04/2013,Air fares ,Western Asia and Stabilisation Division ,Corporate Travel Provider ,100020-101 ,"1,469.00",
DFID,DFID,08/04/2013,Air fares ,Policy Division ,Corporate Travel Provider ,202373-105 ,"1,396.35",
DFID,DFID,08/04/2013,Air fares ,Research and Evidence Division ,Corporate Travel Provider ,202392-102 ,"1,288.51",
DFID,DFID,08/04/2013,Air fares ,Top Management Group ,Corporate Travel Provider ,100232-106 ,"1,250.45",
DFID,DFID,08/04/2013,Air fares ,Top Management Group ,Corporate Travel Provider ,100232-106 ,"1,250.45",
DFID,DFID,08/04/2013,Oil - Other Utilities ,Western Asia and Stabilisation Division ,Supplier Name withheld ,100011-110 ,"1,242.17",
DFID,DFID,08/04/2013,Air fares ,Western Asia and Stabilisation Division ,Corporate Travel Provider ,101624-101 ,"1,204.87",
DFID,DFID,08/04/2013,Air fares ,Western Asia and Stabilisation Division ,Corporate Travel Provider ,101624-101 ,"1,204.87",
DFID,DFID,08/04/2013,Technical and Advisory Services ,East and Central Africa ,Healix International Limited (Fees) ,202586-101 ,"1,193.30",
DFID,DFID,08/04/2013,Air fares ,Western Asia and Stabilisation Division ,Corporate Travel Provider ,101624-101 ,"1,168.30",
DFID,DFID,08/04/2013,Generators & spares ,West and Southern Africa ,Enjay Technical Services Limited ,101622-101 ,"1,163.33",
DFID,DFID,08/04/2013,Air fares ,Western Asia and Stabilisation Division ,Corporate Travel Provider ,100011-110 ,"1,160.60",
DFID,DFID,08/04/2013,Printer Consumables ,West and Southern Africa ,RICOH South Africa ,101618-101 ,"1,142.12",
DFID,DFID,08/04/2013,Air fares ,East and Central Africa ,Corporate Travel Provider ,101625-105 ,"1,127.70",
DFID,DFID,08/04/2013,Air fares ,Policy Division ,Corporate Travel Provider ,100277-101 ,"1,127.30",
DFID,DFID,08/04/2013,Air fares ,East and Central Africa ,Corporate Travel Provider ,101625-101 ,"1,089.88",
DFID,DFID,08/04/2013,Air fares ,East and Central Africa ,Corporate Travel Provider ,101628-101 ,"1,080.82",
DFID,DFID,08/04/2013,Air fares ,Western Asia and Stabilisation Division ,Corporate Travel Provider ,100020-101 ,"1,063.09",
DFID,DFID,08/04/2013,Air fares ,Policy Division ,Corporate Travel Provider ,202373-105 ,"1,060.58",
DFID,DFID,08/04/2013,Air fares ,Policy Division ,Corporate Travel Provider ,202419-102 ,"1,054.35",
DFID,DFID,08/04/2013,Air fares ,Research and Evidence Division ,Corporate Travel Provider ,202392-102 ,"1,040.51",
DFID,DFID,08/04/2013,Hotels - Accommodation only ,Asia  Caribbean and Overseas Territories ,Corporate Travel Provider ,101636-101 ,"1,004.08",
DFID,DFID,08/04/2013,Hotels - Accommodation only ,East and Central Africa ,Corporate Travel Provider ,101612-101 ,"1,002.85",
DFID,DFID,08/04/2013,Air fares ,East and Central Africa ,Corporate Travel Provider ,202594-101 ,995.56,
DFID,DFID,08/04/2013,Air fares ,Internal Audit ,Corporate Travel Provider ,100121-101 ,963.01,
DFID,DFID,08/04/2013,Staff Travel - Air Fares ,West and Southern Africa ,Corporate Travel Provider ,201854-101 ,937.05,
DFID,DFID,08/04/2013,Air fares ,Asia  Caribbean and Overseas Territories ,Corporate Travel Provider ,101603-101 ,933.87,
DFID,DFID,08/04/2013,Air fares ,Policy Division ,Corporate Travel Provider ,100277-102 ,929.90,
DFID,DFID,08/04/2013,Air fares ,East and Central Africa ,Corporate Travel Provider ,101612-101 ,924.24,
DFID,DFID,08/04/2013,Air fares ,Western Asia and Stabilisation Division ,Corporate Travel Provider ,100011-110 ,916.08,
DFID,DFID,08/04/2013,Air fares ,Conflict Humanitarian and Security Division ,Corporate Travel Provider ,202410-101 ,911.11,
DFID,DFID,08/04/2013,Air fares ,West and Southern Africa ,Corporate Travel Provider ,101613-101 ,897.20,
DFID,DFID,08/04/2013,Air fares ,West and Southern Africa ,Corporate Travel Provider ,101613-101 ,897.20,
DFID,DFID,08/04/2013,Air fares ,International Finance Division ,Corporate Travel Provider ,202259-101 ,891.65,
DFID,DFID,08/04/2013,Air fares ,Communications Division ,Corporate Travel Provider ,100197-101 ,888.15,
DFID,DFID,08/04/2013,Air fares ,Policy Division ,Corporate Travel Provider ,202373-105 ,875.05,
DFID,DFID,08/04/2013,Air fares ,West and Southern Africa ,Corporate Travel Provider ,100068-101 ,873.30,
DFID,DFID,08/04/2013,Air fares ,Western Asia and Stabilisation Division ,Corporate Travel Provider ,201699-101 ,872.95,
DFID,DFID,08/04/2013,Air fares ,Western Asia and Stabilisation Division ,Corporate Travel Provider ,100020-101 ,872.11,
DFID,DFID,08/04/2013,Air fares ,Western Asia and Stabilisation Division ,Corporate Travel Provider ,101601-110 ,865.59,
DFID,DFID,08/04/2013,Air fares ,Middle East & North Africa Division (MENAD) ,Corporate Travel Provider ,100307-101 ,847.15,
DFID,DFID,08/04/2013,Air fares ,West and Southern Africa ,Corporate Travel Provider ,101613-101 ,845.74,
DFID,DFID,08/04/2013,Air fares ,Policy Division ,Corporate Travel Provider ,202373-105 ,840.05,
DFID,DFID,08/04/2013,Air fares ,Western Asia and Stabilisation Division ,Corporate Travel Provider ,101601-110 ,835.00,
DFID,DFID,08/04/2013,Air fares ,Policy Division ,Corporate Travel Provider ,100276-104 ,810.61,
DFID,DFID,08/04/2013,Air fares ,West and Southern Africa ,Supplier Name withheld ,101622-101 ,787.75,
DFID,DFID,08/04/2013,Air fares ,Policy Division ,Corporate Travel Provider ,100277-102 ,787.35,
DFID,DFID,08/04/2013,Air fares ,Asia  Caribbean and Overseas Territories ,Corporate Travel Provider ,107467-105 ,784.35,
DFID,DFID,08/04/2013,Air fares ,International Finance Division ,Corporate Travel Provider ,202391-101 ,770.15,
DFID,DFID,08/04/2013,Hostile Environment Training ,West and Southern Africa ,Pilgrims Group ,100068-101 ,760.97,
DFID,DFID,08/04/2013,Air fares ,West and Southern Africa ,Corporate Travel Provider ,101631-101 ,758.32,
DFID,DFID,08/04/2013,Air fares ,Policy Division ,Corporate Travel Provider ,202373-104 ,747.12,
DFID,DFID,08/04/2013,Air fares ,Asia  Caribbean and Overseas Territories ,Corporate Travel Provider ,107467-105 ,737.20,
DFID,DFID,08/04/2013,Air fares ,East and Central Africa ,Corporate Travel Provider ,202594-101 ,705.50,
DFID,DFID,08/04/2013,Air fares ,Policy Division ,Corporate Travel Provider ,202373-104 ,704.35,
DFID,DFID,08/04/2013,Air fares ,Western Asia and Stabilisation Division ,Corporate Travel Provider ,101601-110 ,700.79,
DFID,DFID,08/04/2013,Air fares ,West and Southern Africa ,Corporate Travel Provider ,101620-101 ,695.10,
DFID,DFID,08/04/2013,Air fares ,West and Southern Africa ,Corporate Travel Provider ,101620-101 ,695.10,
DFID,DFID,08/04/2013,Air fares ,Business Solutions Division Level ,Corporate Travel Provider ,200001-101 ,691.94,
DFID,DFID,08/04/2013,Air fares ,Business Solutions Division Level ,Corporate Travel Provider ,200001-101 ,691.94,
DFID,DFID,08/04/2013,Hotels - Accommodation only ,Conflict Humanitarian and Security Division ,Corporate Travel Provider ,100049-101 ,674.54,
DFID,DFID,08/04/2013,Hotels - Accommodation only ,East and Central Africa ,Corporate Travel Provider ,200352-101 ,674.54,
DFID,DFID,08/04/2013,Air fares ,Policy Division ,Corporate Travel Provider ,202419-104 ,668.64,
DFID,DFID,08/04/2013,Air fares ,Finance and Corporate Performance Division ,Corporate Travel Provider ,100201-101 ,664.75,
DFID,DFID,08/04/2013,Air fares ,West and Southern Africa ,Corporate Travel Provider ,101620-101 ,664.75,
DFID,DFID,08/04/2013,Air fares ,West and Southern Africa ,Corporate Travel Provider ,101620-101 ,664.75,
DFID,DFID,08/04/2013,Air fares ,Policy Division ,Corporate Travel Provider ,100275-101 ,655.91,
DFID,DFID,08/04/2013,Facilities Management payments ,West and Southern Africa ,Circuit Board (Nig) Ltd ,100152-101 ,654.69,
DFID,DFID,08/04/2013,Air fares ,West and Southern Africa ,Corporate Travel Provider ,101620-101 ,650.85,
DFID,DFID,08/04/2013,Air fares ,East and Central Africa ,Corporate Travel Provider ,101635-101 ,648.91,
DFID,DFID,08/04/2013,Air fares ,Asia  Caribbean and Overseas Territories ,Corporate Travel Provider ,201739-101 ,648.10,
DFID,DFID,08/04/2013,Air fares ,Asia  Caribbean and Overseas Territories ,Corporate Travel Provider ,201739-101 ,648.10,
DFID,DFID,08/04/2013,Training Providers/Facilitation Services ,Western Asia and Stabilisation Division ,Supplier Name withheld ,101601-110 ,648.00,
DFID,DFID,08/04/2013,Air fares ,West and Southern Africa ,Corporate Travel Provider ,100189-101 ,634.31,
DFID,DFID,08/04/2013,Hotels - Accommodation only ,Business Solutions Division Level ,Corporate Travel Provider ,200001-101 ,629.51,
DFID,DFID,08/04/2013,Hotels - Accommodation only ,Middle East & North Africa Division (MENAD) ,Recipient name withheld ,101619-101 ,626.69,
DFID,DFID,08/04/2013,Hotels - Accommodation only ,Human Resources Security & Facilities Division ,Corporate Travel Provider ,100269-128 ,625.42,
DFID,DFID,08/04/2013,Air fares ,Asia  Caribbean and Overseas Territories ,Corporate Travel Provider ,201652-101 ,614.94,
DFID,DFID,08/04/2013,Air fares ,Western Asia and Stabilisation Division ,Corporate Travel Provider ,101601-110 ,613.20,
DFID,DFID,08/04/2013,Air fares ,Western Asia and Stabilisation Division ,Corporate Travel Provider ,100011-110 ,609.70,
DFID,DFID,08/04/2013,Air fares ,Middle East & North Africa Division (MENAD) ,Corporate Travel Provider ,101619-101 ,608.65,
DFID,DFID,08/04/2013,Air fares ,Business Solutions Division Level ,Corporate Travel Provider ,200001-101 ,608.44,
DFID,DFID,08/04/2013,Air fares ,International Relations Division ,Corporate Travel Provider ,100262-101 ,608.05,
DFID,DFID,08/04/2013,Air fares ,East and Central Africa ,Corporate Travel Provider ,202594-101 ,595.55,
DFID,DFID,08/04/2013,Air fares ,East and Central Africa ,Corporate Travel Provider ,101628-101 ,592.16,
DFID,DFID,08/04/2013,Air fares ,East and Central Africa ,Corporate Travel Provider ,101628-101 ,592.16,
DFID,DFID,08/04/2013,Air fares ,Asia  Caribbean and Overseas Territories ,Corporate Travel Provider ,201739-101 ,580.26,
DFID,DFID,08/04/2013,Air fares ,Asia  Caribbean and Overseas Territories ,Corporate Travel Provider ,201739-101 ,580.26,
DFID,DFID,08/04/2013,Air fares ,Policy Division ,Corporate Travel Provider ,202373-104 ,579.94,
DFID,DFID,08/04/2013,Air fares ,East and Central Africa ,Corporate Travel Provider ,202586-101 ,572.40,
DFID,DFID,08/04/2013,Contract & Agency Staff ,Finance and Corporate Performance Division ,Hays Specialist Recruitment Ltd ,100201-101 ,564.82,
DFID,DFID,08/04/2013,Hotels - Accommodation only ,East and Central Africa ,Recipient name withheld ,200171-103 ,560.87,
DFID,DFID,08/04/2013,Air fares ,Asia  Caribbean and Overseas Territories ,Corporate Travel Provider ,101603-101 ,551.84,
DFID,DFID,08/04/2013,Air fares ,Asia  Caribbean and Overseas Territories ,Corporate Travel Provider ,101603-101 ,551.84,
DFID,DFID,08/04/2013,Air fares ,West and Southern Africa ,Corporate Travel Provider ,101620-101 ,547.71,
DFID,DFID,08/04/2013,Hotels - Accommodation only ,Policy Division ,Recipient name withheld ,100274-107 ,545.15,
DFID,DFID,08/04/2013,Legal costs ,Corporate Hub ,TSoL ,201870-101 ,539.40,
DFID,DFID,08/04/2013,Air fares ,International Finance Division ,Corporate Travel Provider ,202259-101 ,536.60,
DFID,DFID,08/04/2013,Air fares ,International Relations Division ,Corporate Travel Provider ,100238-101 ,534.30,
DFID,DFID,08/04/2013,Air fares ,Asia  Caribbean and Overseas Territories ,Corporate Travel Provider ,107467-105 ,529.03,
DFID,DFID,08/04/2013,Air fares ,Research and Evidence Division ,Corporate Travel Provider ,100039-106 ,528.70,
DFID,DFID,08/04/2013,Travel documentation costs ,Western Asia and Stabilisation Division ,Corporate Travel Provider ,101624-101 ,524.94,
DFID,DFID,08/04/2013,Hotels - Accommodation only ,Western Asia and Stabilisation Division ,Corporate Travel Provider ,101624-101 ,522.06,
DFID,DFID,08/04/2013,Air fares ,Middle East & North Africa Division (MENAD) ,Corporate Travel Provider ,100307-101 ,517.80,
DFID,DFID,08/04/2013,Air fares ,Western Asia and Stabilisation Division ,Corporate Travel Provider ,101601-110 ,517.03,
DFID,DFID,08/04/2013,Hotels - Accommodation only ,Policy Division ,Corporate Travel Provider ,100275-101 ,516.94,
DFID,DFID,08/04/2013,Air fares ,West and Southern Africa ,Supplier Name withheld ,101622-101 ,512.55,
DFID,DFID,08/04/2013,Travel documentation costs ,Western Asia and Stabilisation Division ,Corporate Travel Provider ,101624-101 ,510.52,
DFID,DFID,08/04/2013,Hotels - Accommodation only ,Western Asia and Stabilisation Division ,Corporate Travel Provider ,202288-107 ,503.64,
DFID,DFID,08/04/2013,Hotels - Accommodation only ,Western Asia and Stabilisation Division ,Corporate Travel Provider ,202288-107 ,503.64,
DFID,DFID,09/04/2013,Aid Programme - Trust Funds contributions ,Asia  Caribbean and Overseas Territories ,UNOPS ,201239-101 ,"14,000,000.00",
DFID,DFID,09/04/2013,Aid Programme - Voluntary contributions ,East and Central Africa ,UNEP ,200627-101 ,"897,331.00",
DFID,DFID,09/04/2013,Aid Programme - Core contributions ,Research and Evidence Division ,THE WORLD VEGETABLE CENTER (AVRDC) ,202748-101 ,"760,000.00",
DFID,DFID,09/04/2013,Aid Programme - Partnership Programme Arrangements ,Policy Division ,PRACTICAL ACTION LTD ,202646-101 ,"722,765.25",
DFID,DFID,09/04/2013,Technical and Advisory Services ,Western Asia and Stabilisation Division ,Supplier Name withheld ,202311-102 ,"721,694.92",
DFID,DFID,09/04/2013,Aid Programme - Voluntary contributions ,West and Southern Africa ,COOPI Cooperazione Internazionale ,203771-105 ,"359,760.16",
DFID,DFID,09/04/2013,Technical and Advisory Services ,East and Central Africa ,Crown Agents Bank ,200284-104 ,"350,000.00",
DFID,DFID,09/04/2013,Technical and Advisory Services ,West and Southern Africa ,HEALTH PARTNERS INTERNATIONAL ,104227-102 ,"284,112.87",
DFID,DFID,09/04/2013,Oil - Other Utilities ,East and Central Africa ,TAAM Petroleum Ltd(US$) ,202586-101 ,"27,860.43",Cost of supply of fuel for generators in DFID office & secure staff accommodation in South Sudan
DFID,DFID,09/04/2013,Technical and Advisory Services ,Policy Division , Overseas Development Institute ,202653-101 ,"182,302.12",
DFID,DFID,09/04/2013,Aid Programme - Accountable Grant Payments ,Policy Division ,Open Society Foundation ,202608-101 ,"142,767.00",
DFID,DFID,09/04/2013,Aid Programme - Core contributions ,Research and Evidence Division ,GLOBAL FORUM ON AGRICULTURAL RESEARCH ,202748-101 ,"120,000.00",
DFID,DFID,09/04/2013,Secure staff Accommodation ,East and Central Africa ,Supplier Name withheld ,101634-101 ,"31,558.19",Secure overseas staff Accommodation costs � Tanzania 
DFID,DFID,09/04/2013,Technical and Advisory Services ,Policy Division , Overseas Development Institute ,202653-101 ,"74,822.50",
DFID,DFID,09/04/2013,Technical and Advisory Services ,East and Central Africa ,OXFORD ECONOMICS LTD ,200250-113 ,"72,000.00",
DFID,DFID,09/04/2013,Technical and Advisory Services ,Conflict Humanitarian and Security Division ,MINES ADVISORY GROUP ,201745-101 ,"61,236.00",
DFID,DFID,09/04/2013,Technical and Advisory Services ,Research and Evidence Division ,OXFORD POLICY MANAGEMENT ,203193-101 ,"58,934.40",
DFID,DFID,09/04/2013,Technical and Advisory Services ,Policy Division , Overseas Development Institute ,202653-101 ,"55,984.00",
DFID,DFID,09/04/2013,Aid Programme - Partnership Programme Arrangements ,Policy Division ,PEOPLE IN AID LTD ,202875-101 ,"51,699.75",
DFID,DFID,09/04/2013,Technical and Advisory Services ,Western Asia and Stabilisation Division ,Supplier Name withheld ,200970-101 ,"51,010.51",
DFID,DFID,09/04/2013,Research & Development costs ,Research and Evidence Division ,GBRW LIMITED ,203813-101 ,"35,775.00",
DFID,DFID,09/04/2013,Technical and Advisory Services ,Western Asia and Stabilisation Division ,Supplier Name withheld ,200970-101 ,"34,001.82",
DFID,DFID,09/04/2013,Aid Programme - Accountable Grant Payments ,Asia  Caribbean and Overseas Territories ,Royal Institute for Int. Affairs ,202775-106 ,"33,303.00",
DFID,DFID,09/04/2013,Technical and Advisory Services ,Conflict Humanitarian and Security Division ,MINES ADVISORY GROUP ,201745-108 ,"31,652.00",
DFID,DFID,09/04/2013,Technical and Advisory Services ,East and Central Africa ,OXFORD POLICY MANAGEMENT ,202377-103 ,"31,561.93",
DFID,DFID,09/04/2013,Technical and Advisory Services ,Conflict Humanitarian and Security Division ,MINES ADVISORY GROUP ,201745-103 ,"27,385.00",
DFID,DFID,09/04/2013,Technical and Advisory Services ,Conflict Humanitarian and Security Division ,MINES ADVISORY GROUP ,201745-102 ,"25,915.00",
DFID,DFID,09/04/2013,Technical and Advisory Services ,Western Asia and Stabilisation Division ,Supplier Name withheld ,200970-101 ,"25,501.36",
DFID,DFID,09/04/2013,Property rates ,Human Resources Security & Facilities Division ,CITY OF WESTMINSTER ,100187-101 ,"848,201.00",Quarterly Business Rates for DFID HQ Palace Street
DFID,DFID,09/04/2013,Technical and Advisory Services ,Western Asia and Stabilisation Division ,Supplier Name withheld ,200898-103 ,"25,159.03",
DFID,DFID,09/04/2013,Technical and Advisory Services ,Conflict Humanitarian and Security Division ,MINES ADVISORY GROUP ,201745-104 ,"22,720.00",
DFID,DFID,09/04/2013,Technical and Advisory Services ,Asia  Caribbean and Overseas Territories ,TURNER & TOWNSEND ,201652-105 ,"22,410.28",
DFID,DFID,09/04/2013,Technical and Advisory Services ,Western Asia and Stabilisation Division ,Supplier Name withheld ,200970-101 ,"16,083.32",
DFID,DFID,09/04/2013,Technical and Advisory Services ,Policy Division ,COFFEY INTERNATIONAL DEVELOPMENT LTD ,202035-101 ,"15,306.00",
DFID,DFID,09/04/2013,Employee Travel  Subsistence and Accommodation ,Policy Division ,Recipient name withheld ,100191-101 ,"14,608.24",
DFID,DFID,09/04/2013,Technical and Advisory Services ,Western Asia and Stabilisation Division ,Supplier Name withheld ,200970-101 ,"14,075.05",
DFID,DFID,09/04/2013,Technical and Advisory Services ,Policy Division ,HTSPE LTD ,202948-107 ,"13,220.08",
DFID,DFID,09/04/2013,Technical and Advisory Services ,Western Asia and Stabilisation Division ,Supplier Name withheld ,200970-101 ,"12,062.49",
DFID,DFID,09/04/2013,Hotels - Accommodation only ,West and Southern Africa ,Supplier Name withheld ,101622-101 ,"11,262.67",
DFID,DFID,09/04/2013,Other shared service charges ,Asia  Caribbean and Overseas Territories ,FOREIGN AND COMMONWEALTH OFFICE (FCO) ,202403-101 ,"11,159.40",
DFID,DFID,09/04/2013,Hotels - Accommodation only ,West and Southern Africa ,Supplier Name withheld ,100152-101 ,"8,496.40",
DFID,DFID,09/04/2013,Secure staff Accommodation ,Asia  Caribbean and Overseas Territories ,Supplier Name withheld ,101636-101 ,"7,798.67",
DFID,DFID,09/04/2013,Data Network - land lines ,West and Southern Africa ,MICRO COM Sprl ,101610-101 ,"7,784.73",
DFID,DFID,09/04/2013,Facilities Management payments ,East and Central Africa ,Kato Contractors Ltd ,100234-101 ,"7,590.09",
DFID,DFID,09/04/2013,Secure staff Accommodation ,Asia  Caribbean and Overseas Territories ,Supplier Name withheld ,101636-101 ,"6,238.94",
DFID,DFID,09/04/2013,Furniture & Fittings ,Human Resources Security & Facilities Division ,Flexiform Business Furniture Limited ,203717-101 ,"5,536.80",
DFID,DFID,09/04/2013,Secure staff Accommodation ,West and Southern Africa ,Supplier Name withheld ,101637-101 ,"5,281.97",
DFID,DFID,09/04/2013,Storage & Distribution costs ,West and Southern Africa ,CROWN RELOCATIONS  UK ,101637-101 ,"4,852.79",
DFID,DFID,09/04/2013,Recruitment costs ,Business Solutions Division Level ,CABINET OFFICE ,200001-101 ,"4,750.00",
DFID,DFID,09/04/2013,Hotels - Accommodation only ,Conflict Humanitarian and Security Division ,Recipient name withheld ,100049-101 ,"4,403.85",
DFID,DFID,09/04/2013,Hotels - Accommodation only ,West and Southern Africa ,Supplier Name withheld ,101622-101 ,"4,059.99",
DFID,DFID,09/04/2013,Office Supplies ,East and Central Africa ,Gulf Africa Limited ,100234-101 ,"3,674.29",
DFID,DFID,09/04/2013,Electricity ,East and Central Africa ,Tanzania Electric supply company Ltd ,101634-101 ,"3,015.73",
DFID,DFID,09/04/2013,Secure staff Accommodation ,Asia  Caribbean and Overseas Territories ,Supplier Name withheld ,101621-103 ,"2,986.66",
DFID,DFID,09/04/2013,Secure staff Accommodation ,Asia  Caribbean and Overseas Territories ,Supplier Name withheld ,101621-103 ,"2,986.66",
DFID,DFID,09/04/2013,Air fares ,West and Southern Africa ,DANA Agency ,103993-104 ,"2,962.64",
DFID,DFID,09/04/2013,Secure staff Accommodation ,Asia  Caribbean and Overseas Territories ,Supplier Name withheld ,101621-103 ,"2,876.04",
DFID,DFID,09/04/2013,Secure staff Accommodation ,Asia  Caribbean and Overseas Territories ,Supplier Name withheld ,101621-103 ,"2,765.43",
DFID,DFID,09/04/2013,Secure staff Accommodation ,Asia  Caribbean and Overseas Territories ,Supplier Name withheld ,200609-103 ,"2,765.43",
DFID,DFID,09/04/2013,Training - Course Fees ,East and Central Africa ,GTC ,100082-101 ,"2,740.00",
DFID,DFID,09/04/2013,Technical and Advisory Services ,Business Solutions Division Level ,ESOTERIC DATA SOLUTIONS LTD ,200005-113 ,"2,700.00",
DFID,DFID,09/04/2013,Secure staff Accommodation ,Asia  Caribbean and Overseas Territories ,Supplier Name withheld ,101621-103 ,"2,654.81",
DFID,DFID,09/04/2013,Secure staff Accommodation ,Asia  Caribbean and Overseas Territories ,Supplier Name withheld ,101621-103 ,"2,654.81",
DFID,DFID,09/04/2013,Secure staff Accommodation ,Asia  Caribbean and Overseas Territories ,Supplier Name withheld ,101621-103 ,"2,654.81",
DFID,DFID,09/04/2013,Secure staff Accommodation ,Asia  Caribbean and Overseas Territories ,Supplier Name withheld ,101621-103 ,"2,544.19",
DFID,DFID,09/04/2013,Data Network - land lines ,West and Southern Africa ,MICRO COM Sprl ,101610-101 ,"2,272.22",
DFID,DFID,09/04/2013,Secure staff Accommodation ,Asia  Caribbean and Overseas Territories ,Supplier Name withheld ,101621-103 ,"2,212.34",
DFID,DFID,09/04/2013,Vehicle Petrol & Oil ,Asia  Caribbean and Overseas Territories ,Nepal Oil Corporation ,100150-103 ,"2,190.22",
DFID,DFID,09/04/2013,Office Equipment - Purchases ,Human Resources Security & Facilities Division ,Crown Fine Art Ltd ,203717-101 ,"2,052.00",
DFID,DFID,09/04/2013,Hotels - Accommodation only ,West and Southern Africa ,Supplier Name withheld ,101622-101 ,"1,915.65",
DFID,DFID,09/04/2013,Secure staff Accommodation ,Asia  Caribbean and Overseas Territories ,Supplier Name withheld ,100150-103 ,"1,836.24",
DFID,DFID,09/04/2013,Secure staff Accommodation ,Asia  Caribbean and Overseas Territories ,Supplier Name withheld ,101621-103 ,"1,769.87",
DFID,DFID,09/04/2013,Hotels - Accommodation only ,West and Southern Africa ,Supplier Name withheld ,100152-101 ,"1,728.16",
DFID,DFID,09/04/2013,Secure staff Accommodation ,Asia  Caribbean and Overseas Territories ,Supplier Name withheld ,101621-103 ,"1,703.50",
DFID,DFID,09/04/2013,Secure staff Accommodation ,Asia  Caribbean and Overseas Territories ,Supplier Name withheld ,101621-103 ,"1,659.26",
DFID,DFID,09/04/2013,Contract & Agency Staff ,Finance and Corporate Performance Division ,MICHAEL PAGE INTERNATIONAL RECRUITMENT LIMITED ,100201-101 ,"1,650.00",
DFID,DFID,09/04/2013,Telephone Usage & services ,West and Southern Africa ,Vodacom ,101610-101 ,"1,562.60",
DFID,DFID,09/04/2013,Secure staff Accommodation ,Asia  Caribbean and Overseas Territories ,Supplier Name withheld ,101621-103 ,"1,526.51",
DFID,DFID,09/04/2013,Training - Course Fees ,Internal Audit ,INSTITUTE OF INTERNAL AUDITORS-UK ,100121-101 ,"1,450.00",
DFID,DFID,09/04/2013,Hotels - Accommodation only ,West and Southern Africa ,Supplier Name withheld ,100152-101 ,"1,445.14",
DFID,DFID,09/04/2013,Relocation costs ,Policy Division ,Recipient name withheld ,202402-102 ,"1,317.22",
DFID,DFID,09/04/2013,Hotels - Accommodation only ,West and Southern Africa ,Harvey World Travel Centurion ,101631-101 ,"1,233.12",
DFID,DFID,09/04/2013,Contract & Agency Staff ,Finance and Corporate Performance Division ,Search Consultancy Ltd ,100201-101 ,"1,200.00",
DFID,DFID,09/04/2013,Secure staff Accommodation ,Asia  Caribbean and Overseas Territories ,Supplier Name withheld ,101621-103 ,"1,170.33",
DFID,DFID,09/04/2013,Contract & Agency Staff ,Finance and Corporate Performance Division ,Hays Specialist Recruitment Ltd ,100201-101 ,"1,165.50",
DFID,DFID,09/04/2013,Contract & Agency Staff ,Finance and Corporate Performance Division ,MICHAEL PAGE INTERNATIONAL RECRUITMENT LIMITED ,100201-101 ,"1,150.02",
DFID,DFID,09/04/2013,Office Equipment - Purchases ,East and Central Africa ,Gulf Africa Limited ,101635-101 ,"1,034.52",
DFID,DFID,09/04/2013,Technical and Advisory Services ,Business Solutions Division Level ,Parity Resources ,200003-154 ,957.55,
DFID,DFID,09/04/2013,Contract & Agency Staff ,Finance and Corporate Performance Division ,Hays Specialist Recruitment Ltd ,100201-101 ,904.13,
DFID,DFID,09/04/2013,Water charges ,Asia  Caribbean and Overseas Territories ,Supplier Name withheld ,101615-101 ,888.14,
DFID,DFID,09/04/2013,Contract & Agency Staff ,Finance and Corporate Performance Division ,Hays Specialist Recruitment Ltd ,100201-101 ,825.00,
DFID,DFID,09/04/2013,Telephone Usage & services ,West and Southern Africa ,Vodacom ,100068-101 ,813.69,
DFID,DFID,09/04/2013,Hotels - Accommodation only ,International Finance Division ,Recipient name withheld ,100111-101 ,804.00,
DFID,DFID,09/04/2013,Office Equipment - Purchases ,East and Central Africa ,Computer Point ,100234-101 ,767.95,
DFID,DFID,09/04/2013,Copywriting and Editorial Services ,Asia  Caribbean and Overseas Territories ,Samantha Kierath ,200581-113 ,759.33,
DFID,DFID,09/04/2013,Air fares ,West and Southern Africa ,British Airways Ltd ,101637-101 ,743.93,
DFID,DFID,09/04/2013,Hotels - Accommodation only ,Policy Division ,Recipient name withheld ,100191-101 ,705.00,
DFID,DFID,09/04/2013,Hotels - Accommodation only ,East and Central Africa ,Sheraton Hotel ,101635-101 ,699.48,
DFID,DFID,09/04/2013,Air fares ,Business Solutions Division Level ,Harvey World Travel Centurion ,200001-101 ,681.66,
DFID,DFID,09/04/2013,Hotels - Accommodation only ,East and Central Africa ,Elgon Terrace Hotel Limited ,101635-101 ,674.08,
DFID,DFID,09/04/2013,Contract & Agency Staff ,Finance and Corporate Performance Division ,Hays Specialist Recruitment Ltd ,100201-101 ,660.00,
DFID,DFID,09/04/2013,Hotels - Accommodation only ,Top Management Group ,Recipient name withheld ,100232-106 ,644.20,
DFID,DFID,09/04/2013,Furniture & Fittings ,West and Southern Africa ,Drake & Gorham ( Z) Ltd ,101637-101 ,632.38,
DFID,DFID,09/04/2013,Training - Course Fees ,Conflict Humanitarian and Security Division ,WORKING SOLUTIONS ,100049-101 ,600.00,
DFID,DFID,09/04/2013,Hotels - Accommodation only ,Policy Division ,Recipient name withheld ,100275-101 ,595.28,
DFID,DFID,09/04/2013,Contract & Agency Staff ,Human Resources Security & Facilities Division ,Anderson Knight Ltd ,100270-104 ,578.31,
DFID,DFID,09/04/2013,Vehicle Repairs & Maintenance ,Asia  Caribbean and Overseas Territories ,Kathmandu Tyre Centre  ,101621-103 ,541.65,
DFID,DFID,09/04/2013,Hotels - Accommodation only ,Middle East & North Africa Division (MENAD) ,Recipient name withheld ,100146-101 ,530.70,
DFID,DFID,09/04/2013,Office Equipment - Purchases ,East and Central Africa ,Gulf Africa Limited ,100234-101 ,509.54,
DFID,DFID,09/04/2013,Repairs  Maint  Alter - Removal & waste disposal services ,Human Resources Security & Facilities Division ,WILLIAM TRACEY LIMITED ,100106-101 ,504.30,
DFID,DFID,09/04/2013,Hotels - Accommodation only ,West and Southern Africa ,Supplier Name withheld ,101622-101 ,501.75,
DFID,DFID,10/04/2013,Aid Programme - Accountable Grant Payments ,West and Southern Africa ,INTERNATIONAL RESCUE COMMITTEE UK ,105862-103 ,"4,604,914.00",
DFID,DFID,10/04/2013,Aid Programme - Partnership Programme Arrangements ,Policy Division ,BRITISH RED CROSS ,202786-101 ,"409,498.75",
DFID,DFID,10/04/2013,Aid Programme - Core contributions ,Research and Evidence Division ,UNU-Wider ,201459-101 ,"406,667.00",
DFID,DFID,10/04/2013,Research & Development costs ,Research and Evidence Division ,CAB INTERNATIONAL ,200574-102 ,"379,500.00",
DFID,DFID,10/04/2013,Aid Programme - Other Financial Aid to Government ,Western Asia and Stabilisation Division ,Supplier Name withheld ,202190-104 ,"225,171.00",
DFID,DFID,10/04/2013,Technical and Advisory Services ,Asia  Caribbean and Overseas Territories ,IMC Worldwide Ltd ,113537-102 ,"193,306.51",
DFID,DFID,10/04/2013,Technical and Advisory Services ,International Finance Division ,Nathan Associates London Ltd ,114009-102 ,"136,287.63",
DFID,DFID,10/04/2013,Computer Software Licenses ,Business Solutions Division Level ,CAPITA  IT SERVICES ,200003-154 ,"96,340.32",
DFID,DFID,10/04/2013,Computer software maintenance ,Business Solutions Division Level ,COMPUTACENTER (UK) LTD ,200001-101 ,"34,512.00",Commvault Simpana Maintenance Support 13/14 
DFID,DFID,10/04/2013,Property rates ,Human Resources Security & Facilities Division ,CITY OF WESTMINSTER ,100187-101 ,"37,695.00",Business Improvement District Demand Notice for 1PS 
DFID,DFID,10/04/2013,Aid Programme - Accountable Grant Payments ,East and Central Africa ,Concern Worldwide Kenya ,103548-113 ,"58,837.35",
DFID,DFID,10/04/2013,Technical and Advisory Services ,Asia  Caribbean and Overseas Territories ,ERNST &  YOUNG PRIVATE LTD ,200599-101 ,"50,911.83",
DFID,DFID,10/04/2013,Aid Programme - Other Financial Aid to Government ,Middle East & North Africa Division (MENAD) ,The Palestinian National Authority Ministry of Finance Palestinian Governance Facility ,202241-102 ,"50,000.00",
DFID,DFID,10/04/2013,Technical and Advisory Services ,Asia  Caribbean and Overseas Territories ,Population Council ,114506-101 ,"45,913.75",
DFID,DFID,10/04/2013,Technical and Advisory Services ,Asia  Caribbean and Overseas Territories ,Population Council ,114506-101 ,"38,521.00",
DFID,DFID,10/04/2013,Technical and Advisory Services ,Asia  Caribbean and Overseas Territories ,ERNST &  YOUNG PRIVATE LTD ,200599-101 ,"33,708.00",
DFID,DFID,10/04/2013,Technical and Advisory Services ,Research and Evidence Division ,IOD PARC ,203197-101 ,"30,630.00",
DFID,DFID,10/04/2013,Computer Software Licenses ,Business Solutions Division Level ,Phoenix Software Ltd ,200002-139 ,"132,000.00",Checkpoint Firewall & VPN Licence & Support FY 13/14
DFID,DFID,10/04/2013,Aid Programme - Challenge Fund payments ,Policy Division ,Triple Line Consulting Limited ,201242-101 ,"26,968.33",
DFID,DFID,10/04/2013,Technical and Advisory Services ,West and Southern Africa ,Renee Kantelberg ,201198-102 ,"17,301.18",
DFID,DFID,10/04/2013,Hardware - servers & storage ,Business Solutions Division Level ,INSIGHT DIRECT (UK) LTD ,200004-119 ,"17,280.00",
DFID,DFID,10/04/2013,Technical and Advisory Services ,Policy Division ,PATH ,202674-101 ,"15,096.15",
DFID,DFID,10/04/2013,Computer hardware maintenance ,Business Solutions Division Level ,SOFTWARE BOX LTD (SBL) ,200002-206 ,"14,008.80",
DFID,DFID,10/04/2013,Telephone Usage & services ,Business Solutions Division Level ,CABLE & WIRELESS COMMUN ,200002-187 ,"11,551.34",
DFID,DFID,10/04/2013,Training Providers/Facilitation Services ,Business Solutions Division Level ,Emergn ,200001-101 ,"10,412.50",
DFID,DFID,10/04/2013,Training Providers/Facilitation Services ,Business Solutions Division Level ,Emergn ,200001-101 ,"9,800.00",
DFID,DFID,10/04/2013,Technical and Advisory Services ,Non-Departmental Public Body ,NATIONAL AUDIT OFFICE ,203064-101 ,"9,206.90",
DFID,DFID,10/04/2013,Technical and Advisory Services ,West and Southern Africa ,Sue Newport Consulting Ltd ,202721-104 ,"9,103.65",
DFID,DFID,10/04/2013,Technical and Advisory Services ,Business Solutions Division Level ,VTEQ LIMITED ,200002-137 ,"9,021.37",
DFID,DFID,10/04/2013,Repairs  Maintenance and Alterations – Other Building Costs ,West and Southern Africa ,Mercury Construction Management Company ,101618-101 ,"8,740.76",
DFID,DFID,10/04/2013,Technical and Advisory Services ,Asia  Caribbean and Overseas Territories ,IMC Worldwide Ltd ,201736-102 ,"7,856.31",
DFID,DFID,10/04/2013,Computer software maintenance ,Business Solutions Division Level ,MTI Technology Ltd ,200002-116 ,"7,659.68",
DFID,DFID,10/04/2013,Aid Programme - Accountable Grant Payments ,East and Central Africa , THE RESEARCH FOUNDATION ,201913-110 ,"7,190.57",
DFID,DFID,10/04/2013,FCO shared service charges ,East and Central Africa ,JMC Umoja House ,101634-101 ,"7,070.44",
DFID,DFID,10/04/2013,Repairs  Maint  Alter - Property & Constrct. Services ,West and Southern Africa ,MJB Electrical Pvt Ltd ,100257-101 ,"6,256.94",
DFID,DFID,10/04/2013,Technical and Advisory Services ,Business Solutions Division Level ,VTEQ LIMITED ,200002-137 ,"6,071.20",
DFID,DFID,10/04/2013,Contract & Agency Staff ,Finance and Corporate Performance Division ,HUDSON GLOBAL RESOURCES LTD ,100201-101 ,"5,997.48",
DFID,DFID,10/04/2013,Contract & Agency Staff ,Finance and Corporate Performance Division ,HUDSON GLOBAL RESOURCES LTD ,100201-101 ,"5,997.48",
DFID,DFID,10/04/2013,FCO shared service charges ,Human Resources Security & Facilities Division ,FCO SERVICES ,100187-101 ,"5,385.40",
DFID,DFID,10/04/2013,Technical and Advisory Services ,Asia  Caribbean and Overseas Territories ,Ecological Economies and Development Limited ,202832-102 ,"5,089.71",
DFID,DFID,10/04/2013,Repairs  Maintenance and Alterations – Other Building Costs ,Human Resources Security & Facilities Division ,MITIE Technical Facilities Management Ltd ,100106-101 ,"4,963.72",
DFID,DFID,10/04/2013,Computer software maintenance ,Business Solutions Division Level ,MTI Technology Ltd ,200002-116 ,"4,872.16",
DFID,DFID,10/04/2013,Professional member subscriptions ,Human Resources Security & Facilities Division ,THE WHITEHALL & INDUSTRY GROUP ,100269-149 ,"4,800.00",
DFID,DFID,10/04/2013,Contract & Agency Staff ,Human Resources Security & Facilities Division ,Michaeil Page Int. Recruitment Ltd ,100268-101 ,"3,996.00",
DFID,DFID,10/04/2013,Computer Software Licenses ,Business Solutions Division Level ,CAPITA  IT SERVICES ,200001-101 ,"3,977.28",
DFID,DFID,10/04/2013,Telephone Usage & services ,Business Solutions Division Level ,VODAFONE CORPORATE ,200002-208 ,"3,636.00",
DFID,DFID,10/04/2013,Secure staff Accommodation ,West and Southern Africa ,Supplier Name withheld ,101618-101 ,"3,478.51",
DFID,DFID,10/04/2013,Training Providers/Facilitation Services ,Business Solutions Division Level ,Emergn ,200001-101 ,"3,125.00",
DFID,DFID,10/04/2013,Technical and Advisory Services ,West and Southern Africa ,MOTT MACDONALD LTD ,103269-101 ,"3,060.00",
DFID,DFID,10/04/2013,FCO shared service charges ,East and Central Africa ,JMC Umoja House ,100230-101 ,"3,030.94",
DFID,DFID,10/04/2013,Technical and Advisory Services ,Communications Division ,PANOS PICTURES ,100154-101 ,"3,000.00",
DFID,DFID,10/04/2013,Computer Software Licenses ,Business Solutions Division Level ,QUEST SOFTWARE ,200002-115 ,"2,886.48",
DFID,DFID,10/04/2013,Repairs  Maintenance and Alterations – Other Building Costs ,Human Resources Security & Facilities Division ,MITIE Technical Facilities Management Ltd ,100106-101 ,"2,799.50",
DFID,DFID,10/04/2013,Electricity ,West and Southern Africa ,ZESA ,101638-101 ,"2,606.06",
DFID,DFID,10/04/2013,Repairs  Maint  Alter - Property & Constrct. Services ,West and Southern Africa ,MJB Electrical Pvt Ltd ,100257-101 ,"2,578.03",
DFID,DFID,10/04/2013,Data Network - land lines ,Business Solutions Division Level ,KUBE NETWORKS LTD ,200002-130 ,"2,419.62",
DFID,DFID,10/04/2013,Vehicle Repairs & Maintenance ,West and Southern Africa ,Wheels & Exhausts ,101618-101 ,"2,011.65",
DFID,DFID,10/04/2013,Telephone Usage & services ,Business Solutions Division Level ,BT BACS PAYMENTS ,200002-130 ,"1,985.00",
DFID,DFID,10/04/2013,Technical and Advisory Services ,West and Southern Africa ,FJP Development &Management Consultants ,100214-101 ,"1,858.71",
DFID,DFID,10/04/2013,Hotels - Accommodation only ,West and Southern Africa ,Supplier Name withheld ,101622-101 ,"1,822.46",
DFID,DFID,10/04/2013,Repairs  Maint  Alter - Property & Constrct. Services ,West and Southern Africa ,MJB Electrical Pvt Ltd ,100257-101 ,"1,793.05",
DFID,DFID,10/04/2013,Hotels - Accommodation only ,West and Southern Africa ,Supplier Name withheld ,101631-101 ,"1,657.30",
DFID,DFID,10/04/2013,Contract & Agency Staff ,Finance and Corporate Performance Division ,MICHAEL PAGE INTERNATIONAL RECRUITMENT LIMITED ,100201-101 ,"1,650.00",
DFID,DFID,10/04/2013,Hostile Environment Training ,East and Central Africa ,Pilgrims Group ,101630-101 ,"1,604.28",
DFID,DFID,10/04/2013,Technical and Advisory Services ,East and Central Africa ,IPA-International Procurement Agency (BV) ,113400-111 ,"1,576.62",
DFID,DFID,10/04/2013,Air fares ,Asia  Caribbean and Overseas Territories ,KUONI BUSINESS TRAVEL INDIA PVT LTD ,201689-101 ,"1,559.71",
DFID,DFID,10/04/2013,Contract & Agency Staff ,Finance and Corporate Performance Division ,MICHAEL PAGE INTERNATIONAL RECRUITMENT LIMITED ,100201-101 ,"1,513.32",
DFID,DFID,10/04/2013,Conference Travel & Subsistence ,Conflict Humanitarian and Security Division ,Rachel Kleinfeld ,100049-101 ,"1,497.09",
DFID,DFID,10/04/2013,Contract Catering Services ,Asia  Caribbean and Overseas Territories ,THE GOURMET FACTORY ,201689-105 ,"1,331.08",
DFID,DFID,10/04/2013,Technical and Advisory Services ,East and Central Africa ,PRICEWATERHOUSECOOPERS ,200250-111 ,"1,304.19",
DFID,DFID,10/04/2013,Training Providers/Facilitation Services ,Business Solutions Division Level ,Emergn ,200001-101 ,"1,250.00",
DFID,DFID,10/04/2013,Hotels - Accommodation only ,West and Southern Africa ,Supplier Name withheld ,101622-101 ,"1,247.57",
DFID,DFID,10/04/2013,Contract & Agency Staff ,Finance and Corporate Performance Division ,MICHAEL PAGE INTERNATIONAL RECRUITMENT LIMITED ,100201-101 ,"1,210.66",
DFID,DFID,10/04/2013,Training - Travel & Subsistence ,West and Southern Africa ,Ulendo Safaris ,101618-101 ,"1,184.34",
DFID,DFID,10/04/2013,Facilities Management payments ,West and Southern Africa ,Eurotex Import & Export ,101629-101 ,"1,168.22",
DFID,DFID,10/04/2013,Hotels - Accommodation only ,West and Southern Africa ,Supplier Name withheld ,101622-101 ,"1,113.73",
DFID,DFID,10/04/2013,Hotels - Accommodation only ,West and Southern Africa ,Supplier Name withheld ,101622-101 ,"1,113.73",
DFID,DFID,10/04/2013,Contract & Agency Staff ,Finance and Corporate Performance Division ,Hays Specialist Recruitment Ltd ,100201-101 ,"1,102.50",
DFID,DFID,10/04/2013,Contract & Agency Staff ,Finance and Corporate Performance Division ,Hays Specialist Recruitment Ltd ,100201-101 ,"1,026.96",
DFID,DFID,10/04/2013,Contract & Agency Staff ,Human Resources Security & Facilities Division ,MICHAEL PAGE INTERNATIONAL RECRUITMENT LIMITED ,100266-110 ,970.20,
DFID,DFID,10/04/2013,Computer software maintenance ,Business Solutions Division Level ,MTI Technology Ltd ,200002-116 ,962.71,
DFID,DFID,10/04/2013,Contract & Agency Staff ,Finance and Corporate Performance Division ,Hays Specialist Recruitment Ltd ,100201-101 ,932.40,
DFID,DFID,10/04/2013,Contract & Agency Staff ,Finance and Corporate Performance Division ,Hays Specialist Recruitment Ltd ,100201-101 ,921.60,
DFID,DFID,10/04/2013,Contract & Agency Staff ,Finance and Corporate Performance Division ,Hays Specialist Recruitment Ltd ,100201-101 ,921.60,
DFID,DFID,10/04/2013,Contract & Agency Staff ,Finance and Corporate Performance Division ,MICHAEL PAGE INTERNATIONAL RECRUITMENT LIMITED ,100201-101 ,920.02,
DFID,DFID,10/04/2013,Vehicle Repairs & Maintenance ,West and Southern Africa ,Wheels & Exhausts ,100144-101 ,862.14,
DFID,DFID,10/04/2013,Hotels - Accommodation only ,East and Central Africa ,Recipient name withheld ,101612-101 ,853.70,
DFID,DFID,10/04/2013,Air fares ,West and Southern Africa ,Ulendo Safaris ,101618-101 ,852.16,
DFID,DFID,10/04/2013,Vehicle Petrol & Oil ,West and Southern Africa ,British High Commission ,101618-101 ,807.81,
DFID,DFID,10/04/2013,Hotels - Accommodation only ,West and Southern Africa ,Supplier Name withheld ,101622-101 ,787.91,
DFID,DFID,10/04/2013,Contract & Agency Staff ,Human Resources Security & Facilities Division ,MICHAEL PAGE INTERNATIONAL RECRUITMENT LIMITED ,100266-110 ,737.10,
DFID,DFID,10/04/2013,Contract & Agency Staff ,Finance and Corporate Performance Division ,Hays Specialist Recruitment Ltd ,100201-101 ,726.19,
DFID,DFID,10/04/2013,Aid Programme - Humanitarian Material Relief Assistance and Services ,Conflict Humanitarian and Security Division ,THE CAYMAN ISLANDS RED CROSS ,200613-101 ,720.71,
DFID,DFID,10/04/2013,Hotels - Accommodation only ,Policy Division ,Recipient name withheld ,100191-101 ,708.76,
DFID,DFID,10/04/2013,Technical and Advisory Services ,International Finance Division ,Nathan Associates London Ltd ,114009-103 ,674.52,
DFID,DFID,10/04/2013,Water charges ,West and Southern Africa ,Guma Valley Water Company ,101629-101 ,671.82,
DFID,DFID,10/04/2013,Medical/Health Services ,West and Southern Africa ,British High Commission ,101629-101 ,651.39,
DFID,DFID,10/04/2013,Air fares ,Asia  Caribbean and Overseas Territories ,KUONI BUSINESS TRAVEL INDIA PVT LTD ,101611-101 ,651.02,
DFID,DFID,10/04/2013,Air fares ,East and Central Africa ,SATGURU TRAVEL & TOURS SERVICE ,100212-101 ,619.64,
DFID,DFID,10/04/2013,Cleaning Costs ,West and Southern Africa ,Yeane Enterprises ,101629-101 ,605.39,
DFID,DFID,10/04/2013,Hotels - Accommodation only ,West and Southern Africa ,Harvey World Travel Centurion ,101631-101 ,597.77,
DFID,DFID,10/04/2013,Contract & Agency Staff ,Finance and Corporate Performance Division ,Anderson Knight Ltd ,200173-103 ,589.41,
DFID,DFID,10/04/2013,Oil - Other Utilities ,East and Central Africa ,British High Commission(Tsh) ,101634-101 ,584.00,
DFID,DFID,10/04/2013,Training - Course Fees ,International Relations Division ,GATEWAY LANGUAGE SERVICES LTD ,100086-101 ,576.37,
DFID,DFID,10/04/2013,Subscriptions ,Communications Division ,THE PRESS ASSOCIATION ,100197-101 ,574.70,
DFID,DFID,10/04/2013,Hotels - Accommodation only ,East and Central Africa ,Southern Sun Hotels(T) Ltd (USD) ,101634-101 ,547.13,
DFID,DFID,10/04/2013,Air fares ,Asia  Caribbean and Overseas Territories ,KUONI BUSINESS TRAVEL INDIA PVT LTD ,201689-101 ,531.22,
DFID,DFID,10/04/2013,Repairs  Maintenance and Alterations – Other Building Costs ,Human Resources Security & Facilities Division ,MITIE Technical Facilities Management Ltd ,100106-101 ,505.68,
DFID,DFID,11/04/2013,Aid Programme - Core contributions ,International Finance Division ,IBRD-IFFIm ,111073-101 ,"28,674,750.00",
DFID,DFID,11/04/2013,Aid Programme - Emergency Food Aid ,East and Central Africa ,WFP CONTRIBUTIONS UNIT ,203071-101 ,"20,000,000.00",
DFID,DFID,11/04/2013,Aid Programme - Other Financial Aid to Government ,Western Asia and Stabilisation Division ,Maternal Newborn and Child Health Programme  Pakistan ,202488-103 ,"3,000,000.00",
DFID,DFID,11/04/2013,Aid Programme - Core contributions ,International Finance Division ,IBRD-IFFIm ,201185-101 ,"2,995,652.40",
DFID,DFID,11/04/2013,Aid Programme - Challenge Fund payments ,Asia  Caribbean and Overseas Territories ,Harewelle International Limited. ,107402-102 ,"1,277,932.89",
DFID,DFID,11/04/2013,Aid Programme - Partnership Programme Arrangements ,Policy Division ,WORLD VISION UNITED KINGDOM ,202642-101 ,"984,441.25",
DFID,DFID,11/04/2013,Aid Programme - Partnership Programme Arrangements ,Policy Division ,INTERNATIONAL HIV/AIDS ALLIANCE ,202557-101 ,"972,905.75",
DFID,DFID,11/04/2013,Aid Programme - Partnership Programme Arrangements ,Policy Division ,PROGRESSIO ,202503-101 ,"506,253.75",
DFID,DFID,11/04/2013,Aid Programme - Voluntary contributions ,East and Central Africa ,UNDP CONTRIBUTIONS ACCOUNT ,202821-101 ,"452,000.00",
DFID,DFID,11/04/2013,Technical and Advisory Services ,Asia  Caribbean and Overseas Territories ,IMC Worldwide Ltd ,113537-103 ,"448,131.43",
DFID,DFID,11/04/2013,Aid Programme - Core contributions ,Policy Division ,UNCCD (United Nations Convention to Combat Desertification) ,113735-103 ,"427,081.23",
DFID,DFID,11/04/2013,Aid Programme - Voluntary contributions ,East and Central Africa ,UNDP CONTRIBUTIONS ACCOUNT ,202821-102 ,"303,000.00",
DFID,DFID,11/04/2013,Aid Programme - Accountable Grant Payments ,Asia  Caribbean and Overseas Territories ,THE ASIA FOUNDATION ,202798-102 ,"160,228.07",
DFID,DFID,11/04/2013,Aid Programme - Core contributions ,East and Central Africa ,United Nations Office on Drugs and Crime (UNODC) ,203466-102 ,"150,543.00",
DFID,DFID,11/04/2013,Technical and Advisory Services ,West and Southern Africa ,Charles Kendall & Partners ,202214-103 ,"106,200.00",
DFID,DFID,11/04/2013,Technical and Advisory Services ,Asia  Caribbean and Overseas Territories ,Harewelle International Limited. ,107402-101 ,"95,505.19",
DFID,DFID,11/04/2013,Aid Programme - Challenge Fund payments ,Asia  Caribbean and Overseas Territories ,Harewelle International Limited. ,107402-106 ,"90,730.92",
DFID,DFID,11/04/2013,Aid Programme - Accountable Grant Payments ,Policy Division ,FERN ,201724-113 ,"68,866.00",
DFID,DFID,11/04/2013,Technical and Advisory Services ,Asia  Caribbean and Overseas Territories ,IMC Worldwide Ltd ,113537-101 ,"66,920.40",
DFID,DFID,11/04/2013,Technical and Advisory Services ,West and Southern Africa ,CAMBRIDGE EDUCATION CONSUL ,202678-101 ,"46,746.50",
DFID,DFID,11/04/2013,Secure staff Accommodation ,Western Asia and Stabilisation Division ,Supplier Name withheld ,101601-110 ,"44,549.61",Secure overseas staff Accommodation costs � Afghanistan 
DFID,DFID,11/04/2013,Technical and Advisory Services ,West and Southern Africa ,Charles Kendall & Partners ,202214-103 ,"45,106.00",
DFID,DFID,11/04/2013,Secure staff Accommodation ,Western Asia and Stabilisation Division ,Supplier Name withheld ,101601-110 ,"44,549.61",Secure overseas staff Accommodation costs � Afghanistan 
DFID,DFID,11/04/2013,Hardware - desktop PCs ,Business Solutions Division Level ,XMA Limited ,200003-154 ,"40,604.20",
DFID,DFID,11/04/2013,Other Building Products ,Human Resources Security & Facilities Division ,ISG Fit Out Ltd ,203717-101 ,"54,099.58",DFID HQ re-fit costs for work completed to 20/03/13. 
DFID,DFID,11/04/2013,Computer software maintenance ,Business Solutions Division Level ,INSIGHT DIRECT (UK) LTD ,200002-116 ,"65,116.80",IPASS remote Internet solution 1st April 2013 to 31st March 2014 
DFID,DFID,11/04/2013,Other Admin Costs ,Middle East & North Africa Division (MENAD) ,Cabinet Office RM Shared Services ,100296-101 ,"96,800.00",DFID contribution to the Iraq Inquiry January to March 2013
DFID,DFID,11/04/2013,Secure staff Accommodation ,Western Asia and Stabilisation Division ,Supplier Name withheld ,101601-110 ,"114,458.22",Secure overseas staff Accommodation costs � Afghanistan
DFID,DFID,11/04/2013,Aid Programme - Programme Contribution ,Asia  Caribbean and Overseas Territories ,AUSAID ,202085-103 ,"30,144.12",
DFID,DFID,11/04/2013,Technical and Advisory Services ,Western Asia and Stabilisation Division ,OXFORD POLICY MANAGEMENT ,114153-101 ,"29,202.01",
DFID,DFID,11/04/2013,Technical and Advisory Services ,West and Southern Africa ,HTSPE LTD ,202541-105 ,"29,155.95",
DFID,DFID,11/04/2013,Aid Programme - Other Financial Aid to Government ,West and Southern Africa ,Ministry of Justice and Constitutional Affairs Malawi  Justice for Vulnerable Groups ,202559-107 ,"27,242.40",
DFID,DFID,11/04/2013,Aid Programme - Accountable Grant Payments ,Western Asia and Stabilisation Division ,NATIONAL RURAL SUPPORT PROGRAMME (NRSP) ,200694-104 ,"27,146.00",
DFID,DFID,11/04/2013,Hardware -Laptop PCs ,Business Solutions Division Level ,XMA Limited ,200003-154 ,"26,400.00",
DFID,DFID,11/04/2013,Aid Programme - Accountable Grant Payments ,Western Asia and Stabilisation Division ,NATIONAL RURAL SUPPORT PROGRAMME (NRSP) ,200694-104 ,"25,614.00",
DFID,DFID,11/04/2013,Technical and Advisory Services ,Asia  Caribbean and Overseas Territories ,MZ ,203035-102 ,"22,751.58",
DFID,DFID,11/04/2013,Aid Programme - Accountable Grant Payments ,East and Central Africa ,The Nile Basin Discourse (NBD) ,200187-102 ,"20,927.02",
DFID,DFID,11/04/2013,Technical and Advisory Services ,Western Asia and Stabilisation Division ,Supplier Name withheld ,203077-104 ,"18,625.00",
DFID,DFID,11/04/2013,Computer hardware maintenance ,Business Solutions Division Level ,ATTENDA LIMITED ,200002-196 ,"17,376.48",
DFID,DFID,11/04/2013,Storage & Distribution costs ,Asia  Caribbean and Overseas Territories ,PICKFORDS LTD ,202403-101 ,"16,490.06",
DFID,DFID,11/04/2013,Secure staff Accommodation ,Western Asia and Stabilisation Division ,Supplier Name withheld ,100011-110 ,"16,351.17",
DFID,DFID,11/04/2013,Technical and Advisory Services ,Policy Division ,PATH ,202674-101 ,"12,280.50",
DFID,DFID,11/04/2013,Technical and Advisory Services ,West and Southern Africa ,CHARLES KENDALL & PARTNERS LIMITED (PROCUREMENT) ,113961-106 ,"12,160.64",
DFID,DFID,11/04/2013,Technical and Advisory Services ,West and Southern Africa ,Charles Kendall & Partners ,202214-103 ,"11,343.31",
DFID,DFID,11/04/2013,Technical and Advisory Services ,West and Southern Africa ,CHARLES KENDALL & PARTNERS LIMITED (PROCUREMENT) ,113961-106 ,"9,505.84",
DFID,DFID,11/04/2013,Bank Charges/Services ,Finance and Corporate Performance Division ,Government Actuary's Department ,100182-101 ,"9,124.02",
DFID,DFID,11/04/2013,Relocation costs ,Human Resources Security & Facilities Division ,PICKFORDS LTD ,100187-101 ,"7,705.20",
DFID,DFID,11/04/2013,Contract & Agency Staff ,Business Solutions Division Level ,ALLEGIS GROUP LIMITED ,200001-101 ,"7,176.00",
DFID,DFID,11/04/2013,Furniture & Fittings ,Human Resources Security & Facilities Division ,Senator International  ,203717-101 ,"6,750.79",
DFID,DFID,11/04/2013,Gas ,Human Resources Security & Facilities Division ,CORONA ENERGY ,100187-101 ,"6,510.85",
DFID,DFID,11/04/2013,Contract & Agency Staff ,Business Solutions Division Level ,OPIN SYSTEMS LIMITED ,200001-101 ,"6,384.00",
DFID,DFID,11/04/2013,Secure staff Accommodation ,Western Asia and Stabilisation Division ,Supplier Name withheld ,100011-110 ,"6,364.23",
DFID,DFID,11/04/2013,Secure staff Accommodation ,Western Asia and Stabilisation Division ,Supplier Name withheld ,100011-110 ,"6,364.23",
DFID,DFID,11/04/2013,AV conferencing systems -accessories ,Business Solutions Division Level ,EQUANET LTD ,200003-154 ,"6,357.60",
DFID,DFID,11/04/2013,Secure staff Accommodation ,Asia  Caribbean and Overseas Territories ,Supplier Name withheld ,101636-101 ,"6,238.87",
DFID,DFID,11/04/2013,Technical and Advisory Services ,Research and Evidence Division ,Roger Drew ,203069-102 ,"5,732.80",
DFID,DFID,11/04/2013,Contract & Agency Staff ,Business Solutions Division Level ,ALLEGIS GROUP LIMITED ,200001-101 ,"5,616.00",
DFID,DFID,11/04/2013,Technical and Advisory Services ,Asia  Caribbean and Overseas Territories ,Harewelle International Limited. ,107402-105 ,"5,608.26",
DFID,DFID,11/04/2013,Technical and Advisory Services ,East and Central Africa ,Cambridge  Education Limited ,201587-103 ,"5,510.00",
DFID,DFID,11/04/2013,Technical and Advisory Services ,Western Asia and Stabilisation Division ,WILSON  BRYDON & KENNEDY ,203341-102 ,"5,400.00",
DFID,DFID,11/04/2013,Contract & Agency Staff ,Business Solutions Division Level ,ALLEGIS GROUP LIMITED ,200001-101 ,"5,310.00",
DFID,DFID,11/04/2013,Aid Programme - Voluntary contributions ,Policy Division ,FORESTRY COMMISSION ,203034-109 ,"5,000.00",
DFID,DFID,11/04/2013,Technical and Advisory Services ,Policy Division ,ASI T&C ,201724-137 ,"4,986.50",
DFID,DFID,11/04/2013,Technical and Advisory Services ,Business Solutions Division Level ,VTEQ LIMITED ,200001-101 ,"4,500.00",
DFID,DFID,11/04/2013,Hardware - desktop PCs ,Business Solutions Division Level ,XMA Limited ,200003-154 ,"4,331.40",
DFID,DFID,11/04/2013,Technical and Advisory Services ,West and Southern Africa ,CHARLES KENDALL & PARTNERS LIMITED (PROCUREMENT) ,113961-106 ,"4,262.32",
DFID,DFID,11/04/2013,Hotels - Accommodation only ,Western Asia and Stabilisation Division ,Avari Lahore ,101624-101 ,"3,491.44",
DFID,DFID,11/04/2013,Relocation costs ,Human Resources Security & Facilities Division ,PICKFORDS LTD ,100187-101 ,"3,468.00",
DFID,DFID,11/04/2013,Technical and Advisory Services ,Western Asia and Stabilisation Division ,Aghaz Consulting ,113484-106 ,"3,291.88",
DFID,DFID,11/04/2013,Air fares ,Asia  Caribbean and Overseas Territories ,KUONI BUSINESS TRAVEL INDIA PVT LTD ,201689-101 ,"2,473.93",
DFID,DFID,11/04/2013,Repairs  Maint  Alter - Property & Constrct. Services ,West and Southern Africa ,GreyStone Park Electrical ,100257-101 ,"2,385.77",
DFID,DFID,11/04/2013,Relocation costs ,Human Resources Security & Facilities Division ,PICKFORDS LTD ,100187-101 ,"2,316.00",
DFID,DFID,11/04/2013,Air fares ,Asia  Caribbean and Overseas Territories ,KUONI BUSINESS TRAVEL INDIA PVT LTD ,201689-101 ,"1,979.64",
DFID,DFID,11/04/2013,Telephone Usage & services ,West and Southern Africa ,Vodacom ,101610-101 ,"1,890.54",
DFID,DFID,11/04/2013,Contract & Agency Staff ,International Finance Division ,Hays Specialist Recruitment Ltd ,100120-101 ,"1,817.70",
DFID,DFID,11/04/2013,Technical and Advisory Services ,Western Asia and Stabilisation Division ,Supplier Name withheld ,201023-104 ,"1,791.08",
DFID,DFID,11/04/2013,Air fares ,Asia  Caribbean and Overseas Territories ,KUONI BUSINESS TRAVEL INDIA PVT LTD ,201689-101 ,"1,616.36",
DFID,DFID,11/04/2013,Contract & Agency Staff ,International Finance Division ,Hays Specialist Recruitment Ltd ,100120-101 ,"1,556.27",
DFID,DFID,11/04/2013,Air fares ,West and Southern Africa ,Jeffery Travels ,101610-101 ,"1,519.58",
DFID,DFID,11/04/2013,Other Building Products ,Human Resources Security & Facilities Division ,TEMPO GRAPHIC DESIGN (McKENZIE CLARK LTD) ,203717-101 ,"1,494.00",
DFID,DFID,11/04/2013,Training - Course Fees ,International Finance Division ,Recipient name withheld ,202259-101 ,"1,440.00",
DFID,DFID,11/04/2013,Technical and Advisory Services ,West and Southern Africa ,Charles Kendall & Partners ,202214-103 ,"1,360.27",
DFID,DFID,11/04/2013,Electricity ,West and Southern Africa ,Power Holding co of Nigeria ,101622-101 ,"1,343.36",
DFID,DFID,11/04/2013,Contract & Agency Staff ,Internal Audit ,Hays Specialist Recruitment Ltd ,100121-101 ,"1,276.52",
DFID,DFID,11/04/2013,Training - Travel & Subsistence ,Western Asia and Stabilisation Division ,Recipient name withheld ,101624-101 ,"1,122.60",
DFID,DFID,11/04/2013,Training - Course Fees ,Human Resources Security & Facilities Division ,Recipient name withheld ,100266-101 ,"1,113.60",
DFID,DFID,11/04/2013,Technical and Advisory Services ,Policy Division ,GBRW LIMITED ,201733-107 ,"1,102.44",
DFID,DFID,11/04/2013,Staff Travel - Air Fares ,West and Southern Africa ,Ulendo Safaris ,101618-101 ,"1,087.20",
DFID,DFID,11/04/2013,Air fares ,Western Asia and Stabilisation Division ,BONDS TRAVEL BUREAU ,202378-108 ,"1,068.14",
DFID,DFID,11/04/2013,Electricity ,West and Southern Africa ,Power Holding co of Nigeria ,101622-101 ,"1,052.10",
DFID,DFID,11/04/2013,Hotels - Accommodation only ,East and Central Africa ,BCD Travel (KSH) ,101616-101 ,"1,023.77",
DFID,DFID,11/04/2013,Air fares ,Research and Evidence Division ,KUONI BUSINESS TRAVEL INDIA PVT LTD ,202444-101 ,"1,018.98",
DFID,DFID,11/04/2013,Air fares ,Asia  Caribbean and Overseas Territories ,KUONI BUSINESS TRAVEL INDIA PVT LTD ,201689-101 ,"1,017.64",
DFID,DFID,11/04/2013,Contract & Agency Staff ,Finance and Corporate Performance Division ,Hays Specialist Recruitment Ltd ,100201-101 ,989.22,
DFID,DFID,11/04/2013,Other travel costs ,Business Solutions Division Level ,KUONI BUSINESS TRAVEL INDIA PVT LTD ,200001-101 ,965.88,
DFID,DFID,11/04/2013,Air fares ,Human Resources Security & Facilities Division ,KUONI BUSINESS TRAVEL INDIA PVT LTD ,100269-128 ,935.30,
DFID,DFID,11/04/2013,Hotels - Accommodation only ,Western Asia and Stabilisation Division ,Avari Lahore ,101624-101 ,910.59,
DFID,DFID,11/04/2013,Hotels - Accommodation only ,East and Central Africa ,Golden Jubilee Limited ,202974-108 ,873.11,
DFID,DFID,11/04/2013,Electricity ,West and Southern Africa ,Power Holding co of Nigeria ,101622-101 ,844.28,
DFID,DFID,11/04/2013,Technical and Advisory Services ,Western Asia and Stabilisation Division ,SHAHID HAFIZ KARDAR ,202378-107 ,819.02,
DFID,DFID,11/04/2013,Hotels - Accommodation only ,East and Central Africa ,Golden Jubilee Limited ,202974-108 ,793.73,
DFID,DFID,11/04/2013,Contract & Agency Staff ,Finance and Corporate Performance Division ,Hays Specialist Recruitment Ltd ,100201-101 ,791.38,
DFID,DFID,11/04/2013,Telephone Usage & services ,West and Southern Africa ,Vodacom ,100068-101 ,764.02,
DFID,DFID,11/04/2013,Training - Travel & Subsistence ,West and Southern Africa ,Recipient name withheld ,101629-101 ,700.00,
DFID,DFID,11/04/2013,Medical/Health Services ,Western Asia and Stabilisation Division ,OMAR TRAVELS ,101624-101 ,691.46,
DFID,DFID,11/04/2013,Furniture & Fittings ,Human Resources Security & Facilities Division ,Senator International  ,203717-101 ,683.64,
DFID,DFID,11/04/2013,Vehicle Repairs & Maintenance ,West and Southern Africa ,Techno Garage Moderne ,100068-101 ,678.85,
DFID,DFID,11/04/2013,Hotels - Accommodation only ,International Relations Division ,Recipient name withheld ,100240-101 ,654.95,
DFID,DFID,11/04/2013,Air fares ,West and Southern Africa ,Jeffery Travels ,101610-101 ,651.44,
DFID,DFID,11/04/2013,Hotels - Accommodation only ,East and Central Africa ,Golden Jubilee Ltd ,101616-101 ,649.20,
DFID,DFID,11/04/2013,Electricity ,West and Southern Africa ,Power Holding co of Nigeria ,100152-101 ,636.92,
DFID,DFID,11/04/2013,Hostile Environment Training ,International Finance Division ,Pilgrims Group ,202259-101 ,634.14,
DFID,DFID,11/04/2013,Technical and Advisory Services ,Western Asia and Stabilisation Division ,OXFORD POLICY MANAGEMENT ,114153-101 ,619.11,
DFID,DFID,11/04/2013,Technical and Advisory Services ,West and Southern Africa ,CHARLES KENDALL & PARTNERS LIMITED (PROCUREMENT) ,113961-106 ,608.03,
DFID,DFID,11/04/2013,Hotels - Accommodation only ,Western Asia and Stabilisation Division ,Avari Lahore ,101624-101 ,607.06,
DFID,DFID,11/04/2013,Electricity ,West and Southern Africa ,Power Holding co of Nigeria ,101622-101 ,583.68,
DFID,DFID,11/04/2013,Training - Travel & Subsistence ,Asia  Caribbean and Overseas Territories ,KUONI BUSINESS TRAVEL INDIA PVT LTD ,201689-101 ,548.11,
DFID,DFID,11/04/2013,Furniture & Fittings ,West and Southern Africa ,Akbanies ,101618-101 ,547.17,
DFID,DFID,11/04/2013,Postage Costs ,Human Resources Security & Facilities Division ,NEOPOST LIMITED ,100106-101 ,537.08,
DFID,DFID,11/04/2013,Hotels - Accommodation only ,Research and Evidence Division ,Recipient name withheld ,100039-106 ,505.96,
DFID,DFID,12/04/2013,Encashment of Promissory Notes ,International Finance Division ,IDA (International Development Association) ,202969-102 ,"81,917,500.00",
DFID,DFID,12/04/2013,Encashment of Promissory Notes ,International Finance Division ,IDA (International Development Association) ,200269-104 ,"74,690,000.00",
DFID,DFID,12/04/2013,Encashment of Promissory Notes ,International Finance Division ,IDA (International Development Association) ,200018-103 ,"26,100,000.00",
DFID,DFID,12/04/2013,Aid Programme - Other Financial Aid to Government ,Western Asia and Stabilisation Division ,Maternal Newborn and Child Health Programme  Pakistan ,202488-102 ,"10,000,000.00",
DFID,DFID,12/04/2013,Aid Programme - Core contributions ,International Relations Division ,UN WOMEN ,202723-101 ,"5,000,000.00",
DFID,DFID,12/04/2013,Aid Programme - Partnership Programme Arrangements ,Policy Division ,MARIE STOPES INTERNATIONAL ,202625-101 ,"1,088,263.00",
DFID,DFID,12/04/2013,Aid Programme - Partnership Programme Arrangements ,Policy Division ,Fairtrade Labelling Organizations International e.V. ,201718-101 ,"750,000.00",
DFID,DFID,12/04/2013,Aid Programme - Accountable Grant Payments ,Research and Evidence Division ,OVERSEAS DEVELOPMENT INSTITUTE ,203210-101 ,"573,718.38",
DFID,DFID,12/04/2013,Technical and Advisory Services ,Research and Evidence Division ,London School of Hygiene and Tropical Medicine ,114396-102 ,"515,021.17",
DFID,DFID,12/04/2013,Aid Programme - Accountable Grant Payments ,Asia  Caribbean and Overseas Territories ,OXFAM ,203167-102 ,"491,574.00",
DFID,DFID,12/04/2013,Aid Programme - Accountable Grant Payments ,Research and Evidence Division ,World Federation of Science Journalists (CAD) ,112150-103 ,"454,773.03",
DFID,DFID,12/04/2013,Aid Programme - Accountable Grant Payments ,Policy Division , Triple Line Consulting Ltd ,202035-101 ,"438,734.03",
DFID,DFID,12/04/2013,Technical and Advisory Services ,East and Central Africa ,MOTT MACDONALD LTD ,202377-102 ,"333,580.00",
DFID,DFID,12/04/2013,Technical and Advisory Services ,Conflict Humanitarian and Security Division ,THE HALO TRUST ,201745-105 ,"205,199.00",
DFID,DFID,12/04/2013,Technical and Advisory Services ,Research and Evidence Division ,London School of Hygiene and Tropical Medicine ,114396-102 ,"198,910.61",
DFID,DFID,12/04/2013,Aid Programme - Accountable Grant Payments ,Policy Division ,University of Wolverhampton - School of Education ,201724-118 ,"197,589.80",
DFID,DFID,12/04/2013,Aid Programme - Accountable Grant Payments ,Policy Division , Triple Line Consulting Ltd ,202035-101 ,"153,202.61",
DFID,DFID,12/04/2013,Technical and Advisory Services ,Asia  Caribbean and Overseas Territories ,IMC Worldwide Ltd ,202433-106 ,"129,166.89",
DFID,DFID,12/04/2013,Aid Programme - Accountable Grant Payments ,Policy Division ,Chatham House Enterprises ,201724-111 ,"123,212.00",
DFID,DFID,12/04/2013,Technical and Advisory Services ,East and Central Africa ,MOTT MACDONALD LTD ,202377-102 ,"70,633.44",
DFID,DFID,12/04/2013,Aid Programme - Trust Funds contributions ,Policy Division ,FAO ,203034-109 ,"50,000.00",
DFID,DFID,12/04/2013,Aid Programme - Joint programme contribution ,Western Asia and Stabilisation Division ,UNDP CONTRIBUTIONS GBP ,114514-102 ,"39,157.00",
DFID,DFID,12/04/2013,Aid Programme - Accountable Grant Payments ,Conflict Humanitarian and Security Division , Fond Inst Uni Htes Etudes Int(SMALL ARMS SURVEY) ,201898-103 ,"35,612.00",
DFID,DFID,12/04/2013,Secure staff Accommodation ,West and Southern Africa ,Supplier Name withheld ,101613-101 ,"90,394.92",Secure overseas staff Accommodation costs �  Ghana 
DFID,DFID,12/04/2013,Aid Programme - Accountable Grant Payments ,Policy Division , Triple Line Consulting Ltd ,202035-101 ,"32,940.00",
DFID,DFID,12/04/2013,Technical and Advisory Services ,Western Asia and Stabilisation Division ,PATH ,203029-105 ,"29,000.00",
DFID,DFID,12/04/2013,Technical and Advisory Services ,Policy Division ,PATH ,202674-101 ,"26,473.00",
DFID,DFID,12/04/2013,Aid Programme - Accountable Grant Payments ,Asia  Caribbean and Overseas Territories ,IUCN ,114058-109 ,"25,523.00",
DFID,DFID,12/04/2013,Repairs  Maint  Alter - Property & Constrct. Services ,East and Central Africa ,WESTBURY ESTATE SERVICES LTD ,100082-101 ,"16,804.00",
DFID,DFID,12/04/2013,Secure staff Accommodation ,East and Central Africa ,Supplier Name withheld ,101628-101 ,"13,671.88",
DFID,DFID,12/04/2013,Technical and Advisory Services ,Conflict Humanitarian and Security Division ,THE HALO TRUST ,201745-105 ,"13,012.00",
DFID,DFID,12/04/2013,Secure staff Accommodation ,East and Central Africa ,Supplier Name withheld ,101628-101 ,"9,375.00",
DFID,DFID,12/04/2013,Technical and Advisory Services ,Asia  Caribbean and Overseas Territories ,ACTRA ADVISERS Limited ,101604-101 ,"9,260.79",
DFID,DFID,12/04/2013,Technical and Advisory Services ,East and Central Africa ,OpenCities Ltd ,203396-101 ,"9,000.00",
DFID,DFID,12/04/2013,Secure staff Accommodation ,East and Central Africa ,Supplier Name withheld ,101628-101 ,"7,812.50",
DFID,DFID,12/04/2013,Secure staff Accommodation ,East and Central Africa ,Supplier Name withheld ,101628-101 ,"7,812.50",
DFID,DFID,12/04/2013,Secure staff Accommodation ,East and Central Africa ,Supplier Name withheld ,101628-101 ,"7,812.50",
DFID,DFID,12/04/2013,Supplier Services ,Policy Division ,SOCIAL DEVELOPMENT DIRECT LTD ,200659-115 ,"7,560.00",
DFID,DFID,12/04/2013,Medical/Health Services ,East and Central Africa ,Soras Assurances Generales Ltd ,100212-101 ,"7,372.86",
DFID,DFID,12/04/2013,Technical and Advisory Services ,East and Central Africa ,Philip White ,203473-101 ,"7,200.00",
DFID,DFID,12/04/2013,Contract & Agency Staff ,Business Solutions Division Level ,Networkers Recruitment Services Ltd ,200001-101 ,"6,471.92",
DFID,DFID,12/04/2013,Technical and Advisory Services ,East and Central Africa ,SARAH MAGUIRE ,202479-101 ,"6,140.00",
DFID,DFID,12/04/2013,Contract & Agency Staff ,Business Solutions Division Level ,ALLEGIS GROUP LIMITED ,200001-101 ,"5,616.00",
DFID,DFID,12/04/2013,Medical/Health Services ,East and Central Africa ,Soras Assurances Generales Ltd ,101628-101 ,"4,656.40",
DFID,DFID,12/04/2013,Security Equipment Maintenance & Upgrades ,West and Southern Africa ,KOIZA INTERNATIONAL LTD ,101622-101 ,"4,603.57",
DFID,DFID,12/04/2013,Office Equipment - Purchases ,East and Central Africa ,MFI OFFICE SOLUTIONS ,100212-101 ,"4,324.29",
DFID,DFID,12/04/2013,Office Equipment - Purchases ,East and Central Africa ,MFI OFFICE SOLUTIONS ,101628-101 ,"4,324.29",
DFID,DFID,12/04/2013,Technical and Advisory Services ,East and Central Africa ,Byenkya Julius Atwooki ,200787-108 ,"3,336.02",
DFID,DFID,12/04/2013,Technical and Advisory Services ,Asia  Caribbean and Overseas Territories ,Cordia Ming Yeuk Chu ,200581-113 ,"2,446.50",
DFID,DFID,12/04/2013,Furniture & Fittings ,West and Southern Africa ,KOIZA INTERNATIONAL LTD ,101622-101 ,"2,103.87",
DFID,DFID,12/04/2013,Training Providers/Facilitation Services ,Asia  Caribbean and Overseas Territories ,Global Knowledge Network Training Ltd ,101636-101 ,"1,726.92",
DFID,DFID,12/04/2013,Medical/Health Services ,West and Southern Africa ,Recipient name withheld ,101638-101 ,"1,710.00",
DFID,DFID,12/04/2013,Repairs  Maint  Alter - Property & Constrct. Services ,East and Central Africa ,WESTBURY ESTATE SERVICES LTD ,202891-107 ,"1,650.00",
DFID,DFID,12/04/2013,Training Providers/Facilitation Services ,East and Central Africa ,ROYAL TROPICAL INSTITUTE ,100234-101 ,"1,580.80",
DFID,DFID,12/04/2013,Furniture & Fittings ,West and Southern Africa ,KOIZA INTERNATIONAL LTD ,100152-101 ,"1,500.13",
DFID,DFID,12/04/2013,Technical and Advisory Services ,Human Resources Security & Facilities Division ,BRUTON KNOWLES ,203717-101 ,"1,335.60",
DFID,DFID,12/04/2013,Secure staff Accommodation ,West and Southern Africa ,Supplier Name withheld ,101638-101 ,"1,302.93",
DFID,DFID,12/04/2013,Office equipment - Rental ,Western Asia and Stabilisation Division ,SPECTRA  GROUP UK LTD ,102014-102 ,"1,260.00",
DFID,DFID,12/04/2013,Medical/Health Services ,West and Southern Africa ,Recipient name withheld ,100256-101 ,"1,140.00",
DFID,DFID,12/04/2013,Contract & Agency Staff ,Finance and Corporate Performance Division ,Hays Specialist Recruitment Ltd ,100201-101 ,"1,130.16",
DFID,DFID,12/04/2013,Property rates ,West and Southern Africa ,City of Harare ,101638-101 ,"1,091.79",
DFID,DFID,12/04/2013,Water charges ,West and Southern Africa ,Komawara ,101638-101 ,983.71,
DFID,DFID,12/04/2013,Air fares ,West and Southern Africa ,Harvey World Travel Centurion ,101631-101 ,976.38,
DFID,DFID,12/04/2013,Mobile telephones & accessories ,West and Southern Africa ,ECONET ,101638-101 ,938.95,
DFID,DFID,12/04/2013,Conferences  Seminars & Meeting/Event Resource ,Research and Evidence Division ,Department for Business  Innovation & Skills ,100039-101 ,909.00,
DFID,DFID,12/04/2013,Contract & Agency Staff ,Finance and Corporate Performance Division ,Hays Specialist Recruitment Ltd ,100201-101 ,882.00,
DFID,DFID,12/04/2013,Contract & Agency Staff ,Finance and Corporate Performance Division ,Hays Specialist Recruitment Ltd ,100201-101 ,882.00,
DFID,DFID,12/04/2013,Postage Costs ,Human Resources Security & Facilities Division ,PITNEY BOWES (RECREDIT FRANKING M/C) ,100187-101 ,850.00,
DFID,DFID,12/04/2013,Hotels - Accommodation only ,Policy Division ,Recipient name withheld ,201724-132 ,841.22,
DFID,DFID,12/04/2013,Promotional Print Advertising ,Western Asia and Stabilisation Division ,Verdant Media Ltd ,202288-101 ,840.00,
DFID,DFID,12/04/2013,Air fares ,West and Southern Africa ,Centrust Travel ,101638-101 ,768.48,
DFID,DFID,12/04/2013,Mobile telephones & accessories ,East and Central Africa ,MTN RWANDACELL ,101628-101 ,685.74,
DFID,DFID,12/04/2013,Technical and Advisory Services ,West and Southern Africa ,Nashua Mobile (Pty) Ltd ,114050-101 ,681.33,
DFID,DFID,12/04/2013,Vehicle Petrol & Oil ,West and Southern Africa ,Shell Ghana Limited ,101613-101 ,629.33,
DFID,DFID,12/04/2013,Hotels - Accommodation only ,International Finance Division ,Marriott Davies Yapp LLP ,202259-101 ,548.14,
DFID,DFID,14/04/2013,Technical and Advisory Services ,Western Asia and Stabilisation Division ,Lou Perrotta ,203336-103 ,"2,805.70",
DFID,DFID,15/04/2013,Aid Programme - Voluntary contributions ,Middle East & North Africa Division (MENAD) ,IBRD HSBC T ,203438-101 ,"6,000,000.00",
DFID,DFID,15/04/2013,Aid Programme - Strategic Grant Arrangement payments ,Policy Division ,VSO ,202414-102 ,"5,500,000.00",
DFID,DFID,15/04/2013,Aid Programme - Voluntary contributions ,Middle East & North Africa Division (MENAD) ,WFP CONTRIBUTIONS UNIT ,202375-101 ,"1,500,000.00",
DFID,DFID,15/04/2013,Aid Programme - Partnership Programme Arrangements ,Policy Division ,TRANSPARENCY INTERNAT ,202505-101 ,"843,586.00",
DFID,DFID,15/04/2013,Aid Programme - Partnership Programme Arrangements ,Policy Division ,The Global Alliance for Improved Nutrition ,202780-101 ,"787,449.00",
DFID,DFID,15/04/2013,Aid Programme - Accountable Grant Payments ,West and Southern Africa ,THE SAVE THE CHILDREN FUND ,201874-102 ,"493,323.00",
DFID,DFID,15/04/2013,Aid Programme - Accountable Grant Payments ,Middle East & North Africa Division (MENAD) ,International Foundation for Electoral Systems (IFES) ,203351-102 ,"275,163.00",
DFID,DFID,15/04/2013,Research & Development costs ,Research and Evidence Division ,UNIVERSITY OF LEEDS ,201025-102 ,"263,877.34",
DFID,DFID,15/04/2013,AV Conferencing systems -hardware ,Business Solutions Division Level ,COMPUTACENTER (UK) LTD ,200003-155 ,"178,554.00",
DFID,DFID,15/04/2013,Technical and Advisory Services ,West and Southern Africa ,OPTIONS CONSULTANCY SERVICES LIMITED ,200344-102 ,"85,061.06",
DFID,DFID,15/04/2013,Technical and Advisory Services ,International Finance Division ,Nathan Associates London Ltd ,114009-101 ,"30,094.96",
DFID,DFID,15/04/2013,Technical and Advisory Services ,West and Southern Africa ,PKF Professional Services ,104190-101 ,"28,753.70",
DFID,DFID,15/04/2013,Technical and Advisory Services ,Conflict Humanitarian and Security Division ,THE HALO TRUST ,201745-105 ,"26,676.00",
DFID,DFID,15/04/2013,Technical and Advisory Services ,Asia  Caribbean and Overseas Territories ,WSP Africa Coastal Engineers (Pty) Ltd ,203269-104 ,"20,288.75",
DFID,DFID,15/04/2013,Technical and Advisory Services ,West and Southern Africa ,Stephen Tye Consulting Limited ,104568-102 ,"17,675.00",
DFID,DFID,15/04/2013,Other rentals ,East and Central Africa ,Delegation of the European Union to South Sudan ,202594-101 ,"17,620.27",
DFID,DFID,15/04/2013,Electricity ,Human Resources Security & Facilities Division ,EDF ENERGY ,100106-101 ,"15,600.00",
DFID,DFID,15/04/2013,Technical and Advisory Services ,West and Southern Africa ,Baker Tilly Nigeria ,104190-101 ,"14,272.03",
DFID,DFID,15/04/2013,Technical and Advisory Services ,West and Southern Africa ,2wpcarpark ltd ,200485-101 ,"13,629.04",
DFID,DFID,15/04/2013,Technical and Advisory Services ,Western Asia and Stabilisation Division ,LION'S HEAD GLOBAL PARTNERS ,114153-101 ,"12,000.00",
DFID,DFID,15/04/2013,Consultancy Services ,Policy Division ,Tam O'Neil ,100275-101 ,"10,000.00",
DFID,DFID,15/04/2013,Secure staff Accommodation ,East and Central Africa ,Supplier Name withheld ,101628-101 ,"9,771.99",
DFID,DFID,15/04/2013,Secure staff Accommodation ,East and Central Africa ,Supplier Name withheld ,101628-101 ,"8,599.35",
DFID,DFID,15/04/2013,Technical and Advisory Services ,Asia  Caribbean and Overseas Territories ,Ainun Nishat ,113310-119 ,"7,862.28",
DFID,DFID,15/04/2013,Secure staff Accommodation ,East and Central Africa ,Supplier Name withheld ,101628-101 ,"7,817.59",
DFID,DFID,15/04/2013,Technical and Advisory Services ,West and Southern Africa ,Folasade Omobola Adefisayo ,202678-101 ,"7,091.70",
DFID,DFID,15/04/2013,Operating Lease rental of buildings ,Non-Departmental Public Body ,SCOTLAND OFFICE ,203064-101 ,"5,854.51",
DFID,DFID,15/04/2013,Electricity ,Asia  Caribbean and Overseas Territories ,BSES RAJDHANI POWER LIMITED ,201689-105 ,"5,213.48",
DFID,DFID,15/04/2013,Secure staff Accommodation ,Asia  Caribbean and Overseas Territories ,Supplier Name withheld ,201689-105 ,"4,766.56",
DFID,DFID,15/04/2013,Vehicle Repairs & Maintenance ,East and Central Africa ,UAP Insurance Sudan Ltd ,202594-101 ,"4,141.35",
DFID,DFID,15/04/2013,Computer hardware maintenance ,Business Solutions Division Level ,NORTHGATE HR LIMITED ,200002-105 ,"2,780.80",
DFID,DFID,15/04/2013,Storage & Distribution costs ,West and Southern Africa ,Conote Services Ltd ,101622-101 ,"2,042.28",
DFID,DFID,15/04/2013,Training - Course Fees ,Research and Evidence Division ,UNIVERSITY OF BIRMINGHAM ,202392-105 ,"1,950.00",
DFID,DFID,15/04/2013,Hotels - Accommodation only ,West and Southern Africa ,Supplier Name withheld ,114206-104 ,"1,901.90",
DFID,DFID,15/04/2013,Telephone Usage & services ,Business Solutions Division Level ,Level 3 ,200002-117 ,"1,832.05",
DFID,DFID,15/04/2013,Hotels - Accommodation only ,West and Southern Africa ,Supplier Name withheld ,114206-104 ,"1,813.41",
DFID,DFID,15/04/2013,Training - Course Fees ,Conflict Humanitarian and Security Division ,Channel Research sprl ,202410-101 ,"1,634.78",
DFID,DFID,15/04/2013,Facilities Management payments ,Asia  Caribbean and Overseas Territories ,CB RICHARD ELLIS SOUTH ASIA PVT LTD ,100113-101 ,"1,138.38",
DFID,DFID,15/04/2013,Training - Travel & Subsistence ,Asia  Caribbean and Overseas Territories ,KUONI BUSINESS TRAVEL INDIA PVT LTD ,202403-101 ,"1,068.73",
DFID,DFID,15/04/2013,Office Supplies ,West and Southern Africa ,SPS - Sociedade de Prestacao de Serv ,101620-101 ,"1,021.77",
DFID,DFID,15/04/2013,Storage & Distribution costs ,Asia  Caribbean and Overseas Territories ,CROWN RELOCATIONS  UK ,101603-101 ,960.00,
DFID,DFID,15/04/2013,Air fares ,Asia  Caribbean and Overseas Territories ,KUONI BUSINESS TRAVEL INDIA PVT LTD ,100084-101 ,811.33,
DFID,DFID,15/04/2013,Technical and Advisory Services ,Business Solutions Division Level ,Parity Resources ,200003-154 ,749.95,
DFID,DFID,15/04/2013,Technical and Advisory Services ,Business Solutions Division Level ,Parity Resources ,200005-111 ,696.41,
DFID,DFID,15/04/2013,Repairs  Maint  Alter - Property & Constrct. Services ,West and Southern Africa ,Solua Lda ,101620-101 ,691.19,
DFID,DFID,15/04/2013,Air fares ,West and Southern Africa ,DANA Agency ,101620-101 ,657.54,
DFID,DFID,15/04/2013,Cleaning Costs ,West and Southern Africa ,Laurmann &Company Ltd ,101622-101 ,653.53,
DFID,DFID,15/04/2013,Repairs  Maint  Alter - Property & Constrct. Services ,West and Southern Africa ,Solua Lda ,101620-101 ,623.03,
DFID,DFID,15/04/2013,DFID Learning Events ,West and Southern Africa ,Recipient name withheld ,101622-101 ,575.24,
DFID,DFID,15/04/2013,Storage & Distribution costs ,West and Southern Africa ,Conote Services Ltd ,101622-101 ,567.75,
DFID,DFID,15/04/2013,Hotels - Accommodation only ,West and Southern Africa ,Recipient name withheld ,101610-101 ,524.31,
DFID,DFID,15/04/2013,Mobile telephones & accessories ,Business Solutions Division Level ,Level 3 ,200002-117 ,516.00,
DFID,DFID,16/04/2013,Aid Programme - Voluntary contributions ,Middle East & North Africa Division (MENAD) ,FAO (USD) ,203917-104 ,"978,987.00",
DFID,DFID,16/04/2013,Aid Programme - Voluntary contributions ,Middle East & North Africa Division (MENAD) ,Supplier Name withheld ,203216-116 ,"712,363.00",
DFID,DFID,16/04/2013,Aid Programme - Trust Funds contributions ,International Finance Division ,IBRD (HSBC)  C/O THE WORLD BANK ,201101-105 ,"650,000.00",
DFID,DFID,16/04/2013,Technical and Advisory Services ,West and Southern Africa ,Abt Associates ,202342-102 ,"551,171.26",
DFID,DFID,16/04/2013,Aid Programme - Accountable Grant Payments ,Asia  Caribbean and Overseas Territories ,OXFAM INSTITUTIONAL INCOME ACCOUNT ,202433-107 ,"204,960.00",
DFID,DFID,16/04/2013,Technical and Advisory Services ,East and Central Africa ,Crown Agents Bank ,200120-110 ,"124,577.96",
DFID,DFID,16/04/2013,Technical and Advisory Services ,Asia  Caribbean and Overseas Territories ,CARE INTERNATIONAL ,114506-101 ,"108,461.78",
DFID,DFID,16/04/2013,Technical and Advisory Services ,West and Southern Africa ,Crown Agents Bank ,202183-101 ,"73,082.14",
DFID,DFID,16/04/2013,Aid Programme - Other Financial Aid to Government ,West and Southern Africa ,Office of National Security Sierra Leone ,201018-105 ,"66,250.00",
DFID,DFID,16/04/2013,Vehicle Purchase Costs ,West and Southern Africa ,IPA-International Procurement Agency (BV) ,100215-101 ,"55,366.80",
DFID,DFID,16/04/2013,Repairs  Maint  Alter - Property & Constrct. Services ,East and Central Africa ,DMS AFRICA ,202594-101 ,"39,433.33",Payment for office extension and maintenance - South Sudan
DFID,DFID,16/04/2013,Secure staff Accommodation ,East and Central Africa ,Supplier Name withheld ,101612-101 ,"49,651.13",Secure overseas staff Accommodation costs -  Ethiopia. 
DFID,DFID,16/04/2013,Technical and Advisory Services ,Conflict Humanitarian and Security Division ,WYG International ,203746-101 ,"37,415.00",
DFID,DFID,16/04/2013,Aid Programme - Joint programme contribution ,Western Asia and Stabilisation Division ,UNDP CONTRIBUTIONS GBP ,114515-102 ,"37,000.00",
DFID,DFID,16/04/2013,Technical and Advisory Services ,East and Central Africa ,UNODC ,203383-102 ,"32,622.00",
DFID,DFID,16/04/2013,Aid Programme - Accountable Grant Payments ,Asia  Caribbean and Overseas Territories ,ACTION AID INTERNATIONAL ,203400-104 ,"27,790.00",
DFID,DFID,16/04/2013,Aid Programme - Accountable Grant Payments ,East and Central Africa ,The Somaliland Development Corporation ,203742-101 ,"20,151.82",
DFID,DFID,16/04/2013,Technical and Advisory Services ,Asia  Caribbean and Overseas Territories ,INFRASTRUCTURE PROFESSIONALS ENTERPRISE ,114040-101 ,"17,510.18",
DFID,DFID,16/04/2013,Aid Programme - Core contributions ,Research and Evidence Division ,FOOD AND AGRICULTURE ORGANISATION ,202279-101 ,"14,750.50",
DFID,DFID,16/04/2013,Aid Programme - Core contributions ,Research and Evidence Division ,FOOD AND AGRICULTURE ORGANISATION ,202279-102 ,"14,750.50",
DFID,DFID,16/04/2013,Technical and Advisory Services ,East and Central Africa ,IMC Worldwide Ltd ,200221-105 ,"13,485.53",
DFID,DFID,16/04/2013,Technical and Advisory Services ,West and Southern Africa ,John Gray ,104568-102 ,"13,440.00",
DFID,DFID,16/04/2013,Secure staff Accommodation ,East and Central Africa ,Supplier Name withheld ,101612-101 ,"13,368.49",
DFID,DFID,16/04/2013,Technical and Advisory Services ,East and Central Africa ,Crown Agents Bank ,202657-106 ,"13,083.00",
DFID,DFID,16/04/2013,Secure staff Accommodation ,East and Central Africa ,Supplier Name withheld ,101612-101 ,"11,864.00",
DFID,DFID,16/04/2013,Secure staff Accommodation ,East and Central Africa ,Supplier Name withheld ,101612-101 ,"11,457.96",
DFID,DFID,16/04/2013,Repairs  Maint  Alter - Property & Constrct. Services ,Western Asia and Stabilisation Division ,Supplier Name withheld ,100061-101 ,"10,567.51",
DFID,DFID,16/04/2013,Secure staff Accommodation ,East and Central Africa ,Supplier Name withheld ,100082-101 ,"9,619.17",
DFID,DFID,16/04/2013,Repairs  Maint  Alter - Property & Constrct. Services ,Western Asia and Stabilisation Division ,Supplier Name withheld ,100061-101 ,"9,230.27",
DFID,DFID,16/04/2013,Secure staff Accommodation ,East and Central Africa ,Supplier Name withheld ,101612-101 ,"9,208.29",
DFID,DFID,16/04/2013,Technical and Advisory Services ,Asia  Caribbean and Overseas Territories ,INFRASTRUCTURE PROFESSIONALS ENTERPRISE ,202765-102 ,"9,039.51",
DFID,DFID,16/04/2013,Technical and Advisory Services ,East and Central Africa ,Abundance Consulting ,203603-101 ,"8,208.15",
DFID,DFID,16/04/2013,Consultancy Services ,Policy Division ,Naina Patel ,202373-101 ,"7,194.00",
DFID,DFID,16/04/2013,Relocation costs ,East and Central Africa ,FCO SERVICES ,101628-101 ,"6,969.62",
DFID,DFID,16/04/2013,Training - Course Fees ,Policy Division ,UNIVERSITY OF BIRMINGHAM ,100191-101 ,"5,598.10",
DFID,DFID,16/04/2013,Technical and Advisory Services ,Middle East & North Africa Division (MENAD) ,Sussex Police ,202486-107 ,"5,141.59",
DFID,DFID,16/04/2013,Repairs  Maint  Alter - Property & Constrct. Services ,East and Central Africa ,SAFECON Electro Mechanical Works PLC ,100082-101 ,"4,992.09",
DFID,DFID,16/04/2013,Hotels - Accommodation only ,Asia  Caribbean and Overseas Territories ,Chelsea Cloisters Services Ltd ,201689-104 ,"4,914.00",
DFID,DFID,16/04/2013,Repairs  Maint  Alter - Property & Constrct. Services ,East and Central Africa ,SAFECON Electro Mechanical Works PLC ,101612-101 ,"4,881.02",
DFID,DFID,16/04/2013,Technical and Advisory Services ,West and Southern Africa ,Adelino Jeque Pimpao ,113355-101 ,"3,796.03",
DFID,DFID,16/04/2013,Secure staff Accommodation ,East and Central Africa ,Supplier Name withheld ,202891-107 ,"2,927.03",
DFID,DFID,16/04/2013,Facilities Management payments ,Asia  Caribbean and Overseas Territories ,KONE ELEVATOR INDIA PRIVATE LIMITED ,201689-105 ,"2,884.73",
DFID,DFID,16/04/2013,Furniture & Fittings ,Western Asia and Stabilisation Division ,Supplier Name withheld ,100061-101 ,"2,821.39",
DFID,DFID,16/04/2013,Vehicle Purchase Costs ,West and Southern Africa ,IPA-International Procurement Agency (BV) ,100215-101 ,"2,768.34",
DFID,DFID,16/04/2013,Repairs  Maint  Alter - Property & Constrct. Services ,East and Central Africa ,SAFECON Electro Mechanical Works PLC ,100082-101 ,"2,667.46",
DFID,DFID,16/04/2013,Repairs  Maint  Alter - Property & Constrct. Services ,Western Asia and Stabilisation Division ,Supplier Name withheld ,100061-101 ,"2,478.80",
DFID,DFID,16/04/2013,Technical and Advisory Services ,Asia  Caribbean and Overseas Territories ,SPC MANAGEMENT SERVICES PRIVATE LIMI ,114177-101 ,"2,432.24",
DFID,DFID,16/04/2013,Technical and Advisory Services ,Asia  Caribbean and Overseas Territories ,Meghraj Capital Advisors Private Limited ,200599-101 ,"2,391.66",
DFID,DFID,16/04/2013,Telephone Usage & services ,Western Asia and Stabilisation Division ,Supplier Name withheld ,101601-110 ,"2,211.19",
DFID,DFID,16/04/2013,Technical and Advisory Services ,Asia  Caribbean and Overseas Territories ,KRAN CONSULTING PVT. LTD. ,114506-101 ,"2,082.63",
DFID,DFID,16/04/2013,Repairs  Maint  Alter - Removal & waste disposal services ,Human Resources Security & Facilities Division ,BYWATERS ,100187-101 ,"1,894.94",
DFID,DFID,16/04/2013,Repairs  Maint  Alter - Property & Constrct. Services ,Asia  Caribbean and Overseas Territories ,R M B Engineers and Builders Pvt Ltd ,101621-103 ,"1,766.07",
DFID,DFID,16/04/2013,Storage & Distribution costs ,Western Asia and Stabilisation Division ,SPECTRA  GROUP UK LTD ,102014-102 ,"1,710.00",
DFID,DFID,16/04/2013,Technical and Advisory Services ,Middle East & North Africa Division (MENAD) ,Supplier Name withheld ,203216-110 ,"1,691.20",
DFID,DFID,16/04/2013,Repairs  Maint  Alter - Property & Constrct. Services ,Asia  Caribbean and Overseas Territories ,John Sanday Associates Pvt. Ltd ,101621-103 ,"1,683.11",
DFID,DFID,16/04/2013,Data network- remote working ,West and Southern Africa ,Skyband Corporation LTD ,101618-101 ,"1,533.06",
DFID,DFID,16/04/2013,Other travel costs ,International Finance Division ,InfraCo Asia Development Pte Ltd ,202259-101 ,"1,420.72",
DFID,DFID,16/04/2013,Hotels - Accommodation only ,West and Southern Africa ,Recipient name withheld ,101620-101 ,"1,338.00",
DFID,DFID,16/04/2013,Electricity ,Asia  Caribbean and Overseas Territories ,Dhaka Electric Supply Company Ltd ,101603-101 ,"1,265.33",
DFID,DFID,16/04/2013,Repairs  Maint  Alter - Property & Constrct. Services ,East and Central Africa ,SAFECON Electro Mechanical Works PLC ,101612-101 ,"1,204.94",
DFID,DFID,16/04/2013,Technical and Advisory Services ,Asia  Caribbean and Overseas Territories ,INFRASTRUCTURE PROFESSIONALS ENTERPRISE ,202765-101 ,"1,117.28",
DFID,DFID,16/04/2013,Repairs  Maint  Alter - Property & Constrct. Services ,East and Central Africa ,SAFECON Electro Mechanical Works PLC ,100082-101 ,"1,115.57",
DFID,DFID,16/04/2013,Repairs  Maintenance and Alterations – Other Building Costs ,West and Southern Africa ,Kay Two Zambia Limited ,101637-101 ,"1,100.39",
DFID,DFID,16/04/2013,Reproduction & Printing Materials ,Human Resources Security & Facilities Division ,INCEPTION BUSINESS TECHNOLOGY LTD ,203717-101 ,"1,004.74",
DFID,DFID,16/04/2013,Subscriptions ,Human Resources Security & Facilities Division ,PEOPLE IN AID LTD ,100268-101 ,"1,000.00",
DFID,DFID,16/04/2013,Consultancy Services ,International Finance Division ,THE WHITEHALL & INDUSTRY GROUP ,202259-101 ,"1,000.00",
DFID,DFID,16/04/2013,Hotels - Accommodation only ,East and Central Africa ,Tegen Guest Accommodation Hotel plc ,101612-101 ,967.84,
DFID,DFID,16/04/2013,Facilities Management payments ,East and Central Africa ,Commissioner for Domestic Revenue ,101634-101 ,941.79,
DFID,DFID,16/04/2013,Technical and Advisory Services ,Asia  Caribbean and Overseas Territories ,Web Werks India Pvt. Ltd. ,114506-101 ,917.70,
DFID,DFID,16/04/2013,Furniture & Fittings ,Western Asia and Stabilisation Division ,Supplier Name withheld ,101601-110 ,854.16,
DFID,DFID,16/04/2013,Telephone Usage & services ,East and Central Africa ,VODACOM TANZANIA ,101634-101 ,822.39,
DFID,DFID,16/04/2013,Repairs  Maint  Alter - Property & Constrct. Services ,East and Central Africa ,SAFECON Electro Mechanical Works PLC ,202913-104 ,801.32,
DFID,DFID,16/04/2013,Water charges ,Asia  Caribbean and Overseas Territories ,Bal Krishna Dahal ,101621-103 ,781.45,
DFID,DFID,16/04/2013,Telephone Usage & services ,Western Asia and Stabilisation Division ,Supplier Name withheld ,100011-110 ,737.06,
DFID,DFID,16/04/2013,Mobile telephones & accessories ,Business Solutions Division Level ,Level 3 ,200002-117 ,698.94,
DFID,DFID,16/04/2013,Repairs  Maint  Alter - Property & Constrct. Services ,East and Central Africa ,SAFECON Electro Mechanical Works PLC ,202913-104 ,683.46,
DFID,DFID,16/04/2013,Office Equipment - Purchases ,East and Central Africa ,FCO SERVICES ,100211-101 ,674.33,
DFID,DFID,16/04/2013,Repairs  Maintenance and Alterations – Other Building Costs ,West and Southern Africa ,Desco Engineering & Contracting Company Ltd ,101637-101 ,651.54,
DFID,DFID,16/04/2013,Office Equipment - Maintenance ,Asia  Caribbean and Overseas Territories ,ARPAN TRADING PVT LTD ,101621-103 ,645.61,
DFID,DFID,16/04/2013,Hardware - desktop PCs ,Business Solutions Division Level ,XMA Limited ,200003-154 ,611.20,
DFID,DFID,16/04/2013,Telephone Usage & services ,West and Southern Africa ,Ghana Telecommunications Company Ltd ,101613-101 ,574.19,
DFID,DFID,16/04/2013,Air fares ,Western Asia and Stabilisation Division ,Recipient name withheld ,101601-110 ,560.00,
DFID,DFID,16/04/2013,Air fares ,Western Asia and Stabilisation Division ,Recipient name withheld ,101601-110 ,560.00,
DFID,DFID,16/04/2013,Air fares ,East and Central Africa ,The Express Travel Group ,202881-101 ,546.87,
DFID,DFID,16/04/2013,other information and communication technologies ,West and Southern Africa ,Limeline Sierra Leone Ltd ,101629-101 ,533.34,
DFID,DFID,16/04/2013,other information and communication technologies ,West and Southern Africa ,Limeline Sierra Leone Ltd ,101629-101 ,533.34,
DFID,DFID,16/04/2013,Repairs  Maint  Alter - Property & Constrct. Services ,Asia  Caribbean and Overseas Territories ,R M B Engineers and Builders Pvt Ltd ,101621-103 ,521.27,
DFID,DFID,16/04/2013,Training - Course Fees ,Human Resources Security & Facilities Division ,CAPITA LEARNING &DEVELOPMENT ,100269-155 ,511.20,
DFID,DFID,17/04/2013,Aid Programme - Voluntary contributions ,Policy Division ,WHO (GENEVA) ,202926-101 ,"3,000,000.00",
DFID,DFID,17/04/2013,Aid Programme - Voluntary contributions ,Middle East & North Africa Division (MENAD) ,Supplier Name withheld ,203216-121 ,"1,958,296.00",
DFID,DFID,17/04/2013,Aid Programme - Core contributions ,West and Southern Africa ,UNICEF ,201874-101 ,"1,621,098.00",
DFID,DFID,17/04/2013,Aid Programme - Core contributions ,Research and Evidence Division ,CABI ,202748-101 ,"1,320,000.00",
DFID,DFID,17/04/2013,Aid Programme - Partnership Programme Arrangements ,Policy Division ,CAFOD ,202669-101 ,"1,044,410.75",
DFID,DFID,17/04/2013,Aid Programme - Partnership Programme Arrangements ,Policy Division ,ACTIONAID ,202663-101 ,"1,029,751.00",
DFID,DFID,17/04/2013,Aid Programme - Partnership Programme Arrangements ,Policy Division ,SIGHT SAVERS INTERNATIONAL ,202546-101 ,"934,669.50",
DFID,DFID,17/04/2013,Aid Programme - Core contributions ,Research and Evidence Division ,CABI ,202748-101 ,"668,000.00",
DFID,DFID,17/04/2013,Aid Programme - Pooled/Basket funding ,Research and Evidence Division ,WELLCOME TRUST ,114075-102 ,"578,364.00",
DFID,DFID,17/04/2013,Technical and Advisory Services ,Policy Division ,TROPICAL HEALTH AND EDUCATION TRUST ,202208-101 ,"512,557.70",
DFID,DFID,17/04/2013,Aid Programme - Accountable Grant Payments ,West and Southern Africa ,LIVERPOOL SCHOOL OF TROPICAL MEDICINE ,202295-104 ,"425,293.75",
DFID,DFID,17/04/2013,Aid Programme - Partnership Programme Arrangements ,Policy Division ,ISLAMIC RELIEF ,203105-101 ,"300,000.00",
DFID,DFID,17/04/2013,Technical and Advisory Services ,Asia  Caribbean and Overseas Territories ,CHRISTIAN AID ,113311-101 ,"296,847.43",
DFID,DFID,17/04/2013,Aid Programme - Accountable Grant Payments ,Research and Evidence Division ,INASP ,114192-102 ,"188,993.21",
DFID,DFID,17/04/2013,Technical and Advisory Services ,Policy Division ,TROPICAL HEALTH AND EDUCATION TRUST ,202208-101 ,"165,309.13",
DFID,DFID,17/04/2013,Operating Lease rental of buildings ,Asia  Caribbean and Overseas Territories ,CENTRAL BUILDING LTD ,101636-101 ,"29,453.94",Secure overseas office accommodation - Vietnam 
DFID,DFID,17/04/2013,Aid Programme - Accountable Grant Payments ,East and Central Africa , THE RESEARCH FOUNDATION ,200120-114 ,"81,071.50",
DFID,DFID,17/04/2013,Technical and Advisory Services ,West and Southern Africa ,KPMG Auditores e Consultores SA ,103993-101 ,"77,654.26",
DFID,DFID,17/04/2013,Technical and Advisory Services ,Asia  Caribbean and Overseas Territories ,MAXWELL STAMP PLC ,114175-102 ,"56,500.00",
DFID,DFID,17/04/2013,Aid Programme - Accountable Grant Payments ,Communications Division ,Riders for Health ,202197-101 ,"54,001.00",
DFID,DFID,17/04/2013,Technical and Advisory Services ,East and Central Africa ,HTSPE LTD ,103548-101 ,"28,502.13",
DFID,DFID,17/04/2013,Technical and Advisory Services ,West and Southern Africa ,ETC CRYSTAL ,202732-101 ,"26,182.78",
DFID,DFID,17/04/2013,Supplier Services ,Asia  Caribbean and Overseas Territories ,MAXWELL STAMP PLC ,107370-101 ,"22,667.92",
DFID,DFID,17/04/2013,Repairs  Maint  Alter - Property & Constrct. Services ,East and Central Africa ,Deweto Int Ltd ,101612-101 ,"20,034.58",
DFID,DFID,17/04/2013,Hotels - Accommodation only ,West and Southern Africa ,Supplier Name withheld ,101622-101 ,"13,518.82",
DFID,DFID,17/04/2013,Technical and Advisory Services ,Asia  Caribbean and Overseas Territories ,SAMARTHAN-CENTRE FOR DEVELOPMENT SUPPORT ,113263-101 ,"13,408.04",
DFID,DFID,17/04/2013,Hardware - printers ,Asia  Caribbean and Overseas Territories ,RICOH UK LTD ,100026-102 ,"12,529.20",
DFID,DFID,17/04/2013,Secure staff Accommodation ,West and Southern Africa ,Supplier Name withheld ,101620-101 ,"10,669.28",
DFID,DFID,17/04/2013,Hotels - Accommodation only ,West and Southern Africa ,Supplier Name withheld ,100152-101 ,"10,198.41",
DFID,DFID,17/04/2013,Operating Lease rental of buildings ,Asia  Caribbean and Overseas Territories ,CENTRAL BUILDING LTD ,100244-101 ,"9,817.43",
DFID,DFID,17/04/2013,Technical and Advisory Services ,West and Southern Africa ,Carlos Manuel ,104038-101 ,"8,621.82",
DFID,DFID,17/04/2013,Technical and Advisory Services ,West and Southern Africa ,Feliciano S. Chimbutane ,104038-101 ,"8,621.82",
DFID,DFID,17/04/2013,Aid Programme - Accountable Grant Payments ,Asia  Caribbean and Overseas Territories ,Anguilla National Trust ,201049-101 ,"8,164.26",
DFID,DFID,17/04/2013,Training - Course Fees ,West and Southern Africa ,CAPITA LEARNING &DEVELOPMENT ,101622-101 ,"5,187.03",
DFID,DFID,17/04/2013,Technical and Advisory Services ,East and Central Africa ,Humanitarian Outcomes Limited ,202235-102 ,"5,136.00",
DFID,DFID,17/04/2013,Training - Course Fees ,Human Resources Security & Facilities Division ,CAPITA LEARNING &DEVELOPMENT ,100269-155 ,"3,246.88",
DFID,DFID,17/04/2013,Training - Course Fees ,Human Resources Security & Facilities Division ,CAPITA LEARNING &DEVELOPMENT ,100269-155 ,"3,246.88",
DFID,DFID,17/04/2013,Training - Course Fees ,Human Resources Security & Facilities Division ,CAPITA LEARNING &DEVELOPMENT ,100269-155 ,"3,246.88",
DFID,DFID,17/04/2013,Training - Course Fees ,Human Resources Security & Facilities Division ,CAPITA LEARNING &DEVELOPMENT ,100269-155 ,"3,246.88",
DFID,DFID,17/04/2013,Training - Course Fees ,Human Resources Security & Facilities Division ,CAPITA LEARNING &DEVELOPMENT ,100269-155 ,"3,246.88",
DFID,DFID,17/04/2013,Training - Course Fees ,Human Resources Security & Facilities Division ,CAPITA LEARNING &DEVELOPMENT ,100269-155 ,"3,246.88",
DFID,DFID,17/04/2013,Training - Course Fees ,Human Resources Security & Facilities Division ,CAPITA LEARNING &DEVELOPMENT ,100269-155 ,"3,246.88",
DFID,DFID,17/04/2013,Training - Course Fees ,Human Resources Security & Facilities Division ,CAPITA LEARNING &DEVELOPMENT ,100269-155 ,"3,246.88",
DFID,DFID,17/04/2013,Training - Course Fees ,Human Resources Security & Facilities Division ,CAPITA LEARNING &DEVELOPMENT ,100269-155 ,"3,246.88",
DFID,DFID,17/04/2013,Training - Course Fees ,Human Resources Security & Facilities Division ,CAPITA LEARNING &DEVELOPMENT ,100269-155 ,"3,246.88",
DFID,DFID,17/04/2013,Training - Course Fees ,Human Resources Security & Facilities Division ,CAPITA LEARNING &DEVELOPMENT ,100269-155 ,"3,246.88",
DFID,DFID,17/04/2013,Training - Course Fees ,Human Resources Security & Facilities Division ,CAPITA LEARNING &DEVELOPMENT ,100269-155 ,"3,246.88",
DFID,DFID,17/04/2013,Repairs  Maint  Alter - Property & Constrct. Services ,West and Southern Africa ,Intercasa ,101620-101 ,"2,778.54",
DFID,DFID,17/04/2013,Technical and Advisory Services ,East and Central Africa ,Humanitarian Outcomes Limited ,202235-102 ,"2,676.45",
DFID,DFID,17/04/2013,Technical and Advisory Services ,Western Asia and Stabilisation Division ,Supplier Name withheld ,201023-104 ,"2,582.45",
DFID,DFID,17/04/2013,Technical and Advisory Services ,Asia  Caribbean and Overseas Territories ,ZHENG Yan ,200581-112 ,"2,439.00",
DFID,DFID,17/04/2013,Contract & Agency Staff ,Human Resources Security & Facilities Division ,MICHAEL PAGE INTERNATIONAL RECRUITMENT LIMITED ,100266-110 ,"2,392.66",
DFID,DFID,17/04/2013,Printer Consumables ,Asia  Caribbean and Overseas Territories ,RICOH UK LTD ,100025-101 ,"2,334.74",
DFID,DFID,17/04/2013,Consultancy Services ,Finance and Corporate Performance Division ,Computer Futures ,200173-102 ,"2,100.00",
DFID,DFID,17/04/2013,Office Equipment - Purchases ,East and Central Africa ,FCO SERVICES ,100227-101 ,"1,567.92",
DFID,DFID,17/04/2013,Air fares ,Policy Division ,Supplier name withheld ,203034-110 ,"1,412.06",
DFID,DFID,17/04/2013,Consultancy Services ,Finance and Corporate Performance Division ,Computer Futures ,200173-102 ,"1,400.00",
DFID,DFID,17/04/2013,Consultancy Services ,Finance and Corporate Performance Division ,Computer Futures ,200173-102 ,"1,400.00",
DFID,DFID,17/04/2013,Contract & Agency Staff ,Finance and Corporate Performance Division ,Hays Specialist Recruitment Ltd ,100201-101 ,"1,150.00",
DFID,DFID,17/04/2013,Vehicle Petrol & Oil ,Asia  Caribbean and Overseas Territories ,QUTAB SERVICE STATION ,201689-105 ,994.36,
DFID,DFID,17/04/2013,Hardware - networking equipment ,Western Asia and Stabilisation Division ,Supplier Name withheld ,100061-101 ,989.84,
DFID,DFID,17/04/2013,Air fares ,Human Resources Security & Facilities Division ,Supplier name withheld ,100269-128 ,985.11,
DFID,DFID,17/04/2013,Hotels - Accommodation only ,Research and Evidence Division ,Recipient name withheld ,100039-110 ,951.24,
DFID,DFID,17/04/2013,Contract & Agency Staff ,Human Resources Security & Facilities Division ,MICHAEL PAGE INTERNATIONAL RECRUITMENT LIMITED ,100266-110 ,831.60,
DFID,DFID,17/04/2013,Printer Consumables ,West and Southern Africa ,FCO SERVICES ,100068-101 ,814.82,
DFID,DFID,17/04/2013,Hotels - Accommodation only ,Western Asia and Stabilisation Division ,PEARL CONTINENTAL HOTEL LAHORE ,101624-101 ,756.21,
DFID,DFID,17/04/2013,Training - Course Fees ,Human Resources Security & Facilities Division ,CAPITA LEARNING &DEVELOPMENT ,100266-102 ,750.00,
DFID,DFID,17/04/2013,Contract & Agency Staff ,Finance and Corporate Performance Division ,Hays Specialist Recruitment Ltd ,100201-101 ,726.19,
DFID,DFID,17/04/2013,Hotels - Accommodation only ,West and Southern Africa ,Recipient name withheld ,100256-105 ,720.65,
DFID,DFID,17/04/2013,Contract & Agency Staff ,Finance and Corporate Performance Division ,Hays Specialist Recruitment Ltd ,100201-101 ,690.00,
DFID,DFID,17/04/2013,Technical and Advisory Services ,Western Asia and Stabilisation Division ,Supplier Name withheld ,201023-103 ,687.50,
DFID,DFID,17/04/2013,Vehicle Hire Charges ,East and Central Africa ,Adika Tour and Travel PLC ,202913-104 ,680.97,
DFID,DFID,17/04/2013,Contract & Agency Staff ,Human Resources Security & Facilities Division ,Anderson Knight Ltd ,100270-102 ,677.47,
DFID,DFID,17/04/2013,Contract & Agency Staff ,Finance and Corporate Performance Division ,Hays Specialist Recruitment Ltd ,100201-101 ,645.50,
DFID,DFID,17/04/2013,Mobile telephones & accessories ,West and Southern Africa ,Airtel (SL) Ltd ,101629-101 ,618.60,
DFID,DFID,17/04/2013,Contract & Agency Staff ,Finance and Corporate Performance Division ,Anderson Knight Ltd ,200173-103 ,589.41,
DFID,DFID,17/04/2013,Air fares ,Asia  Caribbean and Overseas Territories ,Jaya Travels & Tours Ltd ,101621-101 ,583.47,
DFID,DFID,17/04/2013,Travel - Subsistence ,West and Southern Africa ,Recipient name withheld ,101638-105 ,573.58,
DFID,DFID,18/04/2013,Aid Programme - Core contributions ,International Relations Division ,UNFPA ,202598-101 ,"10,000,000.00",
DFID,DFID,18/04/2013,Aid Programme - Partnership Programme Arrangements ,Policy Division ,SAVE THE CHILDREN ,202662-101 ,"2,352,165.50",
DFID,DFID,18/04/2013,Technical and Advisory Services ,Communications Division ,VOLUNTARY SERVICE OVERSEAS ,202883-101 ,"1,353,867.60",
DFID,DFID,18/04/2013,Technical and Advisory Services ,East and Central Africa ,Crown Agents Bank ,200284-101 ,"1,185,109.00",
DFID,DFID,18/04/2013,Technical and Advisory Services ,Western Asia and Stabilisation Division ,COFFEY INTERNATIONAL DEVELOPMENT LTD ,202368-102 ,"574,205.06",
DFID,DFID,18/04/2013,Aid Programme - Partnership Programme Arrangements ,Policy Division ,INTERNATIONAL ALERT ,202687-101 ,"434,790.00",
DFID,DFID,18/04/2013,Aid Programme - Partnership Programme Arrangements ,Policy Division ,SAFERWORLD ,202709-101 ,"434,790.00",
DFID,DFID,18/04/2013,Aid Programme - Voluntary contributions ,Middle East & North Africa Division (MENAD) ,International Monetary Fund (GBP) ,203793-101 ,"309,891.00",
DFID,DFID,18/04/2013,Technical and Advisory Services ,Asia  Caribbean and Overseas Territories ,DELOITTE TOUCHE TOHAMATSU INDIA PRIVATE LTD (DTTIPL) ,108003-101 ,"299,456.00",
DFID,DFID,18/04/2013,Technical and Advisory Services ,Asia  Caribbean and Overseas Territories ,MAXWELL STAMP PLC ,114175-101 ,"139,345.33",
DFID,DFID,18/04/2013,Technical and Advisory Services ,East and Central Africa ,ATOS CONSULTING LIMITED ,202574-104 ,"99,882.50",
DFID,DFID,18/04/2013,Technical and Advisory Services ,Western Asia and Stabilisation Division ,Supplier Name withheld ,202109-102 ,"96,118.30",
DFID,DFID,18/04/2013,Hardware -Laptop PCs ,Business Solutions Division Level ,XMA Limited ,200003-154 ,"79,200.00",
DFID,DFID,18/04/2013,Technical and Advisory Services ,Asia  Caribbean and Overseas Territories ,DELOITTE TOUCHE TOHAMATSU INDIA PRIVATE LTD (DTTIPL) ,108003-101 ,"69,301.00",
DFID,DFID,18/04/2013,Technical and Advisory Services ,West and Southern Africa ,Baker Tilly Nigeria ,104189-101 ,"45,979.94",
DFID,DFID,18/04/2013,Computer software maintenance ,Business Solutions Division Level ,LOGICACMG UK LTD. ,200002-103 ,"45,750.00",Centralised Data Storage Support Contract 13/14 Quarter 1
DFID,DFID,18/04/2013,Technical and Advisory Services ,Western Asia and Stabilisation Division ,Supplier Name withheld ,202109-102 ,"44,232.42",
DFID,DFID,18/04/2013,Data Network - land lines ,Business Solutions Division Level ,CABLE & WIRELESS COMMUN ,203329-103 ,"63,665.44",Monthly (ECHO) Data Link Overseas land line costs
DFID,DFID,18/04/2013,Hardware -Laptop PCs ,Business Solutions Division Level ,XMA Limited ,200003-154 ,"32,313.60",
DFID,DFID,18/04/2013,Data Network - land lines ,Business Solutions Division Level ,CABLE & WIRELESS COMMUN ,200002-185 ,"123,585.85",Data/Broadband/Telecomms services for dfid overseas offices
DFID,DFID,18/04/2013,Facilities Management payments ,East and Central Africa ,Foreign & Commonwealth Office ,200092-115 ,"19,832.00",
DFID,DFID,18/04/2013,Technical and Advisory Services ,West and Southern Africa ,OXFORD POLICY MANAGEMENT ,202643-102 ,"19,179.13",
DFID,DFID,18/04/2013,Hardware - networking equipment ,East and Central Africa ,Foreign & Commonwealth Office ,100219-101 ,"18,299.56",
DFID,DFID,18/04/2013,Secure staff Accommodation ,Western Asia and Stabilisation Division ,Foreign & Commonwealth Office ,201699-101 ,"16,652.35",
DFID,DFID,18/04/2013,Aid Programme - Accountable Grant Payments ,Policy Division ,Shell Nigeria Closed pension Fund Administration Ltd ,201086-104 ,"15,954.30",
DFID,DFID,18/04/2013,Technical and Advisory Services ,East and Central Africa ,COFFEY INTERNATIONAL DEVELOPMENT LTD ,200779-107 ,"15,917.53",
DFID,DFID,18/04/2013,Secure staff Accommodation ,International Finance Division ,Foreign & Commonwealth Office ,201723-102 ,"12,489.26",
DFID,DFID,18/04/2013,Technical and Advisory Services ,Business Solutions Division Level ,OPIN SYSTEMS LIMITED ,200002-151 ,"12,084.83",
DFID,DFID,18/04/2013,Secure staff Accommodation ,East and Central Africa ,Supplier Name withheld ,101635-101 ,"10,581.32",
DFID,DFID,18/04/2013,Training - Course Fees ,Research and Evidence Division ,DAVID WILSON MANAGEMENT CONSULTANTS ,202331-102 ,"10,419.71",
DFID,DFID,18/04/2013,Secure staff Accommodation ,International Relations Division ,Foreign & Commonwealth Office ,202319-101 ,"10,407.72",
DFID,DFID,18/04/2013,Secure staff Accommodation ,East and Central Africa ,Supplier Name withheld ,101628-101 ,"9,803.92",
DFID,DFID,18/04/2013,Technical and Advisory Services ,Asia  Caribbean and Overseas Territories ,RFG consultant ,202221-101 ,"9,375.00",
DFID,DFID,18/04/2013,Technical and Advisory Services ,Asia  Caribbean and Overseas Territories ,MAXWELL STAMP PLC ,114175-105 ,"9,027.37",
DFID,DFID,18/04/2013,Technical and Advisory Services ,West and Southern Africa ,Foreign & Commonwealth Office ,104229-101 ,"8,625.39",
DFID,DFID,18/04/2013,Secure staff Accommodation ,East and Central Africa ,Foreign & Commonwealth Office ,101630-101 ,"8,282.45",
DFID,DFID,18/04/2013,Hardware - networking equipment ,East and Central Africa ,Foreign & Commonwealth Office ,100219-101 ,"7,975.32",
DFID,DFID,18/04/2013,Technical and Advisory Services ,Asia  Caribbean and Overseas Territories ,Foreign & Commonwealth Office ,200581-112 ,"7,637.80",
DFID,DFID,18/04/2013,Technical and Advisory Services ,East and Central Africa ,Ministry of Justice ,203459-102 ,"6,798.26",
DFID,DFID,18/04/2013,Conferences  Seminars & Meeting/Event Resource ,East and Central Africa ,Kunduchi Beach Hotel & Resort (USD) ,200713-101 ,"6,362.66",
DFID,DFID,18/04/2013,Secure staff Accommodation ,International Relations Division ,Foreign & Commonwealth Office ,100262-101 ,"5,848.15",
DFID,DFID,18/04/2013,Technical and Advisory Services ,East and Central Africa ,Foreign & Commonwealth Office ,203347-101 ,"5,468.89",
DFID,DFID,18/04/2013,Other rentals ,Middle East & North Africa Division (MENAD) ,Foreign & Commonwealth Office ,201705-101 ,"5,264.57",
DFID,DFID,18/04/2013,Other rentals ,Middle East & North Africa Division (MENAD) ,Foreign & Commonwealth Office ,201705-101 ,"5,264.57",
DFID,DFID,18/04/2013,Technical and Advisory Services ,West and Southern Africa ,Foreign & Commonwealth Office ,104229-101 ,"5,149.01",
DFID,DFID,18/04/2013,Technical and Advisory Services ,West and Southern Africa ,Zakari Momodu ,200332-101 ,"4,595.60",
DFID,DFID,18/04/2013,Secure staff Accommodation ,International Finance Division ,Foreign & Commonwealth Office ,201723-102 ,"4,097.01",
DFID,DFID,18/04/2013,Furniture & Fittings ,East and Central Africa ,Foreign & Commonwealth Office ,101616-101 ,"4,045.53",
DFID,DFID,18/04/2013,Aid Programme - Joint programme contribution ,Asia  Caribbean and Overseas Territories ,Foreign & Commonwealth Office ,203478-101 ,"4,042.84",
DFID,DFID,18/04/2013,Secure staff Accommodation ,Conflict Humanitarian and Security Division ,Foreign & Commonwealth Office ,202410-101 ,"3,964.85",
DFID,DFID,18/04/2013,Secure staff Accommodation ,International Finance Division ,Foreign & Commonwealth Office ,201723-102 ,"3,961.54",
DFID,DFID,18/04/2013,Hotels - Accommodation only ,West and Southern Africa ,Supplier Name withheld ,101622-101 ,"3,851.46",
DFID,DFID,18/04/2013,Electricity ,West and Southern Africa ,Foreign & Commonwealth Office ,101631-101 ,"3,628.67",
DFID,DFID,18/04/2013,Technical and Advisory Services ,West and Southern Africa ,Foreign & Commonwealth Office ,104229-101 ,"3,612.01",
DFID,DFID,18/04/2013,Repairs  Maint  Alter - Removal & waste disposal services ,Human Resources Security & Facilities Division ,BYWATERS ,203717-101 ,"3,301.28",
DFID,DFID,18/04/2013,Gas ,Human Resources Security & Facilities Division ,CORONA ENERGY ,100106-101 ,"3,059.10",
DFID,DFID,18/04/2013,Hotels - Accommodation only ,East and Central Africa ,Foreign & Commonwealth Office ,101630-101 ,"3,046.48",
DFID,DFID,18/04/2013,Other passenger transport ,Asia  Caribbean and Overseas Territories ,Foreign & Commonwealth Office ,114129-102 ,"2,726.28",
DFID,DFID,18/04/2013,Secure staff Accommodation ,East and Central Africa ,Foreign & Commonwealth Office ,101630-101 ,"2,612.75",
DFID,DFID,18/04/2013,Technical and Advisory Services ,East and Central Africa ,Andrew Nyabera Nyagwencha ,103548-101 ,"2,584.84",
DFID,DFID,18/04/2013,Secure staff Accommodation ,Policy Division ,Foreign & Commonwealth Office ,100191-101 ,"2,577.15",
DFID,DFID,18/04/2013,Repairs  Maint  Alter - Removal & waste disposal services ,East and Central Africa ,Foreign & Commonwealth Office ,101616-101 ,"2,524.47",
DFID,DFID,18/04/2013,Secure staff Accommodation ,East and Central Africa ,Foreign & Commonwealth Office ,101630-101 ,"2,484.74",
DFID,DFID,18/04/2013,Technical and Advisory Services ,East and Central Africa ,Carree Njeri Ndoka ,103548-101 ,"2,358.17",
DFID,DFID,18/04/2013,Print Services ,Asia  Caribbean and Overseas Territories ,Foreign & Commonwealth Office ,200581-117 ,"2,333.77",
DFID,DFID,18/04/2013,Conference Travel & Subsistence ,Western Asia and Stabilisation Division ,Foreign & Commonwealth Office ,201699-101 ,"2,312.83",
DFID,DFID,18/04/2013,Technical and Advisory Services ,West and Southern Africa ,Foreign & Commonwealth Office ,104229-101 ,"2,274.61",
DFID,DFID,18/04/2013,Courier & Bag Services ,West and Southern Africa ,FCO SERVICES ,101629-101 ,"2,199.52",
DFID,DFID,18/04/2013,Hardware - networking equipment ,East and Central Africa ,Foreign & Commonwealth Office ,100219-101 ,"2,157.34",
DFID,DFID,18/04/2013,Other rentals ,Western Asia and Stabilisation Division , ,202288-107 ,"2,112.50",
DFID,DFID,18/04/2013,Storage & Distribution costs ,West and Southern Africa ,CROWN RELOCATIONS  UK ,101638-101 ,"1,890.00",
DFID,DFID,18/04/2013,Technical and Advisory Services ,West and Southern Africa ,Foreign & Commonwealth Office ,104229-101 ,"1,853.24",
DFID,DFID,18/04/2013,Technical and Advisory Services ,West and Southern Africa ,Foreign & Commonwealth Office ,104229-101 ,"1,826.85",
DFID,DFID,18/04/2013,Hotels - Accommodation only ,East and Central Africa ,Foreign & Commonwealth Office ,101633-101 ,"1,789.42",
DFID,DFID,18/04/2013,Gas ,Human Resources Security & Facilities Division ,CORONA ENERGY ,100106-101 ,"1,773.62",
DFID,DFID,18/04/2013,Technical and Advisory Services ,East and Central Africa ,Susan Amlango Aletia ,103548-101 ,"1,768.63",
DFID,DFID,18/04/2013,Other rentals ,Middle East & North Africa Division (MENAD) ,Foreign & Commonwealth Office ,100303-101 ,"1,754.86",
DFID,DFID,18/04/2013,Other rentals ,Middle East & North Africa Division (MENAD) ,Foreign & Commonwealth Office ,100303-101 ,"1,754.86",
DFID,DFID,18/04/2013,Storage & Distribution costs ,Human Resources Security & Facilities Division ,PICKFORDS LTD ,100269-161 ,"1,750.00",
DFID,DFID,18/04/2013,Technical and Advisory Services ,West and Southern Africa ,Foreign & Commonwealth Office ,104229-101 ,"1,725.41",
DFID,DFID,18/04/2013,Technical and Advisory Services ,Asia  Caribbean and Overseas Territories , International Development UEA ,200581-113 ,"1,725.00",
DFID,DFID,18/04/2013,Aid Programme - Joint programme contribution ,Asia  Caribbean and Overseas Territories ,Foreign & Commonwealth Office ,203478-101 ,"1,701.08",
DFID,DFID,18/04/2013,FCO shared service charges ,International Relations Division ,Foreign & Commonwealth Office ,201711-101 ,"1,662.48",
DFID,DFID,18/04/2013,Contract & Agency Staff ,Finance and Corporate Performance Division ,MICHAEL PAGE INTERNATIONAL RECRUITMENT LIMITED ,100201-101 ,"1,650.00",
DFID,DFID,18/04/2013,Technical and Advisory Services ,Asia  Caribbean and Overseas Territories ,Foreign & Commonwealth Office ,200581-112 ,"1,326.01",
DFID,DFID,18/04/2013,Contract & Agency Staff ,Internal Audit ,Hays Specialist Recruitment Ltd ,100121-101 ,"1,276.51",
DFID,DFID,18/04/2013,Air fares ,East and Central Africa ,Recipient name withheld ,101625-102 ,"1,247.48",
DFID,DFID,18/04/2013,Air fares ,Asia  Caribbean and Overseas Territories ,Foreign & Commonwealth Office ,101615-101 ,"1,156.41",
DFID,DFID,18/04/2013,Travel - Subsistence ,Research and Evidence Division ,Recipient name withheld ,202348-104 ,"1,102.62",
DFID,DFID,18/04/2013,Other travel costs ,Research and Evidence Division ,Recipient name withheld ,202348-104 ,"1,067.00",
DFID,DFID,18/04/2013,Technical and Advisory Services ,Asia  Caribbean and Overseas Territories ,Foreign & Commonwealth Office ,200581-112 ,"1,060.81",
DFID,DFID,18/04/2013,Technical and Advisory Services ,West and Southern Africa ,Dr. Gloria J. Quansah Asare ,113923-102 ,"1,009.44",
DFID,DFID,18/04/2013,Travel - Subsistence ,Western Asia and Stabilisation Division ,Foreign & Commonwealth Office ,201699-101 ,991.21,
DFID,DFID,18/04/2013,Repairs  Maint  Alter - Property & Constrct. Services ,East and Central Africa ,Foreign & Commonwealth Office ,101633-101 ,962.31,
DFID,DFID,18/04/2013,Relocation costs ,West and Southern Africa ,CROWN RELOCATIONS  UK ,101618-101 ,960.00,
DFID,DFID,18/04/2013,Conference Travel & Subsistence ,Western Asia and Stabilisation Division ,Foreign & Commonwealth Office ,201699-101 ,954.49,
DFID,DFID,18/04/2013,Printer Consumables ,West and Southern Africa ,Formats Projects Services Limited ,101622-101 ,870.37,
DFID,DFID,18/04/2013,Aid Programme - Joint programme contribution ,Asia  Caribbean and Overseas Territories ,Foreign & Commonwealth Office ,203478-101 ,848.79,
DFID,DFID,18/04/2013,Electricity ,Asia  Caribbean and Overseas Territories ,Foreign & Commonwealth Office ,101605-101 ,831.30,
DFID,DFID,18/04/2013,Air fares ,Human Resources Security & Facilities Division ,OMAR TRAVELS ,100269-128 ,821.97,
DFID,DFID,18/04/2013,Mobile telephones & accessories ,West and Southern Africa ,Link Africa Consultants ,101613-101 ,819.75,
DFID,DFID,18/04/2013,Office Supplies ,Middle East & North Africa Division (MENAD) ,Foreign & Commonwealth Office ,100303-101 ,817.90,
DFID,DFID,18/04/2013,Training - Course Fees ,Conflict Humanitarian and Security Division ,RedR UK ,202410-101 ,815.00,
DFID,DFID,18/04/2013,Hotels - Accommodation only ,Western Asia and Stabilisation Division ,Foreign & Commonwealth Office ,201699-101 ,810.02,
DFID,DFID,18/04/2013,Facilities Management payments ,West and Southern Africa ,Hema Trading ,101629-101 ,800.78,
DFID,DFID,18/04/2013,Hotels - Accommodation only ,West and Southern Africa ,Supplier Name withheld ,101622-101 ,787.91,
DFID,DFID,18/04/2013,Generators & spares ,West and Southern Africa ,Abrahim A H Daklalah ($) ,101629-101 ,784.31,
DFID,DFID,18/04/2013,Hotels - Accommodation only ,Asia  Caribbean and Overseas Territories ,Foreign & Commonwealth Office ,101615-101 ,776.66,
DFID,DFID,18/04/2013,Building Plant - Air Conditioners ,Western Asia and Stabilisation Division ,Foreign & Commonwealth Office ,201699-101 ,762.08,
DFID,DFID,18/04/2013,Air fares ,Western Asia and Stabilisation Division ,Foreign & Commonwealth Office ,201699-101 ,759.83,
DFID,DFID,18/04/2013,Training - Travel & Subsistence ,Western Asia and Stabilisation Division ,BONDS TRAVEL BUREAU ,101624-101 ,736.39,
DFID,DFID,18/04/2013,Hotels - Accommodation only ,Asia  Caribbean and Overseas Territories ,Foreign & Commonwealth Office ,101604-101 ,712.85,
DFID,DFID,18/04/2013,Hardware -monitors ,East and Central Africa ,Foreign & Commonwealth Office ,101616-101 ,711.54,
DFID,DFID,18/04/2013,Hardware -monitors ,East and Central Africa ,Foreign & Commonwealth Office ,101630-101 ,711.54,
DFID,DFID,18/04/2013,Repairs  Maint  Alter - Removal & waste disposal services ,East and Central Africa ,Foreign & Commonwealth Office ,101616-101 ,702.84,
DFID,DFID,18/04/2013,Printer Consumables ,West and Southern Africa ,Formats Projects Services Limited ,100152-101 ,656.60,
DFID,DFID,18/04/2013,Other travel costs ,Research and Evidence Division ,Recipient name withheld ,202348-104 ,653.89,
DFID,DFID,18/04/2013,Travel - Subsistence ,Middle East & North Africa Division (MENAD) ,Foreign & Commonwealth Office ,201705-101 ,648.13,
DFID,DFID,18/04/2013,Electricity ,Asia  Caribbean and Overseas Territories ,Foreign & Commonwealth Office ,101605-101 ,634.38,
DFID,DFID,18/04/2013,Medical/Health Services ,Western Asia and Stabilisation Division ,INTERHEALTH ,202288-104 ,633.25,
DFID,DFID,18/04/2013,Aid Programme - Joint programme contribution ,Asia  Caribbean and Overseas Territories ,Foreign & Commonwealth Office ,203478-101 ,620.04,
DFID,DFID,18/04/2013,Furniture & Fittings ,East and Central Africa ,Foreign & Commonwealth Office ,101633-101 ,615.88,
DFID,DFID,18/04/2013,Furniture & Fittings ,Asia  Caribbean and Overseas Territories ,Foreign & Commonwealth Office ,101605-101 ,607.02,
DFID,DFID,18/04/2013,Hotels - Accommodation only ,Western Asia and Stabilisation Division ,Ramada Multan ,101624-101 ,595.52,
DFID,DFID,18/04/2013,Hotels - Accommodation only ,Middle East & North Africa Division (MENAD) ,Foreign & Commonwealth Office ,100303-101 ,555.08,
DFID,DFID,18/04/2013,Repairs  Maint  Alter - Property & Constrct. Services ,West and Southern Africa ,Foreign & Commonwealth Office ,101638-103 ,543.84,
DFID,DFID,18/04/2013,Facilities Management payments ,West and Southern Africa ,Bai Bai's Electrical Installation ,101629-101 ,537.16,
DFID,DFID,18/04/2013,Hotels - Accommodation only ,Western Asia and Stabilisation Division ,Ramada Multan ,101624-101 ,529.36,
DFID,DFID,18/04/2013,Hardware -Laptop PCs ,Business Solutions Division Level ,XMA Limited ,200003-154 ,528.00,
DFID,DFID,18/04/2013,Hardware -Laptop PCs ,Business Solutions Division Level ,XMA Limited ,200003-154 ,528.00,
DFID,DFID,18/04/2013,Mobile telephones & accessories ,Asia  Caribbean and Overseas Territories ,Foreign & Commonwealth Office ,101605-101 ,525.57,
DFID,DFID,18/04/2013,Conferences  Seminars & Meeting/Event Resource ,Asia  Caribbean and Overseas Territories ,Foreign & Commonwealth Office ,101605-101 ,502.52,
DFID,DFID,19/04/2013,Technical and Advisory Services ,West and Southern Africa ,ABT ASSOCIATES INC ,104229-101 ,"1,814,550.42",
DFID,DFID,19/04/2013,Aid Programme - Core contributions ,International Relations Division ,OHCHR ,202467-101 ,"1,250,000.00",
DFID,DFID,19/04/2013,Technical and Advisory Services ,West and Southern Africa ,Futures Group Europe ,202295-102 ,"439,011.61",
DFID,DFID,19/04/2013,Technical and Advisory Services ,West and Southern Africa ,GRM INTERNATIONAL LTD ,114230-101 ,"399,655.16",
DFID,DFID,19/04/2013,Technical and Advisory Services ,West and Southern Africa ,GRM INTERNATIONAL LTD ,202352-102 ,"252,479.84",
DFID,DFID,19/04/2013,Aid Programme - Accountable Grant Payments ,Asia  Caribbean and Overseas Territories ,ActionAid International Nepal ,202433-107 ,"145,155.00",
DFID,DFID,19/04/2013,Aid Programme - Accountable Grant Payments ,Asia  Caribbean and Overseas Territories ,British Council Division. ,108003-103 ,"108,634.16",
DFID,DFID,19/04/2013,Aid Programme - Partnership Programme Arrangements ,Policy Division ,ETHICAL TRADING INITIATIVE ,202620-101 ,"100,250.00",
DFID,DFID,19/04/2013,Furniture & Fittings ,Human Resources Security & Facilities Division ,Senator International  ,203717-101 ,"33,866.40",Furniture & Fittings costs for DFID HQ 
DFID,DFID,19/04/2013,Vehicle Purchase Costs ,Western Asia and Stabilisation Division ,Foreign & Commonwealth Office ,100305-101 ,"44,242.15",
DFID,DFID,19/04/2013,Technical and Advisory Services ,Western Asia and Stabilisation Division ,HTSPE Limited ,202930-103 ,"43,371.69",
DFID,DFID,19/04/2013,Research & Development costs ,Research and Evidence Division ,TEARFUND ,203287-101 ,"32,170.00",
DFID,DFID,19/04/2013,Technical and Advisory Services ,East and Central Africa ,ADAM SMITH INTERNATIONAL  LTD ,200221-107 ,"28,692.77",
DFID,DFID,19/04/2013,Technical and Advisory Services ,Middle East & North Africa Division (MENAD) ,FOREIGN AND COMMONWEALTH OFFICE (FCO) ,202399-102 ,"24,219.50",
DFID,DFID,19/04/2013,Technical and Advisory Services ,Middle East & North Africa Division (MENAD) ,FOREIGN AND COMMONWEALTH OFFICE (FCO) ,202486-103 ,"24,219.50",
DFID,DFID,19/04/2013,Technical and Advisory Services ,Middle East & North Africa Division (MENAD) ,FOREIGN AND COMMONWEALTH OFFICE (FCO) ,202399-102 ,"21,616.34",
DFID,DFID,19/04/2013,Technical and Advisory Services ,Middle East & North Africa Division (MENAD) ,FOREIGN AND COMMONWEALTH OFFICE (FCO) ,203620-101 ,"21,616.33",
DFID,DFID,19/04/2013,Technical and Advisory Services ,Middle East & North Africa Division (MENAD) ,FOREIGN AND COMMONWEALTH OFFICE (FCO) ,202486-103 ,"21,616.33",
DFID,DFID,19/04/2013,Technical and Advisory Services ,West and Southern Africa ,RS DREW LTD ,202214-103 ,"20,333.59",
DFID,DFID,19/04/2013,Technical and Advisory Services ,Middle East & North Africa Division (MENAD) ,FOREIGN AND COMMONWEALTH OFFICE (FCO) ,202399-102 ,"20,163.00",
DFID,DFID,19/04/2013,Technical and Advisory Services ,Middle East & North Africa Division (MENAD) ,FOREIGN AND COMMONWEALTH OFFICE (FCO) ,202486-103 ,"20,163.00",
DFID,DFID,19/04/2013,Technical and Advisory Services ,Middle East & North Africa Division (MENAD) ,FOREIGN AND COMMONWEALTH OFFICE (FCO) ,202399-102 ,"18,625.50",
DFID,DFID,19/04/2013,Technical and Advisory Services ,Middle East & North Africa Division (MENAD) ,FOREIGN AND COMMONWEALTH OFFICE (FCO) ,202486-103 ,"18,625.50",
DFID,DFID,19/04/2013,Training - Course Fees ,Business Solutions Division Level ,COMPUTACENTER (UK) LTD ,200001-101 ,"17,862.00",
DFID,DFID,19/04/2013,Technical and Advisory Services ,Asia  Caribbean and Overseas Territories ,Dr David Smawfield Consultancy Ltd ,114487-103 ,"17,430.00",
DFID,DFID,19/04/2013,Aid Programme - Other Financial Aid to Government ,Asia  Caribbean and Overseas Territories , The Government of India ,108027-102 ,"14,434.36",
DFID,DFID,19/04/2013,Technical and Advisory Services ,East and Central Africa ,Sasun Tsirunyan ,202394-103 ,"13,381.64",
DFID,DFID,19/04/2013,Technical and Advisory Services ,Middle East & North Africa Division (MENAD) ,FOREIGN AND COMMONWEALTH OFFICE (FCO) ,202486-103 ,"11,725.00",
DFID,DFID,19/04/2013,Technical and Advisory Services ,Middle East & North Africa Division (MENAD) ,FOREIGN AND COMMONWEALTH OFFICE (FCO) ,202399-102 ,"11,725.00",
DFID,DFID,19/04/2013,FCO shared service charges ,Western Asia and Stabilisation Division ,Foreign & Commonwealth Office ,101624-101 ,"11,473.36",
DFID,DFID,19/04/2013,Technical and Advisory Services ,Middle East & North Africa Division (MENAD) ,FOREIGN AND COMMONWEALTH OFFICE (FCO) ,202399-102 ,"10,936.68",
DFID,DFID,19/04/2013,Technical and Advisory Services ,Middle East & North Africa Division (MENAD) ,FOREIGN AND COMMONWEALTH OFFICE (FCO) ,203620-101 ,"10,936.66",
DFID,DFID,19/04/2013,Technical and Advisory Services ,Middle East & North Africa Division (MENAD) ,FOREIGN AND COMMONWEALTH OFFICE (FCO) ,202486-103 ,"10,936.66",
DFID,DFID,19/04/2013,Hostile Environment Training ,East and Central Africa ,Pilgrims Group ,101616-101 ,"10,567.59",
DFID,DFID,19/04/2013,Electricity ,Human Resources Security & Facilities Division ,EDF ENERGY ,203717-101 ,"10,100.16",
DFID,DFID,19/04/2013,Furniture & Fittings ,Middle East & North Africa Division (MENAD) ,Foreign & Commonwealth Office ,100302-101 ,"9,054.06",
DFID,DFID,19/04/2013,Technical and Advisory Services ,East and Central Africa ,Marina Lavrow ,203347-101 ,"8,353.01",
DFID,DFID,19/04/2013,Facilities Management payments ,International Relations Division ,Foreign & Commonwealth Office ,201711-101 ,"8,265.16",
DFID,DFID,19/04/2013,Electricity ,Human Resources Security & Facilities Division ,EDF ENERGY ,203717-101 ,"6,239.60",
DFID,DFID,19/04/2013,Repairs  Maint  Alter - Property & Constrct. Services ,Middle East & North Africa Division (MENAD) ,Foreign & Commonwealth Office ,100302-101 ,"4,916.26",
DFID,DFID,19/04/2013,FCO shared service charges ,International Relations Division ,Foreign & Commonwealth Office ,201711-101 ,"4,780.02",
DFID,DFID,19/04/2013,Technical and Advisory Services ,International Relations Division ,Foreign & Commonwealth Office ,201399-101 ,"4,102.19",
DFID,DFID,19/04/2013,Legal costs ,Policy Division ,Marriott Davies Yapp LLP ,202372-102 ,"4,043.40",
DFID,DFID,19/04/2013,Vehicle Petrol & Oil ,Western Asia and Stabilisation Division ,Pakistan State Oil Company Ltd ,101624-101 ,"3,479.98",
DFID,DFID,19/04/2013,Facilities Management payments ,International Relations Division ,Foreign & Commonwealth Office ,201711-101 ,"2,995.81",
DFID,DFID,19/04/2013,Secure staff Accommodation ,International Relations Division ,Foreign & Commonwealth Office ,100236-101 ,"2,932.58",
DFID,DFID,19/04/2013,Air fares ,East and Central Africa ,WFP Sudan Juba Sub Imprest(US$) ,202594-101 ,"2,873.94",
DFID,DFID,19/04/2013,Facilities Management payments ,International Relations Division ,Foreign & Commonwealth Office ,201711-101 ,"2,662.94",
DFID,DFID,19/04/2013,Furniture & Fittings ,Human Resources Security & Facilities Division ,HUNTERS CONTRACTS (SCOTLAND) LTD ,100106-101 ,"2,576.40",
DFID,DFID,19/04/2013,Facilities Management payments ,East and Central Africa ,Ikondera Company Ltd ,101628-101 ,"2,500.12",
DFID,DFID,19/04/2013,Air fares ,Middle East & North Africa Division (MENAD) ,Foreign & Commonwealth Office ,201705-101 ,"2,434.41",
DFID,DFID,19/04/2013,Telephone Usage & services ,East and Central Africa ,Network of the World Ltd ,202594-101 ,"2,283.11",
DFID,DFID,19/04/2013,Technical and Advisory Services ,Western Asia and Stabilisation Division ,Sarah Saeed ,113484-106 ,"2,237.15",
DFID,DFID,19/04/2013,Secure staff Accommodation ,International Relations Division ,Foreign & Commonwealth Office ,100262-101 ,"1,982.55",
DFID,DFID,19/04/2013,Secure staff Accommodation ,Middle East & North Africa Division (MENAD) ,Foreign & Commonwealth Office ,202887-101 ,"1,982.42",
DFID,DFID,19/04/2013,Hotels - Accommodation only ,Asia  Caribbean and Overseas Territories ,Foreign & Commonwealth Office ,101605-101 ,"1,979.78",
DFID,DFID,19/04/2013,Hotels - Accommodation only ,Western Asia and Stabilisation Division ,Avari Lahore ,101624-101 ,"1,969.27",
DFID,DFID,19/04/2013,Facilities Management payments ,International Relations Division ,Foreign & Commonwealth Office ,201711-101 ,"1,956.43",
DFID,DFID,19/04/2013,Cleaning Costs ,West and Southern Africa ,Sparklean Services Nig Ltd ,101622-101 ,"1,854.96",
DFID,DFID,19/04/2013,Other shared service charges ,International Relations Division ,Foreign & Commonwealth Office ,100262-101 ,"1,771.82",
DFID,DFID,19/04/2013,FCO shared service charges ,International Relations Division ,Foreign & Commonwealth Office ,201711-101 ,"1,770.19",
DFID,DFID,19/04/2013,Training - Travel & Subsistence ,Asia  Caribbean and Overseas Territories ,Foreign & Commonwealth Office ,101605-101 ,"1,635.50",
DFID,DFID,19/04/2013,Electricity ,East and Central Africa ,EWSA ,101628-101 ,"1,563.17",
DFID,DFID,19/04/2013,Furniture & Fittings ,East and Central Africa ,Foreign & Commonwealth Office ,101616-101 ,"1,482.56",
DFID,DFID,19/04/2013,Hotels - Accommodation only ,Business Solutions Division Level ,Foreign & Commonwealth Office ,200001-101 ,"1,480.21",
DFID,DFID,19/04/2013,Recruitment costs ,Human Resources Security & Facilities Division ,MTB CONSULTING ,100269-130 ,"1,464.69",
DFID,DFID,19/04/2013,Hotels - Accommodation only ,West and Southern Africa ,Supplier Name withheld ,101622-101 ,"1,437.07",
DFID,DFID,19/04/2013,Hotels - Accommodation only ,Western Asia and Stabilisation Division ,Foreign & Commonwealth Office ,201699-101 ,"1,386.45",
DFID,DFID,19/04/2013,Aid Programme - Joint programme contribution ,Asia  Caribbean and Overseas Territories ,Foreign & Commonwealth Office ,203478-101 ,"1,347.61",
DFID,DFID,19/04/2013,Aid Programme - Joint programme contribution ,Asia  Caribbean and Overseas Territories ,Foreign & Commonwealth Office ,203478-101 ,"1,347.61",
DFID,DFID,19/04/2013,Hotels - Accommodation only ,West and Southern Africa ,Supplier Name withheld ,101622-104 ,"1,294.94",
DFID,DFID,19/04/2013,Legal costs ,East and Central Africa ,Marriott Davies Yapp LLP ,101635-101 ,"1,291.94",
DFID,DFID,19/04/2013,Hotels - Accommodation only ,West and Southern Africa ,Supplier Name withheld ,101622-101 ,"1,195.33",
DFID,DFID,19/04/2013,Repairs  Maint  Alter - Property & Constrct. Services ,West and Southern Africa ,Pekolyn Tech. Services ,101622-101 ,"1,182.39",
DFID,DFID,19/04/2013,Air fares ,Middle East & North Africa Division (MENAD) ,Foreign & Commonwealth Office ,100303-101 ,"1,161.70",
DFID,DFID,19/04/2013,Training - Course Fees ,Asia  Caribbean and Overseas Territories ,RedR UK ,101621-108 ,"1,121.00",
DFID,DFID,19/04/2013,Hotels - Accommodation only ,East and Central Africa ,Foreign & Commonwealth Office ,101630-101 ,"1,091.54",
DFID,DFID,19/04/2013,Contract & Agency Staff ,Human Resources Security & Facilities Division ,MICHAEL PAGE INTERNATIONAL RECRUITMENT LIMITED ,100266-110 ,"1,082.26",
DFID,DFID,19/04/2013,Generators & spares ,East and Central Africa ,Foreign & Commonwealth Office ,101616-101 ,"1,033.07",
DFID,DFID,19/04/2013,Gas ,Middle East & North Africa Division (MENAD) ,Foreign & Commonwealth Office ,201705-101 ,"1,013.32",
DFID,DFID,19/04/2013,Secure staff Accommodation ,International Relations Division ,Foreign & Commonwealth Office ,202319-101 ,993.72,
DFID,DFID,19/04/2013,Telephone Usage & services ,East and Central Africa ,Network of the World Ltd ,202586-101 ,978.47,
DFID,DFID,19/04/2013,Gas ,Middle East & North Africa Division (MENAD) ,Foreign & Commonwealth Office ,100303-101 ,976.18,
DFID,DFID,19/04/2013,Cleaning Costs ,West and Southern Africa ,Foreign & Commonwealth Office ,101631-101 ,971.24,
DFID,DFID,19/04/2013,Office Equipment - Maintenance ,Asia  Caribbean and Overseas Territories ,Foreign & Commonwealth Office ,202403-101 ,869.86,
DFID,DFID,19/04/2013,Gas ,International Relations Division ,Foreign & Commonwealth Office ,100086-101 ,824.88,
DFID,DFID,19/04/2013,Air fares ,Western Asia and Stabilisation Division ,Foreign & Commonwealth Office ,201699-101 ,795.83,
DFID,DFID,19/04/2013,Cleaning Costs ,West and Southern Africa ,Foreign & Commonwealth Office ,101631-101 ,742.03,
DFID,DFID,19/04/2013,Hotels - Accommodation only ,Asia  Caribbean and Overseas Territories ,Foreign & Commonwealth Office ,202403-101 ,712.00,
DFID,DFID,19/04/2013,Cleaning Costs ,West and Southern Africa ,Sparklean Services Nig Ltd ,100152-101 ,703.49,
DFID,DFID,19/04/2013,Hotels - Accommodation only ,Western Asia and Stabilisation Division ,Avari Lahore ,101624-101 ,681.67,
DFID,DFID,19/04/2013,Other Admin Costs ,Asia  Caribbean and Overseas Territories ,Foreign & Commonwealth Office ,202403-101 ,678.39,
DFID,DFID,19/04/2013,Data Network - land lines ,Business Solutions Division Level ,Foreign & Commonwealth Office ,200002-121 ,661.26,
DFID,DFID,19/04/2013,Hotels - Accommodation only ,Western Asia and Stabilisation Division ,Foreign & Commonwealth Office ,201699-101 ,656.65,
DFID,DFID,19/04/2013,Mobile telephones & accessories ,East and Central Africa ,Foreign & Commonwealth Office ,200352-101 ,653.58,
DFID,DFID,19/04/2013,Medical/Health Services ,East and Central Africa ,Foreign & Commonwealth Office ,101633-101 ,650.90,
DFID,DFID,19/04/2013,Telephone Usage & services ,East and Central Africa ,MTN Uganda Ltd ,101635-101 ,622.53,
DFID,DFID,19/04/2013,Technical and Advisory Services ,West and Southern Africa ,Valencia Hotels ,200332-101 ,615.89,
DFID,DFID,19/04/2013,Aid Programme - Humanitarian Material Relief Assistance and Services ,Middle East & North Africa Division (MENAD) ,Supplier Name withheld ,203216-110 ,613.56,
DFID,DFID,19/04/2013,Mobile telephones & accessories ,East and Central Africa ,Foreign & Commonwealth Office ,101616-101 ,598.03,
DFID,DFID,19/04/2013,Hotels - Accommodation only ,West and Southern Africa ,Supplier Name withheld ,101622-101 ,597.66,
DFID,DFID,19/04/2013,Repairs  Maint  Alter - Property & Constrct. Services ,West and Southern Africa ,Pekolyn Tech. Services ,101622-101 ,591.19,
DFID,DFID,19/04/2013,Air fares ,Middle East & North Africa Division (MENAD) ,Foreign & Commonwealth Office ,201705-101 ,580.85,
DFID,DFID,19/04/2013,Aid Programme - Joint programme contribution ,Asia  Caribbean and Overseas Territories ,Foreign & Commonwealth Office ,203478-101 ,575.75,
DFID,DFID,19/04/2013,Data network- remote working ,Business Solutions Division Level ,Foreign & Commonwealth Office ,200002-121 ,568.24,
DFID,DFID,19/04/2013,Hotels - Accommodation only ,Asia  Caribbean and Overseas Territories ,Foreign & Commonwealth Office ,101615-101 ,566.44,
DFID,DFID,19/04/2013,Office Supplies ,Western Asia and Stabilisation Division ,Metro Cash & Carry  Pakistan  Islamabad ,100185-101 ,555.26,
DFID,DFID,19/04/2013,Air fares ,Middle East & North Africa Division (MENAD) ,Foreign & Commonwealth Office ,201705-101 ,555.08,
DFID,DFID,19/04/2013,Air fares ,Middle East & North Africa Division (MENAD) ,Foreign & Commonwealth Office ,100303-101 ,554.42,
DFID,DFID,19/04/2013,Telephone Usage & services ,Business Solutions Division Level ,BT BACS PAYMENTS ,200002-130 ,549.16,
DFID,DFID,19/04/2013,Aid Programme - Humanitarian Material Relief Assistance and Services ,Middle East & North Africa Division (MENAD) ,Supplier Name withheld ,203216-110 ,541.01,
DFID,DFID,19/04/2013,Training - Travel & Subsistence ,East and Central Africa ,Foreign & Commonwealth Office ,100227-101 ,528.65,
DFID,DFID,19/04/2013,Hotels - Accommodation only ,Middle East & North Africa Division (MENAD) ,Foreign & Commonwealth Office ,201705-101 ,528.65,
DFID,DFID,19/04/2013,Air fares ,Middle East & North Africa Division (MENAD) ,Foreign & Commonwealth Office ,201705-101 ,527.32,
DFID,DFID,19/04/2013,Staff Travel - Air Fares ,East and Central Africa ,Foreign & Commonwealth Office ,101633-101 ,525.94,
DFID,DFID,19/04/2013,Air fares ,East and Central Africa ,WFP Sudan Juba Sub Imprest(US$) ,202513-101 ,522.53,
DFID,DFID,19/04/2013,Repairs  Maint  Alter - Removal & waste disposal services ,West and Southern Africa ,Abuja Environmental Protection Board ,101622-101 ,517.94,
DFID,DFID,19/04/2013,Furniture & Fittings ,East and Central Africa ,Foreign & Commonwealth Office ,202586-101 ,511.41,
DFID,DFID,19/04/2013,Mobile telephones & accessories ,East and Central Africa ,Foreign & Commonwealth Office ,200352-101 ,505.92,
DFID,DFID,19/04/2013,Electricity ,Western Asia and Stabilisation Division ,Foreign & Commonwealth Office ,101624-101 ,501.49,
DFID,DFID,21/04/2013,Secure staff Accommodation ,Asia  Caribbean and Overseas Territories ,Supplier Name withheld ,101603-101 ,"8,051.43",
DFID,DFID,21/04/2013,Secure staff Accommodation ,Asia  Caribbean and Overseas Territories ,Supplier Name withheld ,100025-101 ,"1,726.83",
DFID,DFID,21/04/2013,Air fares ,Asia  Caribbean and Overseas Territories ,Saimon Overseas Ltd ,101603-102 ,"1,457.61",
DFID,DFID,21/04/2013,Hotels - Accommodation only ,Asia  Caribbean and Overseas Territories ,Hotel Lake Castle Limited ,202972-102 ,"1,233.20",
DFID,DFID,22/04/2013,Technical and Advisory Services ,Policy Division ,PWC GEC Client Account ,202372-103 ,"5,820,554.00",
DFID,DFID,22/04/2013,Technical and Advisory Services ,Research and Evidence Division ,PRICEWATERHOUSECOOPERS ,200822-101 ,"1,246,333.30",
DFID,DFID,22/04/2013,Technical and Advisory Services ,West and Southern Africa ,HTSPE LTD ,104189-101 ,"819,716.00",
DFID,DFID,22/04/2013,Technical and Advisory Services ,Policy Division ,PRICEWATERHOUSECOOPERS ,114370-104 ,"695,242.30",
DFID,DFID,22/04/2013,Aid Programme - Voluntary contributions ,Policy Division ,International Planned Parenthood Federation ,203925-101 ,"600,000.00",
DFID,DFID,22/04/2013,Aid Programme - Trust Funds contributions ,Middle East & North Africa Division (MENAD) ,African Development Bank TFT ,203715-101 ,"500,000.00",
DFID,DFID,22/04/2013,Technical and Advisory Services ,East and Central Africa ,Mennonite Economic Development Associates of Canada ,202481-104 ,"380,852.78",
DFID,DFID,22/04/2013,Technical and Advisory Services ,Asia  Caribbean and Overseas Territories ,INFRASTRUCTURE PROFESSIONALS ENTERPRISE ,202765-101 ,"335,171.90",
DFID,DFID,22/04/2013,Technical and Advisory Services ,Western Asia and Stabilisation Division ,ADAM SMITH INTERNATIONAL  LTD ,202328-102 ,"295,476.44",
DFID,DFID,22/04/2013,Aid Programme - Core contributions ,East and Central Africa ,NETHERLANDS EMBASSY ,201597-103 ,"193,590.77",
DFID,DFID,22/04/2013,Technical and Advisory Services ,Policy Division ,PRICEWATERHOUSECOOPERS ,114370-105 ,"192,238.54",
DFID,DFID,22/04/2013,Technical and Advisory Services ,Asia  Caribbean and Overseas Territories ,Futures Group Europe ,203455-101 ,"164,248.00",
DFID,DFID,22/04/2013,Technical and Advisory Services ,Policy Division ,PRICEWATERHOUSECOOPERS ,114370-104 ,"118,320.50",
DFID,DFID,22/04/2013,Technical and Advisory Services ,East and Central Africa ,Mennonite Economic Development Associates of Canada ,202481-104 ,"84,551.67",
DFID,DFID,22/04/2013,Technical and Advisory Services ,Asia  Caribbean and Overseas Territories ,OPTIONS CONSULTANCY SERVICES LIMITED ,113963-101 ,"84,391.39",
DFID,DFID,22/04/2013,Technical and Advisory Services ,Policy Division ,TRIPLE LINE CONSULTING LTD ,202035-101 ,"61,744.46",
DFID,DFID,22/04/2013,Technical and Advisory Services ,Policy Division ,Triple Line Consulting Limited ,201242-101 ,"40,555.54",
DFID,DFID,22/04/2013,Technical and Advisory Services ,West and Southern Africa ,MVAD ENTERPRISES INC ,200332-101 ,"32,960.69",
DFID,DFID,22/04/2013,Technical and Advisory Services ,Research and Evidence Division ,Sustainable Development Policy Institute ,203200-102 ,"27,590.00",
DFID,DFID,22/04/2013,Technical and Advisory Services ,East and Central Africa ,I T TRANSPORT LTD ,105409-103 ,"25,187.78",
DFID,DFID,22/04/2013,Technical and Advisory Services ,Policy Division ,Triple Line Consulting Limited ,201242-101 ,"16,564.94",
DFID,DFID,22/04/2013,Technical and Advisory Services ,West and Southern Africa ,EFFECTIVE DEVELOPMENT GROUP (EDG) ,113961-105 ,"15,777.96",
DFID,DFID,22/04/2013,Secure staff Accommodation ,East and Central Africa ,Supplier Name withheld ,101628-101 ,"14,173.23",
DFID,DFID,22/04/2013,Aid Programme - Accountable Grant Payments ,Asia  Caribbean and Overseas Territories ,SAINT HELENA NATIONAL TRUST ,201049-101 ,"11,712.76",
DFID,DFID,22/04/2013,Technical and Advisory Services ,East and Central Africa ,Bernard Broughton ,101635-101 ,"9,345.24",
DFID,DFID,22/04/2013,Technical and Advisory Services ,East and Central Africa ,I T TRANSPORT LTD ,105409-103 ,"7,565.55",
DFID,DFID,22/04/2013,Medical/Health Services ,West and Southern Africa ,HYGEIA HMO Ltd ,101622-101 ,"5,670.23",
DFID,DFID,22/04/2013,Computer software maintenance ,Western Asia and Stabilisation Division ,W3 Amped Limited ,202288-101 ,"5,200.00",
DFID,DFID,22/04/2013,Medical/Health Services ,West and Southern Africa ,HYGEIA HMO Ltd ,100152-101 ,"4,277.54",
DFID,DFID,22/04/2013,Facilities Management payments ,Asia  Caribbean and Overseas Territories ,Indersons ,201689-105 ,"4,079.95",
DFID,DFID,22/04/2013,Office Equipment - Purchases ,Human Resources Security & Facilities Division ,Fletcher Gallery Services ,203717-101 ,"3,578.46",
DFID,DFID,22/04/2013,Training - Course Fees ,Human Resources Security & Facilities Division ,DLA PIPER UK LTD ,100266-107 ,"2,500.00",
DFID,DFID,22/04/2013,Technical and Advisory Services ,Research and Evidence Division ,ATTENDA LIMITED ,100039-107 ,"2,369.52",
DFID,DFID,22/04/2013,Subscriptions ,Communications Division ,Durrants lTD ,100197-101 ,"1,985.82",
DFID,DFID,22/04/2013,Training - Course Fees ,Human Resources Security & Facilities Division ,DLA PIPER UK LTD ,100266-106 ,"1,747.00",
DFID,DFID,22/04/2013,Training - Course Fees ,Finance and Corporate Performance Division ,City of Glasgow College ,100201-101 ,"1,580.00",
DFID,DFID,22/04/2013,Contract & Agency Staff ,Finance and Corporate Performance Division ,HUDSON GLOBAL RESOURCES LTD ,100201-101 ,"1,499.89",
DFID,DFID,22/04/2013,Contract & Agency Staff ,Finance and Corporate Performance Division ,HUDSON GLOBAL RESOURCES LTD ,100201-101 ,"1,250.00",
DFID,DFID,22/04/2013,Repairs  Maint  Alter - Property & Constrct. Services ,West and Southern Africa ,FenChurch Engeneering Services Ltd ,101618-101 ,973.96,
DFID,DFID,22/04/2013,Telephone Usage & services ,Western Asia and Stabilisation Division ,Telenor Pakistan  ,101624-101 ,762.28,
DFID,DFID,22/04/2013,Telephone Usage & services ,Western Asia and Stabilisation Division ,PMCL ,101624-101 ,704.27,
DFID,DFID,22/04/2013,Technical and Advisory Services ,Business Solutions Division Level ,Parity Resources ,200003-154 ,696.38,
DFID,DFID,22/04/2013,Contract & Agency Staff ,Finance and Corporate Performance Division ,Hays Specialist Recruitment Ltd ,100201-101 ,691.20,
DFID,DFID,22/04/2013,Mobile telephones & accessories ,Asia  Caribbean and Overseas Territories ,Grameen Phone ,101603-101 ,588.98,
DFID,DFID,22/04/2013,Facilities Management payments ,Asia  Caribbean and Overseas Territories ,Indersons ,201689-105 ,535.23,
DFID,DFID,23/04/2013,Aid Programme - Core contributions ,Conflict Humanitarian and Security Division ,THE INTERNATIONAL COMMITTEE OF THE RED CROSS (ICRC) ,202457-101 ,"20,000,000.00",
DFID,DFID,23/04/2013,Aid Programme - Core contributions ,Conflict Humanitarian and Security Division ,BRITISH RED CROSS ,202031-101 ,"4,000,000.00",
DFID,DFID,23/04/2013,Aid Programme - Voluntary contributions ,East and Central Africa ,UNFPA ,201713-102 ,"3,500,000.00",
DFID,DFID,23/04/2013,Technical and Advisory Services ,West and Southern Africa ,IMA World Health - ASSP ,202732-102 ,"1,950,677.00",
DFID,DFID,23/04/2013,Aid Programme - Accountable Grant Payments ,Policy Division ,Rights and Resources Institute ,201724-117 ,"1,693,536.00",
DFID,DFID,23/04/2013,AV Conferencing systems -hardware ,Business Solutions Division Level ,COMPUTACENTER (UK) LTD ,200003-155 ,"1,113,791.74",
DFID,DFID,23/04/2013,Aid Programme - Accountable Grant Payments ,Communications Division ,CAFOD ,202197-101 ,"765,690.00",
DFID,DFID,23/04/2013,Aid Programme - Partnership Programme Arrangements ,Policy Division ,RESTLESS DEVELOPMENT ,202545-101 ,"688,859.75",
DFID,DFID,23/04/2013,Aid Programme - Partnership Programme Arrangements ,Policy Division ,MALARIA CONSORTIUM ,202700-101 ,"667,567.25",
DFID,DFID,23/04/2013,Aid Programme - Voluntary contributions ,East and Central Africa ,FAO (USD) ,202827-104 ,"500,000.00",
DFID,DFID,23/04/2013,Technical and Advisory Services ,West and Southern Africa ,ADAM SMITH INTERNATIONAL ,201139-101 ,"353,996.44",
DFID,DFID,23/04/2013,Aid Programme - Accountable Grant Payments ,West and Southern Africa ,INTERNATIONAL RESCUE COMMITTEE ,202857-101 ,"300,000.00",
DFID,DFID,23/04/2013,Aid Programme - Other Financial Aid to Government ,East and Central Africa ,Financial and Legal Sector Technical Assistance Ministry of Finance Kenya ,103415-101 ,"253,566.86",
DFID,DFID,23/04/2013,Aid Programme - Trust Funds contributions ,Western Asia and Stabilisation Division ,Supplier Name withheld ,114525-104 ,"165,680.00",
DFID,DFID,23/04/2013,Aid Programme - Challenge Fund payments ,Western Asia and Stabilisation Division ,Supplier Name withheld ,200898-104 ,"138,411.00",
DFID,DFID,23/04/2013,Technical and Advisory Services ,West and Southern Africa ,GRM INTERNATIONAL LTD ,202370-102 ,"134,530.54",
DFID,DFID,23/04/2013,Other Building Products ,Human Resources Security & Facilities Division ,MODULEX SYSTEMS ,203717-101 ,"32,756.04",Cost of statutory and directional signage throughout DFID HQ
DFID,DFID,23/04/2013,Technical and Advisory Services ,West and Southern Africa ,OXFORD POLICY MANAGEMENT ,201874-103 ,"95,534.79",
DFID,DFID,23/04/2013,Technical and Advisory Services ,Asia  Caribbean and Overseas Territories ,ERNST &  YOUNG PRIVATE LTD ,200599-101 ,"74,907.68",
DFID,DFID,23/04/2013,AV conferencing systms -software ,Business Solutions Division Level ,COMPUTACENTER (UK) LTD ,200003-155 ,"72,334.80",
DFID,DFID,23/04/2013,Aid Programme - Joint programme contribution ,West and Southern Africa ,UNICEF ,203330-106 ,"71,673.50",
DFID,DFID,23/04/2013,Technical and Advisory Services ,International Finance Division ,PRICEWATERHOUSECOOPERS ,202939-103 ,"68,790.33",
DFID,DFID,23/04/2013,Repairs  Maint  Alter - Property & Constrct. Services ,East and Central Africa ,SAFECON Electro Mechanical Works PLC ,101625-105 ,"36,039.31",Payment for maintenance works related to essential health & safety and security requirements for Secure Staff Accommodation � Africa Regional
DFID,DFID,23/04/2013,Supplier Services ,Research and Evidence Division ,HTSPE LTD ,203193-101 ,"58,950.00",
DFID,DFID,23/04/2013,Technical and Advisory Services ,Asia  Caribbean and Overseas Territories ,TURNER & TOWNSEND ,202433-108 ,"53,944.41",
DFID,DFID,23/04/2013,Repairs  Maint  Alter - Property & Constrct. Services ,East and Central Africa ,SAFECON Electro Mechanical Works PLC ,202891-107 ,"53,199.30",
DFID,DFID,23/04/2013,Technical and Advisory Services ,East and Central Africa ,DELTA PARTNERSHIP SOLUTIONS LTD ,103015-101 ,"50,473.96",
DFID,DFID,23/04/2013,Aid Programme - Accountable Grant Payments ,East and Central Africa ,Act! (Act.Change.Transform) ,201913-115 ,"44,363.10",
DFID,DFID,23/04/2013,Technical and Advisory Services ,International Finance Division ,PRICEWATERHOUSECOOPERS ,202939-101 ,"44,153.57",
DFID,DFID,23/04/2013,Research & Development costs ,Research and Evidence Division ,Global Governance Institute ,202136-101 ,"29,595.29",
DFID,DFID,23/04/2013,Technical and Advisory Services ,Research and Evidence Division ,University Of Sussex ,203339-102 ,"25,050.00",
DFID,DFID,23/04/2013,Technical and Advisory Services ,Asia  Caribbean and Overseas Territories ,ERNST &  YOUNG PRIVATE LTD ,200599-101 ,"23,368.95",
DFID,DFID,23/04/2013,Technical and Advisory Services ,East and Central Africa ,DELTA PARTNERSHIP SOLUTIONS LTD ,103015-101 ,"21,670.25",
DFID,DFID,23/04/2013,Technical and Advisory Services ,Western Asia and Stabilisation Division ,RIVER PATH ASSOCIATES ,101624-101 ,"20,415.06",
DFID,DFID,23/04/2013,AV conferencing systems -accessories ,Business Solutions Division Level ,COMPUTACENTER (UK) LTD ,200003-155 ,"16,697.88",
DFID,DFID,23/04/2013,Technical and Advisory Services ,Asia  Caribbean and Overseas Territories ,HTSPE LTD ,203035-102 ,"15,024.67",
DFID,DFID,23/04/2013,Facilities Management payments ,Human Resources Security & Facilities Division ,MITIE Technical Facilities Management Ltd ,203717-101 ,"14,928.04",
DFID,DFID,23/04/2013,Cleaning Costs ,Human Resources Security & Facilities Division ,MITIE Technical Facilities Management Ltd ,203717-101 ,"13,807.33",
DFID,DFID,23/04/2013,Cleaning Costs ,Human Resources Security & Facilities Division ,MITIE Technical Facilities Management Ltd ,100106-101 ,"12,213.55",
DFID,DFID,23/04/2013,Technical and Advisory Services ,East and Central Africa ,OXFORD POLICY MANAGEMENT ,103548-101 ,"11,355.00",
DFID,DFID,23/04/2013,Technical and Advisory Services ,Asia  Caribbean and Overseas Territories ,INFRASTRUCTURE PROFESSIONALS ENTERPRISE ,114040-101 ,"10,530.38",
DFID,DFID,23/04/2013,Technical and Advisory Services ,Asia  Caribbean and Overseas Territories ,INFRASTRUCTURE PROFESSIONALS ENTERPRISE ,114040-101 ,"10,530.38",
DFID,DFID,23/04/2013,Facilities Management payments ,Human Resources Security & Facilities Division ,MITIE Technical Facilities Management Ltd ,100106-101 ,"9,715.40",
DFID,DFID,23/04/2013,Secure staff Accommodation ,Asia  Caribbean and Overseas Territories ,Supplier Name withheld ,201689-105 ,"9,653.42",
DFID,DFID,23/04/2013,AV Conferencing systems -hardware ,Business Solutions Division Level ,COMPUTACENTER (UK) LTD ,200003-155 ,"9,547.20",
DFID,DFID,23/04/2013,Technical and Advisory Services ,Asia  Caribbean and Overseas Territories ,Meghraj Capital Advisors Private Limited ,202736-101 ,"8,661.08",
DFID,DFID,23/04/2013,Technical and Advisory Services ,Asia  Caribbean and Overseas Territories ,Crisil Risk and Infrastructure Solutions Limited ,202736-101 ,"8,146.30",
DFID,DFID,23/04/2013,Repairs  Maint  Alter - Property & Constrct. Services ,Human Resources Security & Facilities Division ,MITIE Technical Facilities Management Ltd ,203717-101 ,"7,952.54",
DFID,DFID,23/04/2013,Technical and Advisory Services ,Asia  Caribbean and Overseas Territories ,CRISIL Risk Infrastructure Solutions Limited ,202736-101 ,"6,853.51",
DFID,DFID,23/04/2013,Technical and Advisory Services ,Asia  Caribbean and Overseas Territories ,HTSPE LTD ,203035-102 ,"6,147.84",
DFID,DFID,23/04/2013,Legal costs ,Asia  Caribbean and Overseas Territories ,Amarchand & Mangaldas & Suresh A Shroff & Co. ,107955-101 ,"6,020.86",
DFID,DFID,23/04/2013,Legal costs ,Asia  Caribbean and Overseas Territories ,Amarchand & Mangaldas & Suresh A Shroff & Co. ,107955-101 ,"5,122.50",
DFID,DFID,23/04/2013,Gas ,Human Resources Security & Facilities Division ,CORONA ENERGY ,100187-101 ,"5,093.27",
DFID,DFID,23/04/2013,Air fares ,Top Management Group ,Corporate Travel Provider ,100232-103 ,"4,921.35",
DFID,DFID,23/04/2013,Air fares ,Top Management Group ,Corporate Travel Provider ,100232-102 ,"4,921.25",
DFID,DFID,23/04/2013,Air fares ,Top Management Group ,Corporate Travel Provider ,100232-102 ,"4,921.25",
DFID,DFID,23/04/2013,Legal costs ,West and Southern Africa ,Lexterra  Lda ,103993-104 ,"4,724.41",
DFID,DFID,23/04/2013,Storage & Distribution costs ,Business Solutions Division Level ,TNT Express (UK) Ltd ,200001-101 ,"4,604.25",
DFID,DFID,23/04/2013,Repairs  Maint  Alter - Property & Constrct. Services ,Human Resources Security & Facilities Division ,MITIE Technical Facilities Management Ltd ,100106-101 ,"4,431.12",
DFID,DFID,23/04/2013,Facilities Management payments ,Human Resources Security & Facilities Division ,MITIE Technical Facilities Management Ltd ,100187-101 ,"4,264.19",
DFID,DFID,23/04/2013,Technical and Advisory Services ,Human Resources Security & Facilities Division ,HUDSON GLOBAL RESOURCES LTD ,100261-101 ,"4,200.00",
DFID,DFID,23/04/2013,Air fares ,Communications Division ,Corporate Travel Provider ,100197-101 ,"3,671.70",
DFID,DFID,23/04/2013,Air fares ,Top Management Group ,Corporate Travel Provider ,100232-102 ,"3,602.30",
DFID,DFID,23/04/2013,Air fares ,Top Management Group ,Corporate Travel Provider ,100232-102 ,"3,602.30",
DFID,DFID,23/04/2013,Air fares ,Top Management Group ,Corporate Travel Provider ,100232-103 ,"3,602.30",
DFID,DFID,23/04/2013,Air fares ,Communications Division ,Corporate Travel Provider ,100197-101 ,"3,549.55",
DFID,DFID,23/04/2013,Air fares ,Top Management Group ,Corporate Travel Provider ,100232-102 ,"3,549.55",
DFID,DFID,23/04/2013,Air fares ,Top Management Group ,Corporate Travel Provider ,100232-102 ,"3,549.55",
DFID,DFID,23/04/2013,Data Network - land lines ,Business Solutions Division Level ,COMPUTACENTER (UK) LTD ,200003-155 ,"3,522.62",
DFID,DFID,23/04/2013,Air fares ,Top Management Group ,Corporate Travel Provider ,100232-103 ,"3,311.55",
DFID,DFID,23/04/2013,Air fares ,Top Management Group ,Corporate Travel Provider ,100232-105 ,"2,792.32",
DFID,DFID,23/04/2013,Training - Course Fees ,Western Asia and Stabilisation Division ,Supplier Name withheld ,101601-110 ,"2,770.00",
DFID,DFID,23/04/2013,Technical and Advisory Services ,West and Southern Africa ,Lexterra  Lda ,103993-104 ,"2,683.79",
DFID,DFID,23/04/2013,Air fares ,West and Southern Africa ,Corporate Travel Provider ,100189-101 ,"2,464.85",
DFID,DFID,23/04/2013,Air fares ,Asia  Caribbean and Overseas Territories ,Corporate Travel Provider ,100084-101 ,"2,443.21",
DFID,DFID,23/04/2013,Air fares ,Asia  Caribbean and Overseas Territories ,Corporate Travel Provider ,100084-101 ,"2,443.21",
DFID,DFID,23/04/2013,Computer hardware maintenance ,Business Solutions Division Level ,Rufus Leonard Ltd ,200002-196 ,"2,316.00",
DFID,DFID,23/04/2013,Medical/Health Services ,West and Southern Africa ,FLIMAS ,101638-101 ,"2,311.42",
DFID,DFID,23/04/2013,Air fares ,West and Southern Africa ,Corporate Travel Provider ,100189-101 ,"2,255.04",
DFID,DFID,23/04/2013,Air fares ,International Finance Division ,Corporate Travel Provider ,100120-101 ,"2,252.75",
DFID,DFID,23/04/2013,Air fares ,Top Management Group ,Corporate Travel Provider ,100232-104 ,"2,238.95",
DFID,DFID,23/04/2013,Air fares ,Top Management Group ,Corporate Travel Provider ,100232-104 ,"2,238.95",
DFID,DFID,23/04/2013,Air fares ,West and Southern Africa ,Corporate Travel Provider ,100189-101 ,"2,216.16",
DFID,DFID,23/04/2013,Air fares ,Western Asia and Stabilisation Division ,Corporate Travel Provider ,101601-110 ,"2,199.96",
DFID,DFID,23/04/2013,Air fares ,Asia  Caribbean and Overseas Territories ,Corporate Travel Provider ,100084-101 ,"1,984.95",
DFID,DFID,23/04/2013,Air fares ,West and Southern Africa ,Corporate Travel Provider ,100189-101 ,"1,964.35",
DFID,DFID,23/04/2013,Air fares ,West and Southern Africa ,Corporate Travel Provider ,100189-101 ,"1,964.35",
DFID,DFID,23/04/2013,Air fares ,Western Asia and Stabilisation Division ,Corporate Travel Provider ,101601-110 ,"1,930.09",
DFID,DFID,23/04/2013,Air fares ,Western Asia and Stabilisation Division ,Corporate Travel Provider ,101601-110 ,"1,924.00",
DFID,DFID,23/04/2013,Air fares ,Western Asia and Stabilisation Division ,Corporate Travel Provider ,100020-101 ,"1,914.95",
DFID,DFID,23/04/2013,Air fares ,Western Asia and Stabilisation Division ,Corporate Travel Provider ,101601-110 ,"1,876.38",
DFID,DFID,23/04/2013,Repairs  Maint  Alter - Other Building Costs ,West and Southern Africa ,Tendo electronics ,101638-101 ,"1,794.80",
DFID,DFID,23/04/2013,Air fares ,Western Asia and Stabilisation Division ,Corporate Travel Provider ,100011-110 ,"1,764.57",
DFID,DFID,23/04/2013,Generators & spares ,West and Southern Africa ,NP (SL) Ltd ,100214-101 ,"1,687.49",
DFID,DFID,23/04/2013,Generators & spares ,West and Southern Africa ,NP (SL) Ltd ,101629-101 ,"1,687.49",
DFID,DFID,23/04/2013,Generators & spares ,West and Southern Africa ,NP (SL) Ltd ,101629-101 ,"1,687.49",
DFID,DFID,23/04/2013,Generators & spares ,West and Southern Africa ,NP (SL) Ltd ,101629-101 ,"1,687.49",
DFID,DFID,23/04/2013,Hotels - Accommodation only ,West and Southern Africa ,Corporate Travel Provider ,101610-101 ,"1,663.15",
DFID,DFID,23/04/2013,Air fares ,Research and Evidence Division ,Corporate Travel Provider ,202392-105 ,"1,662.75",
DFID,DFID,23/04/2013,Air fares ,West and Southern Africa ,Corporate Travel Provider ,202555-102 ,"1,638.62",
DFID,DFID,23/04/2013,Air fares ,Western Asia and Stabilisation Division ,Corporate Travel Provider ,203944-106 ,"1,637.00",
DFID,DFID,23/04/2013,Air fares ,Western Asia and Stabilisation Division ,Corporate Travel Provider ,203944-106 ,"1,637.00",
DFID,DFID,23/04/2013,Medical/Health Services ,West and Southern Africa ,MASM ,101618-101 ,"1,554.88",
DFID,DFID,23/04/2013,Air fares ,Research and Evidence Division ,Corporate Travel Provider ,202392-106 ,"1,547.65",
DFID,DFID,23/04/2013,Medical/Health Services ,West and Southern Africa ,FLIMAS ,100256-101 ,"1,540.94",
DFID,DFID,23/04/2013,Air fares ,Western Asia and Stabilisation Division ,Corporate Travel Provider ,100011-110 ,"1,538.35",
DFID,DFID,23/04/2013,Air fares ,Western Asia and Stabilisation Division ,Corporate Travel Provider ,100011-110 ,"1,495.45",
DFID,DFID,23/04/2013,Air fares ,Middle East & North Africa Division (MENAD) ,Corporate Travel Provider ,100146-101 ,"1,472.20",
DFID,DFID,23/04/2013,Air fares ,Top Management Group ,Corporate Travel Provider ,100232-106 ,"1,472.20",
DFID,DFID,23/04/2013,Air fares ,Top Management Group ,Corporate Travel Provider ,100232-106 ,"1,472.20",
DFID,DFID,23/04/2013,Air fares ,West and Southern Africa ,Corporate Travel Provider ,100189-101 ,"1,468.35",
DFID,DFID,23/04/2013,Air fares ,East and Central Africa ,Corporate Travel Provider ,101616-101 ,"1,468.35",
DFID,DFID,23/04/2013,Air fares ,East and Central Africa ,Corporate Travel Provider ,101625-105 ,"1,468.35",
DFID,DFID,23/04/2013,Air fares ,West and Southern Africa ,Corporate Travel Provider ,101637-101 ,"1,441.95",
DFID,DFID,23/04/2013,Air fares ,East and Central Africa ,Corporate Travel Provider ,100234-101 ,"1,439.24",
DFID,DFID,23/04/2013,Vehicle Repairs & Maintenance ,West and Southern Africa ,Adnan and Adel Mullah and Sons Ltd ,201018-103 ,"1,414.86",
DFID,DFID,23/04/2013,Hotels - Accommodation only ,Policy Division ,Recipient name withheld ,202373-105 ,"1,397.24",
DFID,DFID,23/04/2013,Air fares ,Top Management Group ,Corporate Travel Provider ,100232-103 ,"1,381.65",
DFID,DFID,23/04/2013,Air fares ,Western Asia and Stabilisation Division ,Corporate Travel Provider ,101601-110 ,"1,375.95",
DFID,DFID,23/04/2013,Technical and Advisory Services ,Communications Division ,TRIPLE LINE CONSULTING LTD ,114423-102 ,"1,372.00",
DFID,DFID,23/04/2013,Technical and Advisory Services ,West and Southern Africa ,African Foundation for Development Sierra Leone  ,203670-101 ,"1,356.30",
DFID,DFID,23/04/2013,Technical and Advisory Services ,West and Southern Africa ,African Foundation for Development Sierra Leone  ,203670-101 ,"1,356.30",
DFID,DFID,23/04/2013,Air fares ,Western Asia and Stabilisation Division ,Corporate Travel Provider ,100011-110 ,"1,352.35",
DFID,DFID,23/04/2013,Air fares ,Western Asia and Stabilisation Division ,Corporate Travel Provider ,101601-110 ,"1,315.10",
DFID,DFID,23/04/2013,Air fares ,Western Asia and Stabilisation Division ,Corporate Travel Provider ,203941-102 ,"1,314.65",
DFID,DFID,23/04/2013,Air fares ,Conflict Humanitarian and Security Division ,Corporate Travel Provider ,202410-101 ,"1,295.10",
DFID,DFID,23/04/2013,Air fares ,Research and Evidence Division ,Corporate Travel Provider ,202392-106 ,"1,293.31",
DFID,DFID,23/04/2013,Contract & Agency Staff ,Business Solutions Division Level ,ALLEGIS GROUP LIMITED ,200001-101 ,"1,275.00",
DFID,DFID,23/04/2013,Air fares ,Policy Division ,Corporate Travel Provider ,100274-108 ,"1,247.45",
DFID,DFID,23/04/2013,Contract & Agency Staff ,International Finance Division ,Hays Specialist Recruitment Ltd ,100120-101 ,"1,195.21",
DFID,DFID,23/04/2013,Air fares ,Research and Evidence Division ,Corporate Travel Provider ,100039-108 ,"1,194.95",
DFID,DFID,23/04/2013,Air fares ,East and Central Africa ,Corporate Travel Provider ,100234-101 ,"1,189.76",
DFID,DFID,23/04/2013,Air fares ,Communications Division ,Corporate Travel Provider ,100177-101 ,"1,183.21",
DFID,DFID,23/04/2013,Air fares ,Research and Evidence Division ,Corporate Travel Provider ,202392-102 ,"1,180.62",
DFID,DFID,23/04/2013,Air fares ,Western Asia and Stabilisation Division ,Corporate Travel Provider ,100020-101 ,"1,172.05",
DFID,DFID,23/04/2013,Air fares ,Western Asia and Stabilisation Division ,Corporate Travel Provider ,101601-110 ,"1,169.70",
DFID,DFID,23/04/2013,Air fares ,Conflict Humanitarian and Security Division ,Corporate Travel Provider ,100049-101 ,"1,161.35",
DFID,DFID,23/04/2013,Air fares ,West and Southern Africa ,Corporate Travel Provider ,101631-101 ,"1,151.27",
DFID,DFID,23/04/2013,Air fares ,Policy Division ,Corporate Travel Provider ,202373-105 ,"1,123.95",
DFID,DFID,23/04/2013,Air fares ,International Relations Division ,Corporate Travel Provider ,100240-101 ,"1,106.26",
DFID,DFID,23/04/2013,Air fares ,East and Central Africa ,Corporate Travel Provider ,101630-101 ,"1,099.55",
DFID,DFID,23/04/2013,Air fares ,East and Central Africa ,Corporate Travel Provider ,101625-104 ,"1,085.14",
DFID,DFID,23/04/2013,Air fares ,Middle East & North Africa Division (MENAD) ,Corporate Travel Provider ,101619-101 ,"1,064.54",
DFID,DFID,23/04/2013,Air fares ,Research and Evidence Division ,Corporate Travel Provider ,100088-101 ,"1,058.91",
DFID,DFID,23/04/2013,Air fares ,International Relations Division ,Corporate Travel Provider ,100240-101 ,"1,056.26",
DFID,DFID,23/04/2013,Vehicle Petrol & Oil ,West and Southern Africa ,British High Commission ,101629-101 ,"1,053.10",
DFID,DFID,23/04/2013,Air fares ,Middle East & North Africa Division (MENAD) ,Corporate Travel Provider ,100146-101 ,"1,049.05",
DFID,DFID,23/04/2013,Generators & spares ,West and Southern Africa ,NP (SL) Ltd ,101629-101 ,"1,040.74",
DFID,DFID,23/04/2013,Air fares ,Non-Departmental Public Body ,Corporate Travel Provider ,203064-101 ,"1,032.35",
DFID,DFID,23/04/2013,Air fares ,Western Asia and Stabilisation Division ,Corporate Travel Provider ,101624-101 ,"1,021.90",
DFID,DFID,23/04/2013,Air fares ,Policy Division ,Corporate Travel Provider ,100191-101 ,"1,021.65",
DFID,DFID,23/04/2013,Air fares ,West and Southern Africa ,Corporate Travel Provider ,101610-101 ,"1,002.52",
DFID,DFID,23/04/2013,Air fares ,Conflict Humanitarian and Security Division ,Corporate Travel Provider ,100049-101 ,"1,001.05",
DFID,DFID,23/04/2013,Technical and Advisory Services ,Western Asia and Stabilisation Division ,Sera O Gaeta ,203336-105 ,"1,000.00",
DFID,DFID,23/04/2013,Air fares ,Conflict Humanitarian and Security Division ,Corporate Travel Provider ,202410-101 ,999.11,
DFID,DFID,23/04/2013,Contract & Agency Staff ,Human Resources Security & Facilities Division ,MICHAEL PAGE INTERNATIONAL RECRUITMENT LIMITED ,100266-110 ,982.80,
DFID,DFID,23/04/2013,Air fares ,International Finance Division ,Corporate Travel Provider ,100098-101 ,962.51,
DFID,DFID,23/04/2013,Contract & Agency Staff ,Finance and Corporate Performance Division ,Search Consultancy Ltd ,100201-101 ,960.00,
DFID,DFID,23/04/2013,Contract & Agency Staff ,Finance and Corporate Performance Division ,Search Consultancy Ltd ,100201-101 ,960.00,
DFID,DFID,23/04/2013,Air fares ,Asia  Caribbean and Overseas Territories ,Corporate Travel Provider ,201739-101 ,952.25,
DFID,DFID,23/04/2013,Contract & Agency Staff ,Human Resources Security & Facilities Division ,MICHAEL PAGE INTERNATIONAL RECRUITMENT LIMITED ,100266-110 ,945.00,
DFID,DFID,23/04/2013,Air fares ,Conflict Humanitarian and Security Division ,Corporate Travel Provider ,100049-101 ,939.11,
DFID,DFID,23/04/2013,Hotels - Accommodation only ,Human Resources Security & Facilities Division ,Corporate Travel Provider ,100269-158 ,932.44,
DFID,DFID,23/04/2013,Air fares ,West and Southern Africa ,Corporate Travel Provider ,100189-101 ,921.70,
DFID,DFID,23/04/2013,Air fares ,Top Management Group ,Corporate Travel Provider ,100232-103 ,921.70,
DFID,DFID,23/04/2013,Air fares ,West and Southern Africa ,Corporate Travel Provider ,101610-101 ,916.80,
DFID,DFID,23/04/2013,Air fares ,West and Southern Africa ,Corporate Travel Provider ,101610-101 ,916.80,
DFID,DFID,23/04/2013,Telephone Usage & services ,West and Southern Africa ,Zambia Telecommunications Co Ltd ,101637-101 ,898.22,
DFID,DFID,23/04/2013,Telephone Usage & services ,West and Southern Africa ,Zambia Telecommunications Co Ltd ,101637-101 ,898.22,
DFID,DFID,23/04/2013,Vehicle Repairs & Maintenance ,West and Southern Africa ,IPA-International Procurement Agency (BV) ,101629-101 ,893.92,
DFID,DFID,23/04/2013,Hotels - Accommodation only ,Human Resources Security & Facilities Division ,Lakeshore Service Apartment (Pvt) Ltd ,100269-153 ,889.22,
DFID,DFID,23/04/2013,Repairs  Maint  Alter - Property & Constrct. Services ,Human Resources Security & Facilities Division ,MITIE Technical Facilities Management Ltd ,100187-101 ,883.62,
DFID,DFID,23/04/2013,Air fares ,Business Solutions Division Level ,Corporate Travel Provider ,200001-101 ,879.54,
DFID,DFID,23/04/2013,Air fares ,Middle East & North Africa Division (MENAD) ,Corporate Travel Provider ,201701-101 ,879.09,
DFID,DFID,23/04/2013,Air fares ,West and Southern Africa ,Corporate Travel Provider ,101610-101 ,872.60,
DFID,DFID,23/04/2013,Air fares ,Policy Division ,Corporate Travel Provider ,100274-108 ,869.95,
DFID,DFID,23/04/2013,Air fares ,Conflict Humanitarian and Security Division ,Corporate Travel Provider ,100049-101 ,869.65,
DFID,DFID,23/04/2013,Air fares ,Research and Evidence Division ,Corporate Travel Provider ,202392-102 ,869.65,
DFID,DFID,23/04/2013,Air fares ,Western Asia and Stabilisation Division ,Corporate Travel Provider ,101624-101 ,863.80,
DFID,DFID,23/04/2013,Generators & spares ,West and Southern Africa ,Oduntor C.Wilson ,101629-101 ,862.35,
DFID,DFID,23/04/2013,Facilities Management payments ,West and Southern Africa ,Raju's Electricals ,101629-101 ,854.71,
DFID,DFID,23/04/2013,Contract & Agency Staff ,Finance and Corporate Performance Division ,Hays Specialist Recruitment Ltd ,100201-101 ,854.69,
DFID,DFID,23/04/2013,Air fares ,Western Asia and Stabilisation Division ,Corporate Travel Provider ,101601-110 ,845.89,
DFID,DFID,23/04/2013,Hotels - Accommodation only ,Human Resources Security & Facilities Division ,Corporate Travel Provider ,100268-101 ,838.28,
DFID,DFID,23/04/2013,Hotels - Accommodation only ,Human Resources Security & Facilities Division ,Corporate Travel Provider ,100268-101 ,838.28,
DFID,DFID,23/04/2013,Facilities Management payments ,East and Central Africa ,Joshi Electrical & General Services ,101635-101 ,837.46,
DFID,DFID,23/04/2013,Conferences  Seminars & Meeting/Event Resource ,Corporate Hub ,PDP CONFERENCES ,201870-101 ,834.00,
